Workbook

Sheet Composições
A1: =Orçamentária!A1 -> Execução de infraestrutura e lançamento de fibra óptica para interligação entre os datacenters da Câmara dos Deputados e Senado Federal
A2: COMPOSIÇÕES DE CUSTO UNITÁRIO
A3: =Orçamentária!A3 -> Data: dezembro de 2020
A5: ITEM | B5: DESCRIÇÃO | C5: DISCRIMINAÇÃO DA COMPOSIÇÃO | D5: UNIDADE | E5: COEFICIENTE | F5: CUSTO UNITÁRIO | G5: CUSTO TOTAL | H5: TOTAL DO SERVIÇO | I5: QTD
A6: SF-00001 | B6: =INDEX(Orçamentária!A:B,MATCH(Composições!A6,Orçamentária!A:A,0),2) -> Engenheiro(a) /Arquiteto(a) júnior | D6: =TRIM(INDEX(Orçamentária!D:D,MATCH(Composições!A6,Orçamentária!A:A,0),1)) -> hh | G6: =IF(ISNUMBER(F6),E6*F6,"") ->  | I6: 176
I7: 176
C8: Engenheiro civil de obra junior com encargos complementares | D8: h | E8: 1 | F8: 83.448 | G8: 83.448 | H8: =SUM(G8:G8) -> 83.448 | I8: 176
I9: 176
A10: SF-00002 | B10: =INDEX(Orçamentária!A:B,MATCH(Composições!A10,Orçamentária!A:A,0),2) -> Mestre de obras | D10: =TRIM(INDEX(Orçamentária!D:D,MATCH(Composições!A10,Orçamentária!A:A,0),1)) -> hh | I10: 0
I11: 0
C12: Mestre de obras com encargos complementares | D12: h | E12: 1 | F12: 26.2485 | G12: 26.2485 | H12: =SUM(G12:G12) -> 26.2485 | I12: 0
I13: 0
A14: SF-00003 | B14: =INDEX(Orçamentária!A:B,MATCH(Composições!A14,Orçamentária!A:A,0),2) -> Planejamento físico-financeiro | D14: =TRIM(INDEX(Orçamentária!D:D,MATCH(Composições!A14,Orçamentária!A:A,0),1)) -> un | I14: 1
I15: 1
C16: Engenheiro Civil de Obra Pleno com encargos complementares | D16: h | E16: 16 | F16: 94.81 | G16: 1516.96 | H16: =SUM(G16:G16) -> 1516.96 | I16: 1
I17: 1
A18: SF-00004 | B18: =INDEX(Orçamentária!A:B,MATCH(Composições!A18,Orçamentária!A:A,0),2) -> Projetos de segurança do trabalho | D18: =TRIM(INDEX(Orçamentária!D:D,MATCH(Composições!A18,Orçamentária!A:A,0),1)) -> un | I18: 1
I19: 1
C20: Engenheiro Civil Pleno com encargos complementares | D20: h | E20: 20 | F20: 95.1235 | G20: 1902.47 | H20: =SUM(G20:G21) -> 2136.41 | I20: 1
C21: Anotação de Responsabilidade Técnica | D21: un | E21: 1 | F21: 233.94 | G21: 233.94 | I21: 1
I22: 1
A23: SF-00005 | B23: =INDEX(Orçamentária!A:B,MATCH(Composições!A23,Orçamentária!A:A,0),2) -> Demolição de alvenarias | D23: =TRIM(INDEX(Orçamentária!D:D,MATCH(Composições!A23,Orçamentária!A:A,0),1)) -> m3 | I23: 0
I24: 0
C25: Pedreiro com Encargos Complementares | D25: h | E25: 0.225 | F25: 22.0875 | G25: 4.9696875 | H25: =SUM(G25:G26) -> 42.8906627 | I25: 0
C26: Servente com Encargos Complementares | D26: h | E26: 2.3248 | F26: 16.3115 | G26: 37.9209752 | I26: 0
I27: 0
A28: SF-00006 | B28: =INDEX(Orçamentária!A:B,MATCH(Composições!A28,Orçamentária!A:A,0),2) -> Demolição de concreto simples | D28: =TRIM(INDEX(Orçamentária!D:D,MATCH(Composições!A28,Orçamentária!A:A,0),1)) -> m3 | I28: 0
I29: 0
C30: Pedreiro com Encargos Complementares | D30: h | E30: 1.3 | F30: 22.0875 | G30: 28.71375 | H30: =SUM(G30:G31) -> 240.76325 | I30: 0
C31: Servente com Encargos Complementares | D31: h | E31: 13 | F31: 16.3115 | G31: 212.0495 | I31: 0
I32: 0
A33: SF-00007 | B33: =INDEX(Orçamentária!A:B,MATCH(Composições!A33,Orçamentária!A:A,0),2) -> Demolição de contrapiso | D33: =TRIM(INDEX(Orçamentária!D:D,MATCH(Composições!A33,Orçamentária!A:A,0),1)) -> m2 | I33: 0
I34: 0
C35: Servente com Encargos Complementares | D35: h | E35: 0.7 | F35: 16.3115 | G35: 11.41805 | H35: =SUM(G35:G35) -> 11.41805 | I35: 0
I36: 0
A37: SF-00008 | B37: =INDEX(Orçamentária!A:B,MATCH(Composições!A37,Orçamentária!A:A,0),2) -> Demolição de fechamento ou parede em gesso acartonado | D37: =TRIM(INDEX(Orçamentária!D:D,MATCH(Composições!A37,Orçamentária!A:A,0),1)) -> m2 | I37: 0
I38: 0
C39: Montador de estrutura metálica com encargos complementares | D39: h | E39: 0.1186 | F39: 16.853 | G39: 1.9987658 | H39: =SUM(G39:G40) -> 5.79771415 | I39: 0
C40: Servente com Encargos Complementares | D40: h | E40: 0.2329 | F40: 16.3115 | G40: 3.79894835 | I40: 0
I41: 0
A42: SF-00009 | B42: =INDEX(Orçamentária!A:B,MATCH(Composições!A42,Orçamentária!A:A,0),2) -> Demolição de forro de gesso | D42: =TRIM(INDEX(Orçamentária!D:D,MATCH(Composições!A42,Orçamentária!A:A,0),1)) -> m2 | I42: 0
I43: 0
C44: Montador de estrutura metálica com encargos complementares | D44: h | E44: 0.0258 | F44: 16.853 | G44: 0.4348074 | H44: =SUM(G44:G45) -> 1.26180045 | I44: 0
C45: Servente com Encargos Complementares | D45: h | E45: 0.0507 | F45: 16.3115 | G45: 0.82699305 | I45: 0
I46: 0
A47: SF-00010 | B47: =INDEX(Orçamentária!A:B,MATCH(Composições!A47,Orçamentária!A:A,0),2) -> Demolição de infraestrutura elétrica (eletrodutos, eletrocalhas, cabos) | D47: =TRIM(INDEX(Orçamentária!D:D,MATCH(Composições!A47,Orçamentária!A:A,0),1)) -> m | I47: 0
I48: 0
C49: Eletricista com encargos complementares | D49: h | E49: =ROUND(0.0096*5,4) -> 0.048 | F49: 22.268 | G49: 1.068864 | H49: =SUM(G49:G50) -> 2.602145 | I49: 0
C50: Servente com Encargos Complementares | D50: h | E50: =ROUND(0.0188*5,4) -> 0.094 | F50: 16.3115 | G50: 1.533281 | I50: 0
I51: 0
A52: SF-00011 | B52: =INDEX(Orçamentária!A:B,MATCH(Composições!A52,Orçamentária!A:A,0),2) -> Demolição de revestimento cerâmico, granito, mármore ou granitina | D52: =TRIM(INDEX(Orçamentária!D:D,MATCH(Composições!A52,Orçamentária!A:A,0),1)) -> m2 | I52: 0
I53: 0
C54: Martelete ou rompedor pneumático manual, 28 kg, com silenciador - CHP diurno. AF_07/2016 | D54: chp | E54: 0.0699 | F54: 20.0355 | G54: 1.40048145 | H54: =SUM(G54:G57) -> 9.4729934 | I54: 0
C55: Martelete ou rompedor pneumático manual, 28 kg, com silenciador - CHI diurno. AF_07/2016 | D55: chi | E55: 0.0482 | F55: 18.7245 | G55: 0.9025209 | I55: 0
C56: Azulejista ou ladrilhista com encargos complementares | D56: h | E56: 0.1055 | F56: 22.0115 | G56: 2.32221325 | I56: 0
C57: Servente com Encargos Complementares | D57: h | E57: 0.2972 | F57: 16.3115 | G57: 4.8477778 | I57: 0
I58: 0
A59: SF-00012 | B59: =INDEX(Orçamentária!A:B,MATCH(Composições!A59,Orçamentária!A:A,0),2) -> Demolição de revestimento em argamassa | D59: =TRIM(INDEX(Orçamentária!D:D,MATCH(Composições!A59,Orçamentária!A:A,0),1)) -> m2 | I59: 0
I60: 0
C61: Pedreiro com Encargos Complementares | D61: h | E61: 0.0374 | F61: 22.0875 | G61: 0.8260725 | H61: =SUM(G61:G62) -> 2.54367345 | I61: 0
C62: Servente com Encargos Complementares | D62: h | E62: 0.1053 | F62: 16.3115 | G62: 1.71760095 | I62: 0
I63: 0
A64: SF-00013 | B64: =INDEX(Orçamentária!A:B,MATCH(Composições!A64,Orçamentária!A:A,0),2) -> Demolição de tubulação hidrossanitária embutida com conexões e acessórios | D64: =TRIM(INDEX(Orçamentária!D:D,MATCH(Composições!A64,Orçamentária!A:A,0),1)) -> m | I64: 0
I65: 0
C66: Encanador ou Bombeiro Hidráulico com Encargos Complementares | D66: h | E66: 0.0071 | F66: 21.622 | G66: 0.1535162 | H66: =SUM(G66:G67) -> 0.3818772 | I66: 0
C67: Servente com Encargos Complementares | D67: h | E67: 0.014 | F67: 16.3115 | G67: 0.228361 | I67: 0
I68: 0
A69: SF-00014 | B69: =INDEX(Orçamentária!A:B,MATCH(Composições!A69,Orçamentária!A:A,0),2) -> Demolição em concreto armado | D69: =TRIM(INDEX(Orçamentária!D:D,MATCH(Composições!A69,Orçamentária!A:A,0),1)) -> m3 | I69: 10
G70: =IF(ISNUMBER(F70),E70*F70,"") ->  | I70: 10
C71: Martelete ou rompedor pneumático manual, 28 kg, com silenciador - CHP diurno. AF_07/2016 | D71: chp | E71: 3.2468 | F71: 20.0355 | G71: 65.0512614 | H71: =SUM(G71:G75) -> 216.3409388 | I71: 10
C72: Martelete ou rompedor pneumático manual, 28 kg, com silenciador - CHI diurno. AF_07/2016 | D72: chi | E72: 0.9202 | F72: 18.7245 | G72: 17.2302849 | I72: 10
C73: CABO DE ACO GALVANIZADO, DIAMETRO 9,53 MM (3/8"), COM ALMA DE FIBRA 6 X 25 F | D73: kg | E73: 0.2835 | F73: 44.7735 | G73: 12.69328725 | I73: 10
C74: Pedreiro com Encargos Complementares | D74: h | E74: 0.6366 | F74: 22.0875 | G74: 14.0609025 | I74: 10
C75: Servente com Encargos Complementares | D75: h | E75: 6.5785 | F75: 16.3115 | G75: 107.3052028 | I75: 10
I76: 10
A77: SF-00016 | B77: =INDEX(Orçamentária!A:B,MATCH(Composições!A77,Orçamentária!A:A,0),2) -> Remoção de armários | D77: =TRIM(INDEX(Orçamentária!D:D,MATCH(Composições!A77,Orçamentária!A:A,0),1)) -> m2 | I77: 0
I78: 0
C79: Carpinteiro de esquadria com encargos complementares | D79: h | E79: 0.35 | F79: 21.9165 | G79: 7.670775 | H79: =SUM(G79:G80) -> 13.3798 | I79: 0
C80: Servente com Encargos Complementares | D80: h | E80: 0.35 | F80: 16.3115 | G80: 5.709025 | I80: 0
I81: 0
A82: SF-00017 | B82: =INDEX(Orçamentária!A:B,MATCH(Composições!A82,Orçamentária!A:A,0),2) -> Remoção de bancadas | D82: =TRIM(INDEX(Orçamentária!D:D,MATCH(Composições!A82,Orçamentária!A:A,0),1)) -> m2 | I82: 0
I83: 0
C84: Pedreiro com Encargos Complementares | D84: h | E84: 0.15 | F84: 22.0875 | G84: 3.313125 | H84: =SUM(G84:G85) -> 19.624625 | I84: 0
C85: Servente com Encargos Complementares | D85: h | E85: 1 | F85: 16.3115 | G85: 16.3115 | I85: 0
I86: 0
A87: SF-00018 | B87: =INDEX(Orçamentária!A:B,MATCH(Composições!A87,Orçamentária!A:A,0),2) -> Remoção de batentes de madeira | D87: =TRIM(INDEX(Orçamentária!D:D,MATCH(Composições!A87,Orçamentária!A:A,0),1)) -> un | I87: 0
I88: 0
C89: Pedreiro com Encargos Complementares | D89: h | E89: =0.08/2 -> 0.04 | F89: 22.0875 | G89: 0.8835 | H89: =SUM(G89:G90) -> 7.4081 | I89: 0
C90: Servente com Encargos Complementares | D90: h | E90: =0.8/2 -> 0.4 | F90: 16.3115 | G90: 6.5246 | I90: 0
I91: 0
A92: SF-00019 | B92: =INDEX(Orçamentária!A:B,MATCH(Composições!A92,Orçamentária!A:A,0),2) -> Remoção de canaleta em alumínio | D92: =TRIM(INDEX(Orçamentária!D:D,MATCH(Composições!A92,Orçamentária!A:A,0),1)) -> m | I92: 0
I93: 0
C94: Eletricista com encargos complementares | D94: h | E94: =0.75*0.1 -> 0.075 | F94: 22.268 | G94: 1.6701 | H94: =SUM(G94:G95) -> 4.116825 | I94: 0
C95: Servente com Encargos Complementares | D95: h | E95: =0.75*0.2 -> 0.15 | F95: 16.3115 | G95: 2.446725 | I95: 0
I96: 0
A97: SF-00020 | B97: =INDEX(Orçamentária!A:B,MATCH(Composições!A97,Orçamentária!A:A,0),2) -> Remoção de carpete | D97: =TRIM(INDEX(Orçamentária!D:D,MATCH(Composições!A97,Orçamentária!A:A,0),1)) -> m2 | I97: 0
I98: 0
C99: Pedreiro com Encargos Complementares | D99: h | E99: 0.01 | F99: 22.0875 | G99: 0.220875 | H99: =SUM(G99:G100) -> 1.852025 | I99: 0
C100: Servente com Encargos Complementares | D100: h | E100: 0.1 | F100: 16.3115 | G100: 1.63115 | I100: 0
I101: 0
A102: SF-00021 | B102: =INDEX(Orçamentária!A:B,MATCH(Composições!A102,Orçamentária!A:A,0),2) -> Remoção de cortinas | D102: =TRIM(INDEX(Orçamentária!D:D,MATCH(Composições!A102,Orçamentária!A:A,0),1)) -> m | I102: 0
I103: 0
C104: Ajudante especializado com encargos complementares | D104: h | E104: =ROUND(1/6,4) -> 0.1667 | F104: 19.3705 | G104: 3.22906235 | H104: =SUM(G104:G104) -> 3.22906235 | I104: 0
I105: 0
A106: SF-00022 | B106: =INDEX(Orçamentária!A:B,MATCH(Composições!A106,Orçamentária!A:A,0),2) -> Remoção de difusores, grelhas e acessórios de climatização | D106: =TRIM(INDEX(Orçamentária!D:D,MATCH(Composições!A106,Orçamentária!A:A,0),1)) -> un | I106: 0
I107: 0
C108: Ajudante de operação em geral com encargos complementares | D108: h | E108: 0.6 | F108: 17.4705 | G108: 10.4823 | H108: =SUM(G108:G109) -> 20.2692 | I108: 0
C109: Servente com Encargos Complementares | D109: h | E109: 0.6 | F109: 16.3115 | G109: 9.7869 | I109: 0
I110: 0
A111: SF-00023 | B111: =INDEX(Orçamentária!A:B,MATCH(Composições!A111,Orçamentária!A:A,0),2) -> Remoção de divisória de mármore ou granito | D111: =TRIM(INDEX(Orçamentária!D:D,MATCH(Composições!A111,Orçamentária!A:A,0),1)) -> m2 | I111: 0
I112: 0
C113: Marmorista/graniteiro com encargos complementares | D113: h | E113: 0.6 | F113: 18.4205 | G113: 11.0523 | H113: =SUM(G113:G114) -> 30.6261 | I113: 0
C114: Servente com Encargos Complementares | D114: h | E114: 1.2 | F114: 16.3115 | G114: 19.5738 | I114: 0
I115: 0
A116: SF-00024 | B116: =INDEX(Orçamentária!A:B,MATCH(Composições!A116,Orçamentária!A:A,0),2) -> Remoção de divisórias de MDF e gesso acartonado | D116: =TRIM(INDEX(Orçamentária!D:D,MATCH(Composições!A116,Orçamentária!A:A,0),1)) -> m2 | I116: 0
I117: 0
C118: Carpinteiro de esquadria com encargos complementares | D118: h | E118: 1.2 | F118: 21.9165 | G118: 26.2998 | H118: =SUM(G118:G118) -> 26.2998 | I118: 0
I119: 0
A120: SF-00025 | B120: =INDEX(Orçamentária!A:B,MATCH(Composições!A120,Orçamentária!A:A,0),2) -> Remoção de dutos/tubulações | D120: =TRIM(INDEX(Orçamentária!D:D,MATCH(Composições!A120,Orçamentária!A:A,0),1)) -> m | I120: 0
I121: 0
C122: Encanador ou Bombeiro Hidráulico com Encargos Complementares | D122: h | E122: 0.175 | F122: 21.622 | G122: 3.78385 | H122: =SUM(G122:G123) -> 8.6773 | I122: 0
C123: Servente com Encargos Complementares | D123: h | E123: 0.3 | F123: 16.3115 | G123: 4.89345 | I123: 0
I124: 0
A125: SF-00026 | B125: =INDEX(Orçamentária!A:B,MATCH(Composições!A125,Orçamentária!A:A,0),2) -> Remoção de esquadrias metálicas | D125: =TRIM(INDEX(Orçamentária!D:D,MATCH(Composições!A125,Orçamentária!A:A,0),1)) -> m2 | I125: 0
I126: 0
C127: Pedreiro com Encargos Complementares | D127: h | E127: 0.05 | F127: 22.0875 | G127: 1.104375 | H127: =SUM(G127:G128) -> 9.260125 | I127: 0
C128: Servente com Encargos Complementares | D128: h | E128: 0.5 | F128: 16.3115 | G128: 8.15575 | I128: 0
I129: 0
A130: SF-00027 | B130: =INDEX(Orçamentária!A:B,MATCH(Composições!A130,Orçamentária!A:A,0),2) -> Remoção de exaustor | D130: =TRIM(INDEX(Orçamentária!D:D,MATCH(Composições!A130,Orçamentária!A:A,0),1)) -> un | I130: 0
I131: 0
C132: Eletricista com encargos complementares | D132: h | E132: 0.3 | F132: 22.268 | G132: 6.6804 | H132: =SUM(G132:G132) -> 6.6804 | I132: 0
I133: 0
A134: SF-00028 | B134: =INDEX(Orçamentária!A:B,MATCH(Composições!A134,Orçamentária!A:A,0),2) -> Remoção de fechadura/puxador de porta | D134: =TRIM(INDEX(Orçamentária!D:D,MATCH(Composições!A134,Orçamentária!A:A,0),1)) -> un | G134: =IF(ISNUMBER(F134),E134*F134,"") ->  | I134: 0
I135: 0
C136: Carpinteiro de esquadria com encargos complementares | D136: h | E136: =0.25 -> 0.25 | F136: 21.9165 | G136: 5.479125 | H136: =SUM(G136:G136) -> 5.479125 | I136: 0
I137: 0
A138: SF-00029 | B138: =INDEX(Orçamentária!A:B,MATCH(Composições!A138,Orçamentária!A:A,0),2) -> Remoção de folha de porta e dobradiças | D138: =TRIM(INDEX(Orçamentária!D:D,MATCH(Composições!A138,Orçamentária!A:A,0),1)) -> un | I138: 0
I139: 0
C140: Pedreiro com Encargos Complementares | D140: h | E140: 0.1315 | F140: 22.0875 | G140: 2.90450625 | H140: =SUM(G140:G141) -> 7.11613555 | I140: 0
C141: Servente com Encargos Complementares | D141: h | E141: 0.2582 | F141: 16.3115 | G141: 4.2116293 | I141: 0
I142: 0
A143: SF-00030 | B143: =INDEX(Orçamentária!A:B,MATCH(Composições!A143,Orçamentária!A:A,0),2) -> Remoção de laminado melamínico (LDAP), em PVC ou vinílico | D143: =TRIM(INDEX(Orçamentária!D:D,MATCH(Composições!A143,Orçamentária!A:A,0),1)) -> m2 | I143: 0
I144: 0
C145: Pedreiro com Encargos Complementares | D145: h | E145: 0.09 | F145: 22.0875 | G145: 1.987875 | H145: =SUM(G145:G146) -> 16.668225 | I145: 0
C146: Servente com Encargos Complementares | D146: h | E146: 0.9 | F146: 16.3115 | G146: 14.68035 | I146: 0
I147: 0
A148: SF-00031 | B148: =INDEX(Orçamentária!A:B,MATCH(Composições!A148,Orçamentária!A:A,0),2) -> Remoção de louças | D148: =TRIM(INDEX(Orçamentária!D:D,MATCH(Composições!A148,Orçamentária!A:A,0),1)) -> un | I148: 0
I149: 0
C150: Encanador ou Bombeiro Hidráulico com Encargos Complementares | D150: h | E150: 0.1755 | F150: 21.622 | G150: 3.794661 | H150: =SUM(G150:G151) -> 9.4188662 | I150: 0
C151: Servente com Encargos Complementares | D151: h | E151: 0.3448 | F151: 16.3115 | G151: 5.6242052 | I151: 0
I152: 0
A153: SF-00032 | B153: =INDEX(Orçamentária!A:B,MATCH(Composições!A153,Orçamentária!A:A,0),2) -> Remoção de luminária | D153: =TRIM(INDEX(Orçamentária!D:D,MATCH(Composições!A153,Orçamentária!A:A,0),1)) -> un | I153: 0
I154: 0
C155: Eletricista com encargos complementares | D155: h | E155: =0.0183*5 -> 0.0915 | F155: 22.268 | G155: 2.037522 | H155: =SUM(G155:G156) -> 4.96543625 | I155: 0
C156: Servente com Encargos Complementares | D156: h | E156: =0.0359*5 -> 0.1795 | F156: 16.3115 | G156: 2.92791425 | I156: 0
I157: 0
C158: Obs.: Remoção com reaproveitamento | I158: 0
I159: 0
A160: SF-00033 | B160: =INDEX(Orçamentária!A:B,MATCH(Composições!A160,Orçamentária!A:A,0),2) -> Remoção de metais e acessórios | D160: =TRIM(INDEX(Orçamentária!D:D,MATCH(Composições!A160,Orçamentária!A:A,0),1)) -> un | I160: 0
I161: 0
C162: Encanador ou Bombeiro Hidráulico com Encargos Complementares | D162: h | E162: 0.128 | F162: 21.622 | G162: 2.767616 | H162: =SUM(G162:G163) -> 6.8683271 | I162: 0
C163: Servente com Encargos Complementares | D163: h | E163: 0.2514 | F163: 16.3115 | G163: 4.1007111 | I163: 0
I164: 0
A165: SF-00034 | B165: =INDEX(Orçamentária!A:B,MATCH(Composições!A165,Orçamentária!A:A,0),2) -> Remoção de painéis de vidro temperado | D165: =TRIM(INDEX(Orçamentária!D:D,MATCH(Composições!A165,Orçamentária!A:A,0),1)) -> m2 | I165: 0
I166: 0
C167: Servente com Encargos Complementares | D167: h | E167: 0.35 | F167: 16.3115 | G167: 5.709025 | H167: =SUM(G167:G168) -> 13.43965 | I167: 0
C168: Pedreiro com Encargos Complementares | D168: h | E168: 0.35 | F168: 22.0875 | G168: 7.730625 | I168: 0
I169: 0
A170: SF-00035 | B170: =INDEX(Orçamentária!A:B,MATCH(Composições!A170,Orçamentária!A:A,0),2) -> Remoção de película | D170: =TRIM(INDEX(Orçamentária!D:D,MATCH(Composições!A170,Orçamentária!A:A,0),1)) -> m2 | I170: 0
I171: 0
C172: Vidraceiro com encargos complementares | D172: h | E172: 0.4 | F172: 20.539 | G172: 8.2156 | H172: =SUM(G172:G172) -> 8.2156 | I172: 0
I173: 0
A174: SF-00036 | B174: =INDEX(Orçamentária!A:B,MATCH(Composições!A174,Orçamentária!A:A,0),2) -> Remoção de persianas | D174: =TRIM(INDEX(Orçamentária!D:D,MATCH(Composições!A174,Orçamentária!A:A,0),1)) -> m | I174: 0
I175: 0
C176: Ajudante especializado com encargos complementares | D176: h | E176: =ROUND(1/6,4) -> 0.1667 | F176: 19.3705 | G176: 3.22906235 | H176: =SUM(G176:G176) -> 3.22906235 | I176: 0
I177: 0
A178: SF-00037 | B178: =INDEX(Orçamentária!A:B,MATCH(Composições!A178,Orçamentária!A:A,0),2) -> Remoção de pintura ou textura | D178: =TRIM(INDEX(Orçamentária!D:D,MATCH(Composições!A178,Orçamentária!A:A,0),1)) -> m2 | I178: 0
I179: 0
C180: Servente com Encargos Complementares | D180: h | E180: 0.4 | F180: 16.3115 | G180: 6.5246 | H180: =SUM(G180:G180) -> 6.5246 | I180: 0
I181: 0
A182: SF-00038 | B182: =INDEX(Orçamentária!A:B,MATCH(Composições!A182,Orçamentária!A:A,0),2) -> Remoção de placas de forro | D182: =TRIM(INDEX(Orçamentária!D:D,MATCH(Composições!A182,Orçamentária!A:A,0),1)) -> m2 | I182: 0
I183: 0
C184: Montador de estrutura metálica com encargos complementares | D184: h | E184: =0.0258*3 -> 0.0774 | F184: 16.853 | G184: 1.3044222 | H184: =SUM(G184:G185) -> 3.78540135 | I184: 0
C185: Servente com Encargos Complementares | D185: h | E185: =0.0507*3 -> 0.1521 | F185: 16.3115 | G185: 2.48097915 | I185: 0
I186: 0
C187: Obs.: remoção com reaproveitamento | I187: 0
I188: 0
A189: SF-00039 | B189: =INDEX(Orçamentária!A:B,MATCH(Composições!A189,Orçamentária!A:A,0),2) -> Remoção de quadros de elétricos ou de telecomunicações | D189: =TRIM(INDEX(Orçamentária!D:D,MATCH(Composições!A189,Orçamentária!A:A,0),1)) -> un | I189: 0
I190: 0
C191: Auxiliar de eletricista com encargos complementares | D191: h | E191: 0.5 | F191: 17.366 | G191: 8.683 | H191: =SUM(G191:G194) -> 58.216 | I191: 0
C192: Eletricista com encargos complementares | D192: h | E192: 0.5 | F192: 22.268 | G192: 11.134 | I192: 0
C193: Pedreiro com Encargos Complementares | D193: h | E193: 1 | F193: 22.0875 | G193: 22.0875 | I193: 0
C194: Servente com Encargos Complementares | D194: h | E194: 1 | F194: 16.3115 | G194: 16.3115 | I194: 0
I195: 0
A196: SF-00040 | B196: =INDEX(Orçamentária!A:B,MATCH(Composições!A196,Orçamentária!A:A,0),2) -> Remoção de revestimento acústico | D196: =TRIM(INDEX(Orçamentária!D:D,MATCH(Composições!A196,Orçamentária!A:A,0),1)) -> m2 | I196: 0
I197: 0
C198: Servente com Encargos Complementares | D198: h | E198: 0.2 | F198: 16.3115 | G198: =IF(ISNUMBER(F198),E198*F198,"") -> 3.2623 | H198: =SUM(G198:G198) -> 3.2623 | I198: 0
I199: 0
A200: SF-00041 | B200: =INDEX(Orçamentária!A:B,MATCH(Composições!A200,Orçamentária!A:A,0),2) -> Remoção de rodapé/rodabanca de mármore ou granito | D200: =TRIM(INDEX(Orçamentária!D:D,MATCH(Composições!A200,Orçamentária!A:A,0),1)) -> m | I200: 0
I201: 0
... 4777 more rows

Sheet Comp.Aux1
A1: =Composições!A1 -> Execução de infraestrutura e lançamento de fibra óptica para interligação entre os datacenters da Câmara dos Deputados e Senado Federal
A2: COMPOSIÇÕES DE CUSTO UNITÁRIO AUXILIARES DE 1º NÍVEL
A3: =Composições!A3 -> Data: dezembro de 2020
A5: DESCRIÇÃO | B5: DISCRIMINAÇÃO DA COMPOSIÇÃO | C5: UNIDADE | D5: COEFICIENTE | E5: CUSTO UNITÁRIO | F5: CUSTO TOTAL | G5: TOTAL | H5: QTD
A6: ARGAMASSA TRAÇO 1:3 (EM VOLUME DE CIMENTO E AREIA MÉDIA ÚMIDA), PREPARO MANUAL. AF_08/2019 | C6: M3 | F6: =IF(ISNUMBER(E6),E6*$D6,"") ->  | H6: 0
H7: 0
B8: Areia media - posto jazida/fornecedor (retirado na jazida, sem transporte) | C8: M3 | D8: 1.07 | E8: 93.8125 | F8: 100.379375 | G8: =SUM(F8:F12) -> 495.0279359 | H8: 0
B9: Cimento Portland composto CP II-32 | C9: KG | D9: 482.96 | E9: 0.4465 | F9: 215.64164 | H9: 0
B10: Servente com encargos complementares | C10: H | D10: 8.57 | E10: 16.3115 | F10: 139.789555 | H10: 0
B11: CARGA, MANOBRA E DESCARGA DE SOLOS E MATERIAIS GRANULARES EM CAMINHÃO BASCULANTE 6 M³ - CARGA COM PÁ CARREGADEIRA (CAÇAMBA DE 1,7 A 2,8 M³ / 128 HP) E DESCARGA LIVRE (UNIDADE: M3). AF_07/2020 | C11: M3 | D11: =ROUND(1*D8,4) -> 1.07 | E11: 4.90785485 | F11: 5.251404689 | H11: 0
B12: TRANSPORTE COM CAMINHÃO BASCULANTE DE 6 M³, EM VIA URBANA PAVIMENTADA, DMT ATÉ 30 KM (UNIDADE: M3XKM). AF_07/2020 | C12: M3xKM | D12: =ROUND(D8*20,4) -> 21.4 | E12: 1.58719445 | F12: 33.96596123 | H12: 0
H13: 0
B14: Obs.: Considerando fornecedor de areia a 20 km do Senado Federal. | H14: 0
H15: 0
A16: Fixação utilizando parafuso e bucha de nylon, somente mão de obra. af_10/2016 | C16: UN | H16: 0
H17: 0
B18: Auxiliar de encanador ou bombeiro hidráulico com encargos complementares | C18: H | D18: 0.0227 | E18: 16.891 | F18: 0.3834257 | G18: =SUM(F18:F19) -> 3.8883519 | H18: 0
B19: Encanador ou bombeiro hidráulico com encargos complementares | C19: H | D19: 0.1621 | E19: 21.622 | F19: 3.5049262 | H19: 0
H20: 0
A21: Fixação de tubos horizontais de PVC, CPVC ou cobre diâmetros menores ou iguais a 40 mm ou eletrocalhas até 150mm de largura, com abraçadeira metálica rígida tipo d 1/2, fixada em perfilado em laje. af_05/2015 | C21: M | H21: 0
H22: 0
B23: Abracadeira em aco para amarracao de eletrodutos, tipo D, com 1/2" e parafuso de fixacao | C23: UN | D23: 0.65 | E23: 1.0355 | F23: 0.673075 | G23: =SUM(F23:F25) -> 2.333903 | H23: 0
B24: Auxiliar de encanador ou bombeiro hidráulico com encargos complementares | C24: H | D24: 0.01 | E24: 16.891 | F24: 0.16891 | H24: 0
B25: Encanador ou bombeiro hidráulico com encargos complementares | C25: H | D25: 0.069 | E25: 21.622 | F25: 1.491918 | H25: 0
H26: 0
A27: FABRICAÇÃO DE FÔRMA PARA VIGAS, EM CHAPA DE MADEIRA COMPENSADA RESINADA, E = 17 MM. AF_09/2020 | C27: M2 | H27: 0
H28: 0
B29: Chapa de madeira compensada resinada para forma de concreto, de *2,2 x 1,1* m, e = 17 mm | C29: M2 | D29: 1.146 | E29: 28.386 | F29: 32.530356 | G29: =SUM(F29:F36) -> 76.60705 | H29: 0
B30: PONTALETE DE MADEIRA NAO APARELHADA *7,5 X 7,5* CM (3 X 3 ") PINUS, MISTA OU EQUIVALENTE DA REGIAO | C30: M | D30: 0.166 | E30: 4.921 | F30: 0.816886 | H30: 0
B31: SARRAFO DE MADEIRA NAO APARELHADA *2,5 X 7,5* CM (1 X 3 ") PINUS, MISTA OU EQUIVALENTE DA REGIAO | C31: M | D31: 6.952 | E31: 1.7195 | F31: 11.953964 | H31: 0
B32: Prego de aco polido com cabeca 17 x 21 (2 x 11) | C32: KG | D32: 0.159 | E32: 11.59 | F32: 1.84281 | H32: 0
B33: Ajudante de carpinteiro com encargos complementares | C33: H | D33: 0.202 | E33: 18.468 | F33: 3.730536 | H33: 0
B34: Carpinteiro de formas com encargos complementares | C34: H | D34: 1.012 | E34: 21.8785 | F34: 22.141042 | H34: 0
B35: Serra circular de bancada com motor elétrico potência de 5HP, com coifa para disco 10" - CHP diurno. af_08/2015 | C35: CHP | D35: 0.05 | E35: 19.152 | F35: 0.9576 | H35: 0
B36: Serra circular de bancada com motor elétrico potência de 5HP, com coifa para disco 10" - CHI diurno. af_08/2015 | C36: CHI | D36: 0.152 | E36: 17.328 | F36: 2.633856 | H36: 0
H37: 0
A38: FABRICAÇÃO DE ESCORAS DE VIGA DO TIPO GARFO, EM MADEIRA. AF_09/2020 | C38: M | H38: 0
H39: 0
B40: CHAPA DE MADEIRA COMPENSADA PLASTIFICADA PARA FORMA DE CONCRETO, DE 2,20 x 1,10 M, E = 18 MM | C40: M2 | D40: 0.136 | E40: 36.727 | F40: 4.994872 | G40: =SUM(F40:F46) -> 21.3669725 | H40: 0
B41: PONTALETE DE MADEIRA NAO APARELHADA *7,5 X 7,5* CM (3 X 3 ") PINUS, MISTA OU EQUIVALENTE DA REGIAO | C41: M | D41: 2.342 | E41: 4.921 | F41: 11.524982 | H41: 0
B42: PREGO DE ACO POLIDO COM CABECA 17 X 21 (2 X 11) | C42: KG | D42: 0.012 | E42: 11.59 | F42: 0.13908 | H42: 0
B43: AJUDANTE DE CARPINTEIRO COM ENCARGOS COMPLEMENTARES | C43: H | D43: 0.032 | E43: 18.468 | F43: 0.590976 | H43: 0
B44: CARPINTEIRO DE FORMAS COM ENCARGOS COMPLEMENTARES | C44: H | D44: 0.161 | E44: 21.8785 | F44: 3.5224385 | H44: 0
B45: SERRA CIRCULAR DE BANCADA COM MOTOR ELÉTRICO POTÊNCIA DE 5HP, COM COIFA PARA DISCO 10" - CHP DIURNO. AF_08/2015 | C45: CHP | D45: 0.022 | E45: 19.152 | F45: 0.421344 | H45: 0
B46: SERRA CIRCULAR DE BANCADA COM MOTOR ELÉTRICO POTÊNCIA DE 5HP, COM COIFA PARA DISCO 10" - CHI DIURNO. AF_08/2015 | C46: CHI | D46: 0.01 | E46: 17.328 | F46: 0.17328 | H46: 0
H47: 0
A48: ARGAMASSA TRAÇO 1:2:8 (EM VOLUME DE CIMENTO, CAL E AREIA MÉDIA ÚMIDA) PARA EMBOÇO/MASSA ÚNICA/ASSENTAMENTO DE ALVENARIA DE VEDAÇÃO, PREPARO MECÂNICO COM BETONEIRA 400 L. AF_08/2019 | C48: M3 | H48: 0
H49: 0
B50: Areia media - posto jazida/fornecedor (retirado na jazida, sem transporte) | C50: M3 | D50: 1.16 | E50: 93.8125 | F50: 108.8225 | G50: =SUM(F50:F57) -> 447.2637129 | H50: 0
B51: Cal hidratada CH-I para argamassas | C51: KG | D51: 174.1 | E51: 0.76 | F51: 132.316 | H51: 0
B52: Cimento Portland composto CP II-32 | C52: KG | D52: 195.86 | E52: 0.4465 | F52: 87.45149 | H52: 0
B53: Operador de betoneira estacionária/misturador com encargos complementares | C53: H | D53: 4.5 | E53: 16.5015 | F53: 74.25675 | H53: 0
B54: Betoneira capacidade nominal de 400 L, capacidade de mistura 280 L, motor elétrico trifásico potência de 2 cv, sem carregador - CHP diurno. af_10/2014 | C54: CHP | D54: 1.05 | E54: 1.0925 | F54: 1.147125 | H54: 0
B55: Betoneira capacidade nominal de 400 L, capacidade de mistura 280 L, motor elétrico trifásico potência de 2 cv, sem carregador - CHI diurno. af_10/2014 | C55: CHI | D55: 3.45 | E55: 0.2185 | F55: 0.753825 | H55: 0
B56: CARGA, MANOBRA E DESCARGA DE SOLOS E MATERIAIS GRANULARES EM CAMINHÃO BASCULANTE 6 M³ - CARGA COM PÁ CARREGADEIRA (CAÇAMBA DE 1,7 A 2,8 M³ / 128 HP) E DESCARGA LIVRE (UNIDADE: M3). AF_07/2020 | C56: M3 | D56: =ROUND(1*D50,4) -> 1.16 | E56: 4.90785485 | F56: 5.693111626 | H56: 0
B57: TRANSPORTE COM CAMINHÃO BASCULANTE DE 6 M³, EM VIA URBANA PAVIMENTADA, DMT ATÉ 30 KM (UNIDADE: M3XKM). AF_07/2020 | C57: M3xKM | D57: =ROUND(D50*20,4) -> 23.2 | E57: 1.58719445 | F57: 36.82291124 | H57: 0
H58: 0
B59: Obs.: Considerando fornecedor de areia a 20 km do Senado Federal. | H59: 0
H60: 0
A61: Contrapiso em argamassa traço 1:4 (cimento e areia), preparo mecânico com betoneira 400 l, aplicado em áreas secas sobre laje, aderido, espessura 3cm. AF_06/2014 | C61: M2 | H61: 0
H62: 0
B63: Cimento Portland composto CP II-32 | C63: KG | D63: 0.5 | E63: 0.4465 | F63: 0.22325 | G63: =SUM(F63:F67) -> 35.18423303 | H63: 0
B64: Aditivo adesivo liquido para argamassas de revestimentos cimenticios | C64: L | D64: 0.435 | E64: 11.3715 | F64: 4.9466025 | H64: 0
B65: ARGAMASSA TRAÇO 1:4 (EM VOLUME DE CIMENTO E AREIA MÉDIA ÚMIDA) PARA CONTRAPISO, PREPARO MECÂNICO COM BETONEIRA 400 L. AF_08/2019 | C65: M3 | D65: 0.0431 | E65: 464.8284925 | F65: 20.03410803 | H65: 0
B66: Pedreiro com encargos complementares | C66: H | D66: 0.33 | E66: 22.0875 | F66: 7.288875 | H66: 0
B67: Servente com encargos complementares | C67: H | D67: 0.165 | E67: 16.3115 | F67: 2.6913975 | H67: 0
H68: 0
A69: ARGAMASSA TRAÇO 1:3 (EM VOLUME DE CIMENTO E AREIA GROSSA ÚMIDA) PARA CHAPISCO CONVENCIONAL, PREPARO MANUAL. AF_08/2019 | C69: M3 | H69: 0
F70: =IF(ISNUMBER(E70),E70*$D70,"") ->  | H70: 0
B71: Areia grossa - posto jazida/fornecedor (retirado na jazida, sem transporte) | C71: M3 | D71: 0.94 | E71: 113.6675 | F71: 106.84745 | G71: =SUM(F71:F75) -> 509.7571142 | H71: 0
B72: Cimento Portland composto CP II-32 | C72: KG | D72: 422.63 | E72: 0.4465 | F72: 188.704295 | H72: 0
B73: Servente com encargos complementares | C73: H | D73: 11.02 | E73: 16.3115 | F73: 179.75273 | H73: 0
B74: CARGA, MANOBRA E DESCARGA DE SOLOS E MATERIAIS GRANULARES EM CAMINHÃO BASCULANTE 6 M³ - CARGA COM PÁ CARREGADEIRA (CAÇAMBA DE 1,7 A 2,8 M³ / 128 HP) E DESCARGA LIVRE (UNIDADE: M3). AF_07/2020 | C74: M3 | D74: =ROUND(1*D71,4) -> 0.94 | E74: 4.90785485 | F74: 4.613383559 | H74: 0
B75: TRANSPORTE COM CAMINHÃO BASCULANTE DE 6 M³, EM VIA URBANA PAVIMENTADA, DMT ATÉ 30 KM (UNIDADE: M3XKM). AF_07/2020 | C75: M3xKM | D75: =ROUND(D71*20,4) -> 18.8 | E75: 1.58719445 | F75: 29.83925566 | H75: 0
H76: 0
B77: Obs.: Considerando fornecedor de areia a 20 km do Senado Federal. | H77: 0
H78: 0
A79: ARGAMASSA INDUSTRIALIZADA PARA CHAPISCO COLANTE, PREPARO COM MISTURADOR DE EIXO HORIZONTAL DE 300 KG. AF_08/2019 | C79: M3 | H79: 0
H80: 0
B81: Argamassa industrializada para chapisco colante | C81: KG | D81: 1981.23 | E81: 0.874 | F81: 1731.59502 | G81: =SUM(F81:F84) -> 1814.86119 | H81: 0
B82: Operador de betoneira estacionária/misturador com encargos complementares | C82: H | D82: 4.72 | E82: 16.5015 | F82: 77.88708 | H82: 0
B83: Misturador de argamassa, eixo horizontal, capacidade de mistura 300 kg, motor elétrico potência 5 cv - CHP diurno. af_06/2014 | C83: CHP | D83: 1.1 | E83: 2.983 | F83: 3.2813 | H83: 0
B84: Misturador de argamassa, eixo horizontal, capacidade de mistura 300 kg, motor elétrico potência 5 cv - CHI diurno. af_06/2014 | C84: CHI | D84: 3.62 | E84: 0.5795 | F84: 2.09779 | H84: 0
H85: 0
A86: ARGAMASSA TRAÇO 1:4 (EM VOLUME DE CIMENTO E AREIA MÉDIA ÚMIDA) PARA CONTRAPISO, PREPARO MANUAL. AF_08/2019 | C86: M3 | H86: 0
H87: 0
B88: Areia media - posto jazida/fornecedor (retirado na jazida, sem transporte) | C88: M3 | D88: 1.35 | E88: 93.8125 | F88: 126.646875 | G88: =SUM(F88:F92) -> 558.8494292 | H88: 0
B89: Cimento Portland composto CP II-32 | C89: KG | D89: 454.58 | E89: 0.4465 | F89: 202.96997 | H89: 0
B90: Servente com encargos complementares | C90: H | D90: 11.02 | E90: 16.3115 | F90: 179.75273 | H90: 0
B91: CARGA, MANOBRA E DESCARGA DE SOLOS E MATERIAIS GRANULARES EM CAMINHÃO BASCULANTE 6 M³ - CARGA COM PÁ CARREGADEIRA (CAÇAMBA DE 1,7 A 2,8 M³ / 128 HP) E DESCARGA LIVRE (UNIDADE: M3). AF_07/2020 | C91: M3 | D91: =ROUND(1*D88,4) -> 1.35 | E91: 4.90785485 | F91: 6.625604047 | H91: 0
B92: TRANSPORTE COM CAMINHÃO BASCULANTE DE 6 M³, EM VIA URBANA PAVIMENTADA, DMT ATÉ 30 KM (UNIDADE: M3XKM). AF_07/2020 | C92: M3xKM | D92: =ROUND(D88*20,4) -> 27 | E92: 1.58719445 | F92: 42.85425015 | H92: 0
H93: 0
B94: Obs.: Considerando fornecedor de areia a 20 km do Senado Federal. | H94: 0
H95: 0
A96: ARGAMASSA TRAÇO 1:4 (EM VOLUME DE CIMENTO E AREIA MÉDIA ÚMIDA), PREPARO MANUAL. AF_08/2019 | C96: M3 | H96: 0
H97: 0
B98: Areia media - posto jazida/fornecedor (retirado na jazida, sem transporte) | C98: M3 | D98: 1.15 | E98: 93.8125 | F98: 107.884375 | G98: =SUM(F98:F102) -> 459.1858254 | H98: 0
B99: Cimento Portland composto CP II-32 | C99: KG | D99: 389.54 | E99: 0.4465 | F99: 173.92961 | H99: 0
B100: Servente com encargos complementares | C100: H | D100: 8.29 | E100: 16.3115 | F100: 135.222335 | H100: 0
B101: CARGA, MANOBRA E DESCARGA DE SOLOS E MATERIAIS GRANULARES EM CAMINHÃO BASCULANTE 6 M³ - CARGA COM PÁ CARREGADEIRA (CAÇAMBA DE 1,7 A 2,8 M³ / 128 HP) E DESCARGA LIVRE (UNIDADE: M3). AF_07/2020 | C101: M3 | D101: =ROUND(1*D98,4) -> 1.15 | E101: 4.90785485 | F101: 5.644033077 | H101: 0
B102: TRANSPORTE COM CAMINHÃO BASCULANTE DE 6 M³, EM VIA URBANA PAVIMENTADA, DMT ATÉ 30 KM (UNIDADE: M3XKM). AF_07/2020 | C102: M3xKM | D102: =ROUND(D98*20,4) -> 23 | E102: 1.58719445 | F102: 36.50547235 | H102: 0
H103: 0
B104: Obs.: Considerando fornecedor de areia a 20 km do Senado Federal. | H104: 0
H105: 0
A106: Fixação de tubos verticais de PPR diâmetros menores ou iguais a 40 mm com abraçadeira metálica rígida tipo D 1/2", fixada em perfilado em alvenaria. af_05/2015 | C106: M | H106: 0
H107: 0
B108: Abracadeira em aco para amarracao de eletrodutos, tipo D, com 1/2" e parafuso de fixacao | C108: UN | D108: 0.333 | E108: 1.0355 | F108: 0.3448215 | G108: =SUM(F108:F110) -> 1.1860465 | H108: 0
B109: Auxiliar de encanador ou bombeiro hidráulico com encargos complementares | C109: H | D109: 0.005 | E109: 16.891 | F109: 0.084455 | H109: 0
B110: Encanador ou bombeiro hidráulico com encargos complementares | C110: H | D110: 0.035 | E110: 21.622 | F110: 0.75677 | H110: 0
H111: 0
A112: Luva de emenda para eletroduto, aço galvanizado, DN 20 mm (3/4''), aparente, instalada em parede - fornecimento e instalação. af_11/2016_p | C112: UN | H112: 0
H113: 0
B114: Luva para eletroduto, em aco galvanizado eletrolitico, diametro de 20 mm (3/4") | C114: UN | D114: 1 | E114: 1.3585 | F114: 1.3585 | G114: =SUM(F114:F116) -> 8.5996318 | H114: 0
B115: Auxiliar de eletricista com encargos complementares | C115: H | D115: 0.1827 | E115: 17.366 | F115: 3.1727682 | H115: 0
B116: Eletricista com encargos complementares | C116: H | D116: 0.1827 | E116: 22.268 | F116: 4.0683636 | H116: 0
H117: 0
A118: Luva de emenda para eletroduto, aço galvanizado, DN 25 mm (1''), aparente, instalada em parede - fornecimento e instalação. af_11/2016_p | C118: UN | H118: 0
H119: 0
B120: Luva para eletroduto, em aco galvanizado eletrolitico, diametro de 25 mm (1") | C120: UN | D120: 1 | E120: 1.577 | F120: 1.577 | G120: =SUM(F120:F122) -> 9.6345922 | H120: 0
B121: Auxiliar de eletricista com encargos complementares | C121: H | D121: 0.2033 | E121: 17.366 | F121: 3.5305078 | H121: 0
B122: Eletricista com encargos complementares | C122: H | D122: 0.2033 | E122: 22.268 | F122: 4.5270844 | H122: 0
H123: 0
A124: Luva de emenda para eletroduto, aço galvanizado, DN 32 mm (1 1/4''), aparente, instalada em parede - fornecimento e instalação. af_11/2016_p | C124: UN | H124: 0
H125: 0
B126: Luva para eletroduto, em aco galvanizado eletrolitico, diametro de 32 mm (1 1/4") | C126: UN | D126: 1 | E126: 2.8025 | F126: 2.8025 | G126: =SUM(F126:F128) -> 12.0055148 | H126: 0
B127: Auxiliar de eletricista com encargos complementares | C127: H | D127: 0.2322 | E127: 17.366 | F127: 4.0323852 | H127: 0
B128: Eletricista com encargos complementares | C128: H | D128: 0.2322 | E128: 22.268 | F128: 5.1706296 | H128: 0
H129: 0
A130: Luva de emenda para eletroduto, aço galvanizado, DN 40 mm (1 1/2''), aparente, instalada em parede - fornecimento e instalação. af_11/2016_p | C130: UN | H130: 0
H131: 0
B132: Luva para eletroduto, em aco galvanizado eletrolitico, diametro de 40 mm (1 1/2") | C132: UN | D132: 1 | E132: 4.0565 | F132: 4.0565 | G132: =SUM(F132:F134) -> 14.5634734 | H132: 0
B133: Auxiliar de eletricista com encargos complementares | C133: H | D133: 0.2651 | E133: 17.366 | F133: 4.6037266 | H133: 0
B134: Eletricista com encargos complementares | C134: H | D134: 0.2651 | E134: 22.268 | F134: =IF(ISNUMBER(E134),E134*$D134,"") -> 5.9032468 | H134: 0
H135: 0
A136: Luva de emenda para eletroduto, aço galvanizado, DN 50 mm (2''), aparente, instalada em parede - fornecimento e instalação. af_11/2016_p | C136: UN | H136: 143.9856
H137: 143.9856
B138: Luva para eletroduto, em aco galvanizado eletrolitico, diametro de 50 mm (2") | C138: UN | D138: 1 | E138: 5.662 | F138: 5.662 | G138: =SUM(F138:F140) -> 16.1689734 | H138: 143.9856
B139: Auxiliar de eletricista com encargos complementares | C139: H | D139: 0.2651 | E139: 17.366 | F139: 4.6037266 | H139: 143.9856
B140: Eletricista com encargos complementares | C140: H | D140: 0.2651 | E140: 22.268 | F140: 5.9032468 | H140: 143.9856
H141: 143.9856
A142: Fixação de tubos verticais de PPR diâmetros maiores que 40 mm e menores ou iguais a 75 mm com abraçadeira metálica rígida tipo D 1 1/2", fixada em perfilado em alvenaria. af_05/2015 | C142: M | H142: 0
H143: 0
B144: Abracadeira em aco para amarracao de eletrodutos, tipo D, com 1 1/2" e parafuso de fixacao | C144: UN | D144: 0.333 | E144: 2.128 | F144: 0.708624 | G144: =SUM(F144:F146) -> 2.309317 | H144: 0
B145: Auxiliar de encanador ou bombeiro hidráulico com encargos complementares | C145: H | D145: 0.009 | E145: 16.891 | F145: 0.152019 | H145: 0
B146: Encanador ou bombeiro hidráulico com encargos complementares | C146: H | D146: 0.067 | E146: 21.622 | F146: 1.448674 | H146: 0
H147: 0
A148: Fixação de tubos verticais de PPR diâmetros maiores que 40 mm e menores ou iguais a 75 mm com abraçadeira metálica rígida tipo D 2", fixada em perfilado em alvenaria. af_05/2015 | C148: M | H148: 864
H149: 864
B150: Abracadeira em aco para amarracao de eletrodutos, tipo D, com 2" e parafuso de fixacao | C150: UN | D150: 0.333 | E150: 2.356 | F150: 0.784548 | G150: =SUM(F150:F152) -> 2.385241 | H150: 864
B151: Auxiliar de encanador ou bombeiro hidráulico com encargos complementares | C151: H | D151: 0.009 | E151: 16.891 | F151: 0.152019 | H151: 864
B152: Encanador ou bombeiro hidráulico com encargos complementares | C152: H | D152: 0.067 | E152: 21.622 | F152: 1.448674 | H152: 864
H153: 864
A154: ARGAMASSA TRAÇO 1:2:9 (EM VOLUME DE CIMENTO, CAL E AREIA MÉDIA ÚMIDA) PARA EMBOÇO/MASSA ÚNICA/ASSENTAMENTO DE ALVENARIA DE VEDAÇÃO, PREPARO MECÂNICO COM BETONEIRA 600 L. AF_08/2019 | C154: M3 | H154: 0
H155: 0
B156: Areia media - posto jazida/fornecedor (retirado na jazida, sem transporte) | C156: M3 | D156: 1.18 | E156: 93.8125 | F156: 110.69875 | G156: =SUM(F156:F164) -> 430.9299977 | H156: 0
B157: Cal hidratada CH-I para argamassas | C157: KG | D157: 157.44 | E157: 0.76 | F157: 119.6544 | H157: 0
B158: Cimento Portland composto CP II-32 | C158: KG | D158: 177.12 | E158: 0.4465 | F158: 79.08408 | H158: 0
B159: Servente com encargos complementares | C159: H | D159: 0.79 | E159: 16.3115 | F159: 12.886085 | H159: 0
B160: Operador de betoneira estacionária/misturador com encargos complementares | C160: H | D160: 3.65 | E160: 16.5015 | F160: 60.230475 | H160: 0
B161: Betoneira capacidade nominal de 600 L, capacidade de mistura 360 L, motor elétrico trifásico potência de 4 cv, sem carregador - CHP diurno. af_11/2014 | C161: CHP | D161: 0.85 | E161: 3.059 | F161: 2.60015 | H161: 0
B162: Betoneira capacidade nominal de 600 L, capacidade de mistura 360 L, motor elétrico trifásico potência de 4 cv, sem carregador - CHI diurno. af_11/2014 | C162: CHI | D162: 2.8 | E162: 0.9025 | F162: 2.527 | H162: 0
B163: CARGA, MANOBRA E DESCARGA DE SOLOS E MATERIAIS GRANULARES EM CAMINHÃO BASCULANTE 6 M³ - CARGA COM PÁ CARREGADEIRA (CAÇAMBA DE 1,7 A 2,8 M³ / 128 HP) E DESCARGA LIVRE (UNIDADE: M3). AF_07/2020 | C163: M3 | D163: =ROUND(1*D156,4) -> 1.18 | E163: 4.90785485 | F163: 5.791268723 | H163: 0
B164: TRANSPORTE COM CAMINHÃO BASCULANTE DE 6 M³, EM VIA URBANA PAVIMENTADA, DMT ATÉ 30 KM (UNIDADE: M3XKM). AF_07/2020 | C164: M3xKM | D164: =ROUND(D156*20,4) -> 23.6 | E164: 1.58719445 | F164: 37.45778902 | H164: 0
H165: 0
B166: Obs.: Considerando fornecedor de areia a 20 km do Senado Federal. | H166: 0
H167: 0
A168: ARGAMASSA TRAÇO 1:4 (EM VOLUME DE CIMENTO E AREIA MÉDIA ÚMIDA) PARA CONTRAPISO, PREPARO MECÂNICO COM BETONEIRA 400 L. AF_08/2019 | C168: M3 | H168: 0
H169: 0
B170: Areia media - posto jazida/fornecedor (retirado na jazida, sem transporte) | C170: M3 | D170: 1.36 | E170: 93.8125 | F170: 127.585 | G170: =SUM(F170:F176) -> 464.8340166 | H170: 0
B171: Cimento Portland composto CP II-32 | C171: KG | D171: 459.85 | E171: 0.4465 | F171: 205.323025 | H171: 0
B172: Operador de betoneira estacionária/misturador com encargos complementares | C172: H | D172: 4.85 | E172: 16.5015 | F172: 80.032275 | H172: 0
B173: Betoneira capacidade nominal de 400 L, capacidade de mistura 280 L, motor elétrico trifásico potência de 2 cv, sem carregador - CHP diurno. af_10/2014 | C173: CHP | D173: 1.13 | E173: 1.0925 | F173: 1.234525 | H173: 0
B174: Betoneira capacidade nominal de 400 L, capacidade de mistura 280 L, motor elétrico trifásico potência de 2 cv, sem carregador - CHI diurno. af_10/2014 | C174: CHI | D174: 3.72 | E174: 0.2185 | F174: 0.81282 | H174: 0
B175: CARGA, MANOBRA E DESCARGA DE SOLOS E MATERIAIS GRANULARES EM CAMINHÃO BASCULANTE 6 M³ - CARGA COM PÁ CARREGADEIRA (CAÇAMBA DE 1,7 A 2,8 M³ / 128 HP) E DESCARGA LIVRE (UNIDADE: M3). AF_07/2020 | C175: M3 | D175: =ROUND(1*D170,4) -> 1.36 | E175: 4.90785485 | F175: 6.674682596 | H175: 0
B176: TRANSPORTE COM CAMINHÃO BASCULANTE DE 6 M³, EM VIA URBANA PAVIMENTADA, DMT ATÉ 30 KM (UNIDADE: M3XKM). AF_07/2020 | C176: M3xKM | D176: =ROUND(D170*20,4) -> 27.2 | E176: 1.58719445 | F176: 43.17168904 | H176: 0
H177: 0
B178: Obs.: Considerando fornecedor de areia a 20 km do Senado Federal. | H178: 0
H179: 0
A180: UMIDIFICAÇÃO DE MATERIAL PARA VALAS COM CAMINHÃO PIPA 10000L. AF_11/2016 | C180: M3 | H180: 1380
H181: 1380
B182: CAMINHÃO PIPA 10.000 L TRUCADO, PESO BRUTO TOTAL 23.000 KG, CARGA ÚTIL MÁXIMA 15.935 KG, DISTÂNCIA ENTRE EIXOS 4,8 M, POTÊNCIA 230 CV, INCLUSIVE TANQUE DE AÇO PARA TRANSPORTE DE ÁGUA - CHP DIURNO. AF_06/2014 | C182: CHP | D182: 0.006 | E182: 164.578 | F182: 0.987468 | G182: =SUM(F182:F184) -> 1.23633 | H182: 1380
B183: CAMINHÃO PIPA 10.000 L TRUCADO, PESO BRUTO TOTAL 23.000 KG, CARGA ÚTIL MÁXIMA 15.935 KG, DISTÂNCIA ENTRE EIXOS 4,8 M, POTÊNCIA 230 CV, INCLUSIVE TANQUE DE AÇO PARA TRANSPORTE DE ÁGUA - CHI DIURNO. AF_06/2014 | C183: CHI | D183: 0.003 | E183: 34.0195 | F183: 0.1020585 | H183: 1380
B184: SERVENTE COM ENCARGOS COMPLEMENTARES | C184: H | D184: 0.009 | E184: 16.3115 | F184: 0.1468035 | H184: 1380
H185: 1380
A186: CORTE E DOBRA DE AÇO CA-50, DIÂMETRO DE 8,0 MM, UTILIZADO EM ESTRUTURAS DIVERSAS, EXCETO LAJES. AF_12/2015 | C186: KG | H186: 0
H187: 0
B188: ACO CA-50, 8,0 MM, VERGALHAO | C188: KG | D188: 1.11 | E188: 5.871 | F188: 6.51681 | G188: =SUM(F188:F190) -> 7.0636756 | H188: 0
B189: AJUDANTE DE ARMADOR COM ENCARGOS COMPLEMENTARES | C189: H | D189: 0.0032 | E189: 17.081 | F189: 0.0546592 | H189: 0
B190: ARMADOR COM ENCARGOS COMPLEMENTARES | C190: H | D190: 0.0224 | E190: 21.9735 | F190: 0.4922064 | H190: 0
H191: 0
A192: CORTE E DOBRA DE AÇO CA-50, DIÂMETRO DE 12,5 MM, UTILIZADO EM ESTRUTURAS DIVERSAS, EXCETO LAJES. AF_12/2015 | C192: KG | H192: 0
H193: 0
B194: ACO CA-50, 12,5 MM OU 16,0 MM, VERGALHAO | C194: KG | D194: 1.11 | E194: 4.7975 | F194: 5.325225 | G194: =SUM(F194:F196) -> 5.4961205 | H194: 0
B195: AJUDANTE DE ARMADOR COM ENCARGOS COMPLEMENTARES | C195: H | D195: 0.001 | E195: 17.081 | F195: 0.017081 | H195: 0
B196: ARMADOR COM ENCARGOS COMPLEMENTARES | C196: H | D196: 0.007 | E196: 21.9735 | F196: 0.1538145 | H196: 0
H197: 0
A198: CORTE E DOBRA DE AÇO CA-50, DIÂMETRO DE 20,0 MM, UTILIZADO EM ESTRUTURAS DIVERSAS, EXCETO LAJES. AF_12/2015 | C198: KG | F198: =IF(ISNUMBER(E198),E198*$D198,"") ->  | H198: 0
H199: 0
B200: ACO CA-50, 20,0 MM OU 25,0 MM, VERGALHAO | C200: KG | D200: 1.14 | E200: 5.529 | F200: 6.30306 | G200: =SUM(F200:F201) -> 6.347007 | H200: 0
B201: ARMADOR COM ENCARGOS COMPLEMENTARES | C201: H | D201: 0.002 | E201: 21.9735 | F201: 0.043947 | H201: 0
... 225 more rows

Sheet Comp.Aux2
A1: =Composições!A1 -> Execução de infraestrutura e lançamento de fibra óptica para interligação entre os datacenters da Câmara dos Deputados e Senado Federal
A2: COMPOSIÇÕES DE CUSTO UNITÁRIO AUXILIARES DE 2º NÍVEL
A3: =Composições!A3 -> Data: dezembro de 2020
A5: DESCRIÇÃO | B5: DISCRIMINAÇÃO DA COMPOSIÇÃO | C5: UNIDADE | D5: COEFICIENTE | E5: CUSTO UNITÁRIO | F5: CUSTO TOTAL | G5: TOTAL | H5: QTD
A6: TRANSPORTE COM CAMINHÃO BASCULANTE DE 6 M³, EM VIA URBANA PAVIMENTADA, DMT ATÉ 30 KM (UNIDADE: M3XKM). AF_07/2020 | C6: M3xKM | F6: =IF(ISNUMBER(E6),ROUND(E6*$D6,2),"") ->  | H6: 648.761562
H7: 648.761562
B8: CAMINHÃO BASCULANTE 6 M3 TOCO, PESO BRUTO TOTAL 16.000 KG, CARGA ÚTIL MÁXIMA 11.130 KG, DISTÂNCIA ENTRE EIXOS 5,36 M, POTÊNCIA 185 CV, INCLUSIVE CAÇAMBA METÁLICA - CHP DIURNO. AF_06/2014 | C8: CHP | D8: 0.0139 | E8: 100.2155 | F8: 1.39 | G8: =SUM(F8:F9) -> 1.58 | H8: 648.761562
B9: CAMINHÃO BASCULANTE 6 M3 TOCO, PESO BRUTO TOTAL 16.000 KG, CARGA ÚTIL MÁXIMA 11.130 KG, DISTÂNCIA ENTRE EIXOS 5,36 M, POTÊNCIA 185 CV, INCLUSIVE CAÇAMBA METÁLICA - CHI DIURNO. AF_06/2014 | C9: CHI | D9: 0.006 | E9: 32.3665 | F9: 0.19 | H9: 648.761562
H10: 648.761562
A11: CORTE E DOBRA DE AÇO CA-60, DIÂMETRO DE 4,2 MM, UTILIZADO EM LAJE. AF_12/2015 | C11: KG | H11: 0
H12: 0
B13: ACO CA-60, 4,2 MM, OU 5,0 MM, OU 6,0 MM, OU 7,0 MM, VERGALHAO | C13: KG | D13: 1.07 | E13: 5.2345 | F13: 5.6 | G13: =SUM(F13:F15) -> 7.87 | H13: 0
B14: AJUDANTE DE ARMADOR COM ENCARGOS COMPLEMENTARES | C14: H | D14: 0.0131 | E14: 17.081 | F14: 0.22 | H14: 0
B15: ARMADOR COM ENCARGOS COMPLEMENTARES | C15: H | D15: 0.0933 | E15: 21.9735 | F15: 2.05 | H15: 0
H16: 0
A17: CARGA, MANOBRA E DESCARGA DE SOLOS E MATERIAIS GRANULARES EM CAMINHÃO BASCULANTE 6 M³ - CARGA COM PÁ CARREGADEIRA (CAÇAMBA DE 1,7 A 2,8 M³ / 128 HP) E DESCARGA LIVRE (UNIDADE: M3). AF_07/2020 | C17: M3 | H17: 32.4380781
H18: 32.4380781
B19: CAMINHÃO BASCULANTE 6 M3, PESO BRUTO TOTAL 16.000 KG, CARGA ÚTIL MÁXIMA 13.071 KG, DISTÂNCIA ENTRE EIXOS 4,80 M, POTÊNCIA 230 CV INCLUSIVE CAÇAMBA METÁLICA - CHP DIURNO. AF_06/2014 | C19: CHP | D19: 0.0083 | E19: 113.012 | F19: 0.94 | G19: =SUM(F19:F22) -> 4.90985525 | H19: 32.4380781
B20: PÁ CARREGADEIRA SOBRE RODAS, POTÊNCIA LÍQUIDA 128 HP, CAPACIDADE DA CAÇAMBA 1,7 A 2,8 M3, PESO OPERACIONAL 11632 KG - CHI DIURNO. AF_06/2014 | C20: CHI | D20: 0.0151 | E20: 42.1895 | F20: =IF(ISNUMBER(E20),E20*$D20,"") -> 0.63706145 | H20: 32.4380781
B21: CAMINHÃO BASCULANTE 6 M3 TOCO, PESO BRUTO TOTAL 16.000 KG, CARGA ÚTIL MÁXIMA 11.130 KG, DISTÂNCIA ENTRE EIXOS 5,36 M, POTÊNCIA 185 CV, INCLUSIVE CAÇAMBA METÁLICA - CHP DIURNO. AF_06/2014 | C21: CHP | D21: 0.0267 | E21: 100.2155 | F21: =IF(ISNUMBER(E21),E21*$D21,"") -> 2.67575385 | H21: 32.4380781
B22: CAMINHÃO BASCULANTE 6 M3 TOCO, PESO BRUTO TOTAL 16.000 KG, CARGA ÚTIL MÁXIMA 11.130 KG, DISTÂNCIA ENTRE EIXOS 5,36 M, POTÊNCIA 185 CV, INCLUSIVE CAÇAMBA METÁLICA - CHI DIURNO. AF_06/2014 | C22: CHI | D22: 0.0203 | E22: 32.3665 | F22: =IF(ISNUMBER(E22),E22*$D22,"") -> 0.65703995 | H22: 32.4380781
F23: =IF(ISNUMBER(E23),ROUND(E23*$D23,2),"") ->  | H23: 32.4380781
A24: ARGAMASSA TRAÇO 1:4 (EM VOLUME DE CIMENTO E AREIA MÉDIA ÚMIDA) PARA CONTRAPISO, PREPARO MECÂNICO COM BETONEIRA 400 L. AF_08/2019 | C24: M3 | H24: 0
H25: 0
B26: Areia media - posto jazida/fornecedor (retirado na jazida, sem transporte) | C26: M3 | D26: 1.36 | E26: 93.8125 | F26: 127.59 | G26: =SUM(F26:F36) -> 464.8171541 | H26: 0
B27: Cimento Portland composto CP II-32 | C27: KG | D27: 459.85 | E27: 0.4465 | F27: 205.32 | H27: 0
B28: Operador de betoneira estacionária/misturador com encargos complementares | C28: H | D28: 4.85 | E28: 16.5015 | F28: 80.03 | H28: 0
B29: Betoneira capacidade nominal de 400 L, capacidade de mistura 280 L, motor elétrico trifásico potência de 2 cv, sem carregador - CHP diurno. af_10/2014 | C29: CHP | D29: 1.13 | E29: 1.0925 | F29: 1.23 | H29: 0
B30: Betoneira capacidade nominal de 400 L, capacidade de mistura 280 L, motor elétrico trifásico potência de 2 cv, sem carregador - CHI diurno. af_10/2014 | C30: CHI | D30: 3.72 | E30: 0.2185 | F30: 0.81 | H30: 0
B31: PÁ CARREGADEIRA SOBRE RODAS, POTÊNCIA LÍQUIDA 128 HP, CAPACIDADE DA CAÇAMBA 1,7 A 2,8 M3, PESO OPERACIONAL 11632 KG - CHP DIURNO. AF_06/2014 | C31: CHP | D31: =ROUND(0.0083*D26,4) -> 0.0113 | E31: 112.4895 | F31: =IF(ISNUMBER(E31),E31*$D31,"") -> 1.27113135 | H31: 0
B32: PÁ CARREGADEIRA SOBRE RODAS, POTÊNCIA LÍQUIDA 128 HP, CAPACIDADE DA CAÇAMBA 1,7 A 2,8 M3, PESO OPERACIONAL 11632 KG - CHI DIURNO. AF_06/2014 | C32: CHI | D32: =ROUND(0.0151*D26,4) -> 0.0205 | E32: 42.1895 | F32: =IF(ISNUMBER(E32),E32*$D32,"") -> 0.86488475 | H32: 0
B33: CAMINHÃO BASCULANTE 6 M3 TOCO, PESO BRUTO TOTAL 16.000 KG, CARGA ÚTIL MÁXIMA 11.130 KG, DISTÂNCIA ENTRE EIXOS 5,36 M, POTÊNCIA 185 CV, INCLUSIVE CAÇAMBA METÁLICA - CHP DIURNO. AF_06/2014 | C33: CHP | D33: =ROUND(0.0267*D26,4) -> 0.0363 | E33: 100.2155 | F33: =IF(ISNUMBER(E33),E33*$D33,"") -> 3.63782265 | H33: 0
B34: CAMINHÃO BASCULANTE 6 M3 TOCO, PESO BRUTO TOTAL 16.000 KG, CARGA ÚTIL MÁXIMA 11.130 KG, DISTÂNCIA ENTRE EIXOS 5,36 M, POTÊNCIA 185 CV, INCLUSIVE CAÇAMBA METÁLICA - CHI DIURNO. AF_06/2014 | C34: CHI | D34: =ROUND(0.0203*D26,4) -> 0.0276 | E34: 32.3665 | F34: =IF(ISNUMBER(E34),E34*$D34,"") -> 0.8933154 | H34: 0
B35: CAMINHÃO BASCULANTE 6 M3 TOCO, PESO BRUTO TOTAL 16.000 KG, CARGA ÚTIL MÁXIMA 11.130 KG, DISTÂNCIA ENTRE EIXOS 5,36 M, POTÊNCIA 185 CV, INCLUSIVE CAÇAMBA METÁLICA - CHP DIURNO. AF_06/2014 | C35: CHP | D35: =ROUND(0.0139*20*D26,4) -> 0.3781 | E35: 100.2155 | F35: =IF(ISNUMBER(E35),ROUND(E35*$D35,2),"") -> 37.89 | H35: 0
B36: CAMINHÃO BASCULANTE 6 M3 TOCO, PESO BRUTO TOTAL 16.000 KG, CARGA ÚTIL MÁXIMA 11.130 KG, DISTÂNCIA ENTRE EIXOS 5,36 M, POTÊNCIA 185 CV, INCLUSIVE CAÇAMBA METÁLICA - CHI DIURNO. AF_06/2014 | C36: CHI | D36: =ROUND(0.006*20*D26,4) -> 0.1632 | E36: 32.3665 | F36: 5.28 | H36: 0
H37: 0
B38: Obs.: Considerando fornecedor de areia a 20 km do Senado Federal. | H38: 0
B39: Obs.2: Inclusão de composições (abertas) Sinapi 100973 e 97914. | H39: 0
A40: FABRICAÇÃO DE FÔRMA PARA PILARES E ESTRUTURAS SIMILARES, EM MADEIRA SERRADA, E=25 MM. AF_09/2020 | C40: M2 | H40: 8.74341
H41: 8.74341
B42: SARRAFO *2,5 X 7,5* CM EM PINUS, MISTA OU EQUIVALENTE DA REGIAO - BRUTA | C42: M | D42: 4.432 | E42: 1.7195 | F42: 7.62 | G42: =SUM(F42:F48) -> 119.23 | H42: 8.74341
B43: PREGO DE ACO POLIDO COM CABECA 17 X 21 (2 X 11) | C43: KG | D43: 0.086 | E43: 11.59 | F43: 1 | H43: 8.74341
B44: TABUA DE MADEIRA NAO APARELHADA *2,5 X 30* CM, CEDRINHO OU EQUIVALENTE DA REGIAO | C44: M | D44: 6.53 | E44: 13.7465 | F44: 89.76 | H44: 8.74341
B45: AJUDANTE DE CARPINTEIRO COM ENCARGOS COMPLEMENTARES | C45: H | D45: 0.143 | E45: 18.468 | F45: 2.64 | H45: 8.74341
B46: CARPINTEIRO DE FORMAS COM ENCARGOS COMPLEMENTARES | C46: H | D46: 0.715 | E46: 21.8785 | F46: 15.64 | H46: 8.74341
B47: SERRA CIRCULAR DE BANCADA COM MOTOR ELÉTRICO POTÊNCIA DE 5HP, COM COIFA PARA DISCO 10" - CHP DIURNO. AF_08/2015 | C47: CHP | D47: 0.05 | E47: 19.152 | F47: 0.96 | H47: 8.74341
B48: SERRA CIRCULAR DE BANCADA COM MOTOR ELÉTRICO POTÊNCIA DE 5HP, COM COIFA PARA DISCO 10" - CHI DIURNO. AF_08/2015 | C48: CHI | D48: 0.093 | E48: 17.328 | F48: 1.61 | H48: 8.74341
H49: 8.74341
A50: ARGAMASSA TRAÇO 1:3 (EM VOLUME DE CIMENTO E AREIA GROSSA ÚMIDA) PARA CHAPISCO CONVENCIONAL, PREPARO MECÂNICO COM BETONEIRA 400 L. AF_08/2019 | C50: M3 | H50: 0.95823
H51: 0.95823
B52: AREIA GROSSA - POSTO JAZIDA/FORNECEDOR (RETIRADO NA JAZIDA, SEM TRANSPORTE) | C52: M3 | D52: 0.95 | E52: 113.6675 | F52: 107.98 | G52: =SUM(F52:F65) -> 406.3421241 | H52: 0.95823
B53: CIMENTO PORTLAND COMPOSTO CP II-32 | C53: KG | D53: 426.49 | E53: 0.4465 | F53: 190.43 | H53: 0.95823
B54: OPERADOR DE BETONEIRA ESTACIONÁRIA/MISTURADOR COM ENCARGOS COMPLEMENTARES | C54: H | D54: 4.32 | E54: 16.5015 | F54: 71.29 | H54: 0.95823
B55: BETONEIRA CAPACIDADE NOMINAL DE 400 L, CAPACIDADE DE MISTURA 280 L, MOTOR ELÉTRICO TRIFÁSICO POTÊNCIA DE 2 CV, SEM CARREGADOR - CHP DIURNO. AF_10/2014 | C55: CHP | D55: 1.01 | E55: 1.0925 | F55: 1.1 | H55: 0.95823
B56: BETONEIRA CAPACIDADE NOMINAL DE 400 L, CAPACIDADE DE MISTURA 280 L, MOTOR ELÉTRICO TRIFÁSICO POTÊNCIA DE 2 CV, SEM CARREGADOR - CHI DIURNO. AF_10/2014 | C56: CHI | D56: 3.31 | E56: 0.2185 | F56: 0.72 | H56: 0.95823
B57: PÁ CARREGADEIRA SOBRE RODAS, POTÊNCIA LÍQUIDA 128 HP, CAPACIDADE DA CAÇAMBA 1,7 A 2,8 M3, PESO OPERACIONAL 11632 KG - CHP DIURNO. AF_06/2014 | C57: CHP | D57: =ROUND(0.0083*D52,4) -> 0.0079 | E57: 112.4895 | F57: =IF(ISNUMBER(E57),E57*$D57,"") -> 0.88866705 | H57: 0.95823
B58: PÁ CARREGADEIRA SOBRE RODAS, POTÊNCIA LÍQUIDA 128 HP, CAPACIDADE DA CAÇAMBA 1,7 A 2,8 M3, PESO OPERACIONAL 11632 KG - CHI DIURNO. AF_06/2014 | C58: CHI | D58: =ROUND(0.0151*D52,4) -> 0.0143 | E58: 42.1895 | F58: =IF(ISNUMBER(E58),E58*$D58,"") -> 0.60330985 | H58: 0.95823
B59: CAMINHÃO BASCULANTE 6 M3 TOCO, PESO BRUTO TOTAL 16.000 KG, CARGA ÚTIL MÁXIMA 11.130 KG, DISTÂNCIA ENTRE EIXOS 5,36 M, POTÊNCIA 185 CV, INCLUSIVE CAÇAMBA METÁLICA - CHP DIURNO. AF_06/2014 | C59: CHP | D59: =ROUND(0.0267*D52,4) -> 0.0254 | E59: 100.2155 | F59: =IF(ISNUMBER(E59),E59*$D59,"") -> 2.5454737 | H59: 0.95823
B60: CAMINHÃO BASCULANTE 6 M3 TOCO, PESO BRUTO TOTAL 16.000 KG, CARGA ÚTIL MÁXIMA 11.130 KG, DISTÂNCIA ENTRE EIXOS 5,36 M, POTÊNCIA 185 CV, INCLUSIVE CAÇAMBA METÁLICA - CHI DIURNO. AF_06/2014 | C60: CHI | D60: =ROUND(0.0203*D52,4) -> 0.0193 | E60: 32.3665 | F60: =IF(ISNUMBER(E60),E60*$D60,"") -> 0.62467345 | H60: 0.95823
B61: CAMINHÃO BASCULANTE 6 M3 TOCO, PESO BRUTO TOTAL 16.000 KG, CARGA ÚTIL MÁXIMA 11.130 KG, DISTÂNCIA ENTRE EIXOS 5,36 M, POTÊNCIA 185 CV, INCLUSIVE CAÇAMBA METÁLICA - CHP DIURNO. AF_06/2014 | C61: CHP | D61: =ROUND(0.0139*20*D52,4) -> 0.2641 | E61: 100.2155 | F61: =IF(ISNUMBER(E61),ROUND(E61*$D61,2),"") -> 26.47 | H61: 0.95823
B62: CAMINHÃO BASCULANTE 6 M3 TOCO, PESO BRUTO TOTAL 16.000 KG, CARGA ÚTIL MÁXIMA 11.130 KG, DISTÂNCIA ENTRE EIXOS 5,36 M, POTÊNCIA 185 CV, INCLUSIVE CAÇAMBA METÁLICA - CHI DIURNO. AF_06/2014 | C62: CHI | D62: =ROUND(0.006*20*D52,4) -> 0.114 | E62: 32.3665 | F62: =IF(ISNUMBER(E62),ROUND(E62*$D62,2),"") -> 3.69 | H62: 0.95823
F63: =IF(ISNUMBER(E63),ROUND(E63*$D63,2),"") ->  | H63: 0.95823
B64: Obs.: Considerando fornecedor de areia a 20 km do Senado Federal. | F64: =IF(ISNUMBER(E64),ROUND(E64*$D64,2),"") ->  | H64: 0.95823
B65: Obs.2: Inclusão de composições (abertas) Sinapi 100973 e 97914. | F65: =IF(ISNUMBER(E65),ROUND(E65*$D65,2),"") ->  | H65: 0.95823
F66: =IF(ISNUMBER(E66),ROUND(E66*$D66,2),"") ->  | H66: 0.95823
A67: ARGAMASSA TRAÇO 1:3 (EM VOLUME DE CIMENTO E AREIA GROSSA ÚMIDA) PARA CHAPISCO CONVENCIONAL, PREPARO MECÂNICO COM BETONEIRA 400 L. AF_08/2019 | C67: M3 | H67: 7.0279326
H68: 7.0279326
B69: AREIA MEDIA - POSTO JAZIDA/FORNECEDOR (RETIRADO NA JAZIDA, SEM TRANSPORTE) | C69: M3 | D69: 1.16 | E69: 93.8125 | F69: 108.82 | G69: =SUM(F69:F82) -> 446.5155087 | H69: 7.0279326
B70: CAL HIDRATADA CH-I PARA ARGAMASSAS | C70: KG | D70: 174.1 | E70: 0.76 | F70: 132.32 | H70: 7.0279326
B71: CIMENTO PORTLAND COMPOSTO CP II-32 | C71: KG | D71: 195.86 | E71: 0.4465 | F71: 87.45 | H71: 7.0279326
B72: OPERADOR DE BETONEIRA ESTACIONÁRIA/MISTURADOR COM ENCARGOS COMPLEMENTARES | C72: H | D72: 4.5 | E72: 16.5015 | F72: 74.26 | H72: 7.0279326
B73: BETONEIRA CAPACIDADE NOMINAL DE 400 L, CAPACIDADE DE MISTURA 280 L, MOTOR ELÉTRICO TRIFÁSICO POTÊNCIA DE 2 CV, SEM CARREGADOR - CHP DIURNO. AF_10/2014 | C73: CHP | D73: 1.05 | E73: 1.0925 | F73: 1.15 | H73: 7.0279326
B74: PÁ CARREGADEIRA SOBRE RODAS, POTÊNCIA LÍQUIDA 128 HP, CAPACIDADE DA CAÇAMBA 1,7 A 2,8 M3, PESO OPERACIONAL 11632 KG - CHP DIURNO. AF_06/2014 | C74: CHP | D74: =ROUND(0.0083*D69,4) -> 0.0096 | E74: 112.4895 | F74: =IF(ISNUMBER(E74),E74*$D74,"") -> 1.0798992 | H74: 7.0279326
B75: PÁ CARREGADEIRA SOBRE RODAS, POTÊNCIA LÍQUIDA 128 HP, CAPACIDADE DA CAÇAMBA 1,7 A 2,8 M3, PESO OPERACIONAL 11632 KG - CHI DIURNO. AF_06/2014 | C75: CHI | D75: =ROUND(0.0151*D69,4) -> 0.0175 | E75: 42.1895 | F75: =IF(ISNUMBER(E75),E75*$D75,"") -> 0.73831625 | H75: 7.0279326
B76: CAMINHÃO BASCULANTE 6 M3 TOCO, PESO BRUTO TOTAL 16.000 KG, CARGA ÚTIL MÁXIMA 11.130 KG, DISTÂNCIA ENTRE EIXOS 5,36 M, POTÊNCIA 185 CV, INCLUSIVE CAÇAMBA METÁLICA - CHP DIURNO. AF_06/2014 | C76: CHP | D76: =ROUND(0.0267*D69,4) -> 0.031 | E76: 100.2155 | F76: =IF(ISNUMBER(E76),E76*$D76,"") -> 3.1066805 | H76: 7.0279326
B77: CAMINHÃO BASCULANTE 6 M3 TOCO, PESO BRUTO TOTAL 16.000 KG, CARGA ÚTIL MÁXIMA 11.130 KG, DISTÂNCIA ENTRE EIXOS 5,36 M, POTÊNCIA 185 CV, INCLUSIVE CAÇAMBA METÁLICA - CHI DIURNO. AF_06/2014 | C77: CHI | D77: =ROUND(0.0203*D69,4) -> 0.0235 | E77: 32.3665 | F77: =IF(ISNUMBER(E77),E77*$D77,"") -> 0.76061275 | H77: 7.0279326
B78: CAMINHÃO BASCULANTE 6 M3 TOCO, PESO BRUTO TOTAL 16.000 KG, CARGA ÚTIL MÁXIMA 11.130 KG, DISTÂNCIA ENTRE EIXOS 5,36 M, POTÊNCIA 185 CV, INCLUSIVE CAÇAMBA METÁLICA - CHP DIURNO. AF_06/2014 | C78: CHP | D78: =ROUND(0.0139*20*D69,4) -> 0.3225 | E78: 100.2155 | F78: =IF(ISNUMBER(E78),ROUND(E78*$D78,2),"") -> 32.32 | H78: 7.0279326
B79: CAMINHÃO BASCULANTE 6 M3 TOCO, PESO BRUTO TOTAL 16.000 KG, CARGA ÚTIL MÁXIMA 11.130 KG, DISTÂNCIA ENTRE EIXOS 5,36 M, POTÊNCIA 185 CV, INCLUSIVE CAÇAMBA METÁLICA - CHI DIURNO. AF_06/2014 | C79: CHI | D79: =ROUND(0.006*20*D69,4) -> 0.1392 | E79: 32.3665 | F79: 4.51 | H79: 7.0279326
H80: 7.0279326
B81: Obs.: Considerando fornecedor de areia a 20 km do Senado Federal. | H81: 7.0279326
B82: Obs.2: Inclusão de composições (abertas) Sinapi 100973 e 97914. | H82: 7.0279326
H83: 7.0279326

Sheet Orçamentária
A1: Execução de infraestrutura e lançamento de fibra óptica para interligação entre os datacenters da Câmara dos Deputados e Senado Federal
A2: PLANILHA ORÇAMENTÁRIA
A3: Data: dezembro de 2020
I4: Não desonerado | J4: Data-base SINAPI
A5: ITEM | B5: DESCRIÇÃO | C5: TIPO | D5: UNIDADE | E5: QUANTIDADE | F5: CUSTO UNITÁRIO | G5: CUSTO DIRETO | H5: BDI (%) | I5: PREÇO UNITÁRIO COM BDI | J5: CUSTO TOTAL
A6: SF-00001 | B6: Engenheiro(a) /Arquiteto(a) júnior | C6: Mão-de-Obra | D6: hh | E6: 176 | F6: =OFFSET(INDEX(Composições!A:J,MATCH(Orçamentária!A6,Composições!A:A,0),8),2,0) -> 83.448 | G6: =IF(ISNUMBER(F6),ROUND(E6*F6,2),"") -> 14686.85 | H6: =BDI!$B$17 -> 0.191 | I6: =IF(ISNUMBER(F6),ROUND(F6*(1+H6),2),"") -> 99.39 | J6: =IF(ISNUMBER(F6),ROUND(I6*E6,2),"") -> 17492.64
A7: SF-00002 | B7: Mestre de obras | C7: Mão-de-Obra | D7: hh | E7: 0 | F7: =OFFSET(INDEX(Composições!A:J,MATCH(Orçamentária!A7,Composições!A:A,0),8),2,0) -> 26.2485 | G7: =IF(ISNUMBER(F7),ROUND(E7*F7,2),"") -> 0 | H7: =IF(A7<>"",IF(AND(#REF!="Padrão",$I$4=#REF!),BDI!$B$17,IF(AND(#REF!="Padrão",$I$4=#REF!),BDI!$C$17,IF(AND(#REF!="Diferenciado",$I$4=#REF!),BDI!$G$17,IF(AND(#REF!="Diferenciado",$I$4=#REF!),BDI!$H$17,IF(#REF!="ZERO",0))))),"") ->  | I7: =IF(ISNUMBER(F7),ROUND(F7*(1+H7),2),"") ->  | J7: =IF(ISNUMBER(F7),ROUND(I7*E7,2),"") -> 
A8: SF-00003 | B8: Planejamento físico-financeiro | C8: Serviço (Mat + MO) | D8: un | E8: 1 | F8: =OFFSET(INDEX(Composições!A:J,MATCH(Orçamentária!A8,Composições!A:A,0),8),2,0) -> 1516.96 | G8: 1516.96 | H8: =BDI!$B$17 -> 0.191 | I8: 1806.7 | J8: 1806.7
A9: SF-00004 | B9: Projetos de segurança do trabalho | C9: Serviço (Mat + MO) | D9: un | E9: 1 | F9: =OFFSET(INDEX(Composições!A:J,MATCH(Orçamentária!A9,Composições!A:A,0),8),2,0) -> 2136.41 | G9: 2136.41 | H9: =BDI!$B$17 -> 0.191 | I9: 2544.46 | J9: 2544.46
A10: SF-00005 | B10: Demolição de alvenarias | C10: Serviço (Mat + MO) | D10: m3 | E10: 0 | F10: =OFFSET(INDEX(Composições!A:J,MATCH(Orçamentária!A10,Composições!A:A,0),8),2,0) -> 42.8906627 | G10: 0 | H10: =IF(A10<>"",IF(AND(#REF!="Padrão",$I$4=#REF!),BDI!$B$17,IF(AND(#REF!="Padrão",$I$4=#REF!),BDI!$C$17,IF(AND(#REF!="Diferenciado",$I$4=#REF!),BDI!$G$17,IF(AND(#REF!="Diferenciado",$I$4=#REF!),BDI!$H$17,IF(#REF!="ZERO",0))))),"") -> 
A11: SF-00006 | B11: Demolição de concreto simples | C11: Serviço (Mat + MO) | D11: m3 | E11: 0 | F11: =OFFSET(INDEX(Composições!A:J,MATCH(Orçamentária!A11,Composições!A:A,0),8),2,0) -> 240.76325 | G11: 0 | H11: =IF(A11<>"",IF(AND(#REF!="Padrão",$I$4=#REF!),BDI!$B$17,IF(AND(#REF!="Padrão",$I$4=#REF!),BDI!$C$17,IF(AND(#REF!="Diferenciado",$I$4=#REF!),BDI!$G$17,IF(AND(#REF!="Diferenciado",$I$4=#REF!),BDI!$H$17,IF(#REF!="ZERO",0))))),"") -> 
A12: SF-00007 | B12: Demolição de contrapiso | C12: Serviço (Mat + MO) | D12: m2 | E12: 0 | F12: =OFFSET(INDEX(Composições!A:J,MATCH(Orçamentária!A12,Composições!A:A,0),8),2,0) -> 11.41805 | G12: 0 | H12: =IF(A12<>"",IF(AND(#REF!="Padrão",$I$4=#REF!),BDI!$B$17,IF(AND(#REF!="Padrão",$I$4=#REF!),BDI!$C$17,IF(AND(#REF!="Diferenciado",$I$4=#REF!),BDI!$G$17,IF(AND(#REF!="Diferenciado",$I$4=#REF!),BDI!$H$17,IF(#REF!="ZERO",0))))),"") -> 
A13: SF-00008 | B13: Demolição de fechamento ou parede em gesso acartonado | C13: Serviço (Mat + MO) | D13: m2 | E13: 0 | F13: =OFFSET(INDEX(Composições!A:J,MATCH(Orçamentária!A13,Composições!A:A,0),8),2,0) -> 5.79771415 | G13: 0 | H13: =IF(A13<>"",IF(AND(#REF!="Padrão",$I$4=#REF!),BDI!$B$17,IF(AND(#REF!="Padrão",$I$4=#REF!),BDI!$C$17,IF(AND(#REF!="Diferenciado",$I$4=#REF!),BDI!$G$17,IF(AND(#REF!="Diferenciado",$I$4=#REF!),BDI!$H$17,IF(#REF!="ZERO",0))))),"") -> 
A14: SF-00009 | B14: Demolição de forro de gesso | C14: Serviço (Mat + MO) | D14: m2 | E14: 0 | F14: =OFFSET(INDEX(Composições!A:J,MATCH(Orçamentária!A14,Composições!A:A,0),8),2,0) -> 1.26180045 | G14: 0 | H14: =IF(A14<>"",IF(AND(#REF!="Padrão",$I$4=#REF!),BDI!$B$17,IF(AND(#REF!="Padrão",$I$4=#REF!),BDI!$C$17,IF(AND(#REF!="Diferenciado",$I$4=#REF!),BDI!$G$17,IF(AND(#REF!="Diferenciado",$I$4=#REF!),BDI!$H$17,IF(#REF!="ZERO",0))))),"") -> 
A15: SF-00010 | B15: Demolição de infraestrutura elétrica (eletrodutos, eletrocalhas, cabos) | C15: Serviço (Mat + MO) | D15: m | E15: 0 | F15: =OFFSET(INDEX(Composições!A:J,MATCH(Orçamentária!A15,Composições!A:A,0),8),2,0) -> 2.602145 | G15: 0 | H15: =IF(A15<>"",IF(AND(#REF!="Padrão",$I$4=#REF!),BDI!$B$17,IF(AND(#REF!="Padrão",$I$4=#REF!),BDI!$C$17,IF(AND(#REF!="Diferenciado",$I$4=#REF!),BDI!$G$17,IF(AND(#REF!="Diferenciado",$I$4=#REF!),BDI!$H$17,IF(#REF!="ZERO",0))))),"") -> 
A16: SF-00011 | B16: Demolição de revestimento cerâmico, granito, mármore ou granitina | C16: Serviço (Mat + MO) | D16: m2 | E16: 0 | F16: =OFFSET(INDEX(Composições!A:J,MATCH(Orçamentária!A16,Composições!A:A,0),8),2,0) -> 9.4729934 | G16: 0 | H16: =IF(A16<>"",IF(AND(#REF!="Padrão",$I$4=#REF!),BDI!$B$17,IF(AND(#REF!="Padrão",$I$4=#REF!),BDI!$C$17,IF(AND(#REF!="Diferenciado",$I$4=#REF!),BDI!$G$17,IF(AND(#REF!="Diferenciado",$I$4=#REF!),BDI!$H$17,IF(#REF!="ZERO",0))))),"") -> 
A17: SF-00012 | B17: Demolição de revestimento em argamassa | C17: Serviço (Mat + MO) | D17: m2 | E17: 0 | F17: =OFFSET(INDEX(Composições!A:J,MATCH(Orçamentária!A17,Composições!A:A,0),8),2,0) -> 2.54367345 | G17: 0 | H17: =IF(A17<>"",IF(AND(#REF!="Padrão",$I$4=#REF!),BDI!$B$17,IF(AND(#REF!="Padrão",$I$4=#REF!),BDI!$C$17,IF(AND(#REF!="Diferenciado",$I$4=#REF!),BDI!$G$17,IF(AND(#REF!="Diferenciado",$I$4=#REF!),BDI!$H$17,IF(#REF!="ZERO",0))))),"") -> 
A18: SF-00013 | B18: Demolição de tubulação hidrossanitária embutida com conexões e acessórios | C18: Serviço (Mat + MO) | D18: m | E18: 0 | F18: =OFFSET(INDEX(Composições!A:J,MATCH(Orçamentária!A18,Composições!A:A,0),8),2,0) -> 0.3818772 | G18: 0 | H18: =IF(A18<>"",IF(AND(#REF!="Padrão",$I$4=#REF!),BDI!$B$17,IF(AND(#REF!="Padrão",$I$4=#REF!),BDI!$C$17,IF(AND(#REF!="Diferenciado",$I$4=#REF!),BDI!$G$17,IF(AND(#REF!="Diferenciado",$I$4=#REF!),BDI!$H$17,IF(#REF!="ZERO",0))))),"") -> 
A19: SF-00014 | B19: Demolição em concreto armado | C19: Serviço (Mat + MO) | D19: m3 | E19: 10 | F19: =OFFSET(INDEX(Composições!A:J,MATCH(Orçamentária!A19,Composições!A:A,0),8),2,0) -> 216.3409388 | G19: 2163.41 | H19: =BDI!$B$17 -> 0.191 | I19: 257.66 | J19: 2576.6
A20: SF-00015 | B20: Locação de caçambas | C20: Locação | D20: un | E20: 0 | H20: =IF(A20<>"",IF(AND(#REF!="Padrão",$I$4=#REF!),BDI!$B$17,IF(AND(#REF!="Padrão",$I$4=#REF!),BDI!$C$17,IF(AND(#REF!="Diferenciado",$I$4=#REF!),BDI!$G$17,IF(AND(#REF!="Diferenciado",$I$4=#REF!),BDI!$H$17,IF(#REF!="ZERO",0))))),"") -> 
A21: SF-00016 | B21: Remoção de armários | C21: Serviço (Mat + MO) | D21: m2 | E21: 0 | F21: =OFFSET(INDEX(Composições!A:J,MATCH(Orçamentária!A21,Composições!A:A,0),8),2,0) -> 13.3798 | G21: 0 | H21: =IF(A21<>"",IF(AND(#REF!="Padrão",$I$4=#REF!),BDI!$B$17,IF(AND(#REF!="Padrão",$I$4=#REF!),BDI!$C$17,IF(AND(#REF!="Diferenciado",$I$4=#REF!),BDI!$G$17,IF(AND(#REF!="Diferenciado",$I$4=#REF!),BDI!$H$17,IF(#REF!="ZERO",0))))),"") -> 
A22: SF-00017 | B22: Remoção de bancadas | C22: Serviço (Mat + MO) | D22: m2 | E22: 0 | F22: =OFFSET(INDEX(Composições!A:J,MATCH(Orçamentária!A22,Composições!A:A,0),8),2,0) -> 19.624625 | G22: 0 | H22: =IF(A22<>"",IF(AND(#REF!="Padrão",$I$4=#REF!),BDI!$B$17,IF(AND(#REF!="Padrão",$I$4=#REF!),BDI!$C$17,IF(AND(#REF!="Diferenciado",$I$4=#REF!),BDI!$G$17,IF(AND(#REF!="Diferenciado",$I$4=#REF!),BDI!$H$17,IF(#REF!="ZERO",0))))),"") -> 
A23: SF-00018 | B23: Remoção de batentes de madeira | C23: Serviço (Mat + MO) | D23: un | E23: 0 | F23: =OFFSET(INDEX(Composições!A:J,MATCH(Orçamentária!A23,Composições!A:A,0),8),2,0) -> 7.4081 | G23: 0 | H23: =IF(A23<>"",IF(AND(#REF!="Padrão",$I$4=#REF!),BDI!$B$17,IF(AND(#REF!="Padrão",$I$4=#REF!),BDI!$C$17,IF(AND(#REF!="Diferenciado",$I$4=#REF!),BDI!$G$17,IF(AND(#REF!="Diferenciado",$I$4=#REF!),BDI!$H$17,IF(#REF!="ZERO",0))))),"") -> 
A24: SF-00019 | B24: Remoção de canaleta em alumínio | C24: Serviço (Mat + MO) | D24: m | E24: 0 | F24: =OFFSET(INDEX(Composições!A:J,MATCH(Orçamentária!A24,Composições!A:A,0),8),2,0) -> 4.116825 | G24: 0 | H24: =IF(A24<>"",IF(AND(#REF!="Padrão",$I$4=#REF!),BDI!$B$17,IF(AND(#REF!="Padrão",$I$4=#REF!),BDI!$C$17,IF(AND(#REF!="Diferenciado",$I$4=#REF!),BDI!$G$17,IF(AND(#REF!="Diferenciado",$I$4=#REF!),BDI!$H$17,IF(#REF!="ZERO",0))))),"") -> 
A25: SF-00020 | B25: Remoção de carpete | C25: Serviço (Mat + MO) | D25: m2 | E25: 0 | F25: =OFFSET(INDEX(Composições!A:J,MATCH(Orçamentária!A25,Composições!A:A,0),8),2,0) -> 1.852025 | G25: 0 | H25: =IF(A25<>"",IF(AND(#REF!="Padrão",$I$4=#REF!),BDI!$B$17,IF(AND(#REF!="Padrão",$I$4=#REF!),BDI!$C$17,IF(AND(#REF!="Diferenciado",$I$4=#REF!),BDI!$G$17,IF(AND(#REF!="Diferenciado",$I$4=#REF!),BDI!$H$17,IF(#REF!="ZERO",0))))),"") -> 
A26: SF-00021 | B26: Remoção de cortinas | C26: Serviço (Mat + MO) | D26: m | E26: 0 | F26: =OFFSET(INDEX(Composições!A:J,MATCH(Orçamentária!A26,Composições!A:A,0),8),2,0) -> 3.22906235 | G26: 0 | H26: =IF(A26<>"",IF(AND(#REF!="Padrão",$I$4=#REF!),BDI!$B$17,IF(AND(#REF!="Padrão",$I$4=#REF!),BDI!$C$17,IF(AND(#REF!="Diferenciado",$I$4=#REF!),BDI!$G$17,IF(AND(#REF!="Diferenciado",$I$4=#REF!),BDI!$H$17,IF(#REF!="ZERO",0))))),"") -> 
A27: SF-00022 | B27: Remoção de difusores, grelhas e acessórios de climatização | C27: Serviço (Mat + MO) | D27: un | E27: 0 | F27: =OFFSET(INDEX(Composições!A:J,MATCH(Orçamentária!A27,Composições!A:A,0),8),2,0) -> 20.2692 | G27: 0 | H27: =IF(A27<>"",IF(AND(#REF!="Padrão",$I$4=#REF!),BDI!$B$17,IF(AND(#REF!="Padrão",$I$4=#REF!),BDI!$C$17,IF(AND(#REF!="Diferenciado",$I$4=#REF!),BDI!$G$17,IF(AND(#REF!="Diferenciado",$I$4=#REF!),BDI!$H$17,IF(#REF!="ZERO",0))))),"") -> 
A28: SF-00023 | B28: Remoção de divisória de mármore ou granito | C28: Serviço (Mat + MO) | D28: m2 | E28: 0 | F28: =OFFSET(INDEX(Composições!A:J,MATCH(Orçamentária!A28,Composições!A:A,0),8),2,0) -> 30.6261 | G28: 0 | H28: =IF(A28<>"",IF(AND(#REF!="Padrão",$I$4=#REF!),BDI!$B$17,IF(AND(#REF!="Padrão",$I$4=#REF!),BDI!$C$17,IF(AND(#REF!="Diferenciado",$I$4=#REF!),BDI!$G$17,IF(AND(#REF!="Diferenciado",$I$4=#REF!),BDI!$H$17,IF(#REF!="ZERO",0))))),"") -> 
A29: SF-00024 | B29: Remoção de divisórias de MDF e gesso acartonado | C29: Serviço (Mat + MO) | D29: m2 | E29: 0 | F29: =OFFSET(INDEX(Composições!A:J,MATCH(Orçamentária!A29,Composições!A:A,0),8),2,0) -> 26.2998 | G29: 0 | H29: =IF(A29<>"",IF(AND(#REF!="Padrão",$I$4=#REF!),BDI!$B$17,IF(AND(#REF!="Padrão",$I$4=#REF!),BDI!$C$17,IF(AND(#REF!="Diferenciado",$I$4=#REF!),BDI!$G$17,IF(AND(#REF!="Diferenciado",$I$4=#REF!),BDI!$H$17,IF(#REF!="ZERO",0))))),"") -> 
A30: SF-00025 | B30: Remoção de dutos/tubulações | C30: Serviço (Mat + MO) | D30: m | E30: 0 | F30: =OFFSET(INDEX(Composições!A:J,MATCH(Orçamentária!A30,Composições!A:A,0),8),2,0) -> 8.6773 | G30: 0 | H30: =IF(A30<>"",IF(AND(#REF!="Padrão",$I$4=#REF!),BDI!$B$17,IF(AND(#REF!="Padrão",$I$4=#REF!),BDI!$C$17,IF(AND(#REF!="Diferenciado",$I$4=#REF!),BDI!$G$17,IF(AND(#REF!="Diferenciado",$I$4=#REF!),BDI!$H$17,IF(#REF!="ZERO",0))))),"") -> 
A31: SF-00026 | B31: Remoção de esquadrias metálicas | C31: Serviço (Mat + MO) | D31: m2 | E31: 0 | F31: =OFFSET(INDEX(Composições!A:J,MATCH(Orçamentária!A31,Composições!A:A,0),8),2,0) -> 9.260125 | G31: 0 | H31: =IF(A31<>"",IF(AND(#REF!="Padrão",$I$4=#REF!),BDI!$B$17,IF(AND(#REF!="Padrão",$I$4=#REF!),BDI!$C$17,IF(AND(#REF!="Diferenciado",$I$4=#REF!),BDI!$G$17,IF(AND(#REF!="Diferenciado",$I$4=#REF!),BDI!$H$17,IF(#REF!="ZERO",0))))),"") -> 
A32: SF-00027 | B32: Remoção de exaustor | C32: Serviço (Mat + MO) | D32: un | E32: 0 | F32: =OFFSET(INDEX(Composições!A:J,MATCH(Orçamentária!A32,Composições!A:A,0),8),2,0) -> 6.6804 | G32: 0 | H32: =IF(A32<>"",IF(AND(#REF!="Padrão",$I$4=#REF!),BDI!$B$17,IF(AND(#REF!="Padrão",$I$4=#REF!),BDI!$C$17,IF(AND(#REF!="Diferenciado",$I$4=#REF!),BDI!$G$17,IF(AND(#REF!="Diferenciado",$I$4=#REF!),BDI!$H$17,IF(#REF!="ZERO",0))))),"") -> 
A33: SF-00028 | B33: Remoção de fechadura/puxador de porta | C33: Serviço (Mat + MO) | D33: un | E33: 0 | F33: =OFFSET(INDEX(Composições!A:J,MATCH(Orçamentária!A33,Composições!A:A,0),8),2,0) -> 5.479125 | G33: 0 | H33: =IF(A33<>"",IF(AND(#REF!="Padrão",$I$4=#REF!),BDI!$B$17,IF(AND(#REF!="Padrão",$I$4=#REF!),BDI!$C$17,IF(AND(#REF!="Diferenciado",$I$4=#REF!),BDI!$G$17,IF(AND(#REF!="Diferenciado",$I$4=#REF!),BDI!$H$17,IF(#REF!="ZERO",0))))),"") -> 
A34: SF-00029 | B34: Remoção de folha de porta e dobradiças | C34: Serviço (Mat + MO) | D34: un | E34: 0 | F34: =OFFSET(INDEX(Composições!A:J,MATCH(Orçamentária!A34,Composições!A:A,0),8),2,0) -> 7.11613555 | G34: 0 | H34: =IF(A34<>"",IF(AND(#REF!="Padrão",$I$4=#REF!),BDI!$B$17,IF(AND(#REF!="Padrão",$I$4=#REF!),BDI!$C$17,IF(AND(#REF!="Diferenciado",$I$4=#REF!),BDI!$G$17,IF(AND(#REF!="Diferenciado",$I$4=#REF!),BDI!$H$17,IF(#REF!="ZERO",0))))),"") -> 
A35: SF-00030 | B35: Remoção de laminado melamínico (LDAP), em PVC ou vinílico | C35: Serviço (Mat + MO) | D35: m2 | E35: 0 | F35: =OFFSET(INDEX(Composições!A:J,MATCH(Orçamentária!A35,Composições!A:A,0),8),2,0) -> 16.668225 | G35: 0 | H35: =IF(A35<>"",IF(AND(#REF!="Padrão",$I$4=#REF!),BDI!$B$17,IF(AND(#REF!="Padrão",$I$4=#REF!),BDI!$C$17,IF(AND(#REF!="Diferenciado",$I$4=#REF!),BDI!$G$17,IF(AND(#REF!="Diferenciado",$I$4=#REF!),BDI!$H$17,IF(#REF!="ZERO",0))))),"") -> 
A36: SF-00031 | B36: Remoção de louças | C36: Serviço (Mat + MO) | D36: un | E36: 0 | F36: =OFFSET(INDEX(Composições!A:J,MATCH(Orçamentária!A36,Composições!A:A,0),8),2,0) -> 9.4188662 | G36: 0 | H36: =IF(A36<>"",IF(AND(#REF!="Padrão",$I$4=#REF!),BDI!$B$17,IF(AND(#REF!="Padrão",$I$4=#REF!),BDI!$C$17,IF(AND(#REF!="Diferenciado",$I$4=#REF!),BDI!$G$17,IF(AND(#REF!="Diferenciado",$I$4=#REF!),BDI!$H$17,IF(#REF!="ZERO",0))))),"") -> 
A37: SF-00032 | B37: Remoção de luminária | C37: Serviço (Mat + MO) | D37: un | E37: 0 | F37: =OFFSET(INDEX(Composições!A:J,MATCH(Orçamentária!A37,Composições!A:A,0),8),2,0) -> 4.96543625 | G37: 0 | H37: =IF(A37<>"",IF(AND(#REF!="Padrão",$I$4=#REF!),BDI!$B$17,IF(AND(#REF!="Padrão",$I$4=#REF!),BDI!$C$17,IF(AND(#REF!="Diferenciado",$I$4=#REF!),BDI!$G$17,IF(AND(#REF!="Diferenciado",$I$4=#REF!),BDI!$H$17,IF(#REF!="ZERO",0))))),"") -> 
A38: SF-00033 | B38: Remoção de metais e acessórios | C38: Serviço (Mat + MO) | D38: un | E38: 0 | F38: =OFFSET(INDEX(Composições!A:J,MATCH(Orçamentária!A38,Composições!A:A,0),8),2,0) -> 6.8683271 | G38: 0 | H38: =IF(A38<>"",IF(AND(#REF!="Padrão",$I$4=#REF!),BDI!$B$17,IF(AND(#REF!="Padrão",$I$4=#REF!),BDI!$C$17,IF(AND(#REF!="Diferenciado",$I$4=#REF!),BDI!$G$17,IF(AND(#REF!="Diferenciado",$I$4=#REF!),BDI!$H$17,IF(#REF!="ZERO",0))))),"") -> 
A39: SF-00034 | B39: Remoção de painéis de vidro temperado | C39: Serviço (Mat + MO) | D39: m2 | E39: 0 | F39: =OFFSET(INDEX(Composições!A:J,MATCH(Orçamentária!A39,Composições!A:A,0),8),2,0) -> 13.43965 | G39: 0 | H39: =IF(A39<>"",IF(AND(#REF!="Padrão",$I$4=#REF!),BDI!$B$17,IF(AND(#REF!="Padrão",$I$4=#REF!),BDI!$C$17,IF(AND(#REF!="Diferenciado",$I$4=#REF!),BDI!$G$17,IF(AND(#REF!="Diferenciado",$I$4=#REF!),BDI!$H$17,IF(#REF!="ZERO",0))))),"") -> 
A40: SF-00035 | B40: Remoção de película | C40: Serviço (Mat + MO) | D40: m2 | E40: 0 | F40: =OFFSET(INDEX(Composições!A:J,MATCH(Orçamentária!A40,Composições!A:A,0),8),2,0) -> 8.2156 | G40: 0 | H40: =IF(A40<>"",IF(AND(#REF!="Padrão",$I$4=#REF!),BDI!$B$17,IF(AND(#REF!="Padrão",$I$4=#REF!),BDI!$C$17,IF(AND(#REF!="Diferenciado",$I$4=#REF!),BDI!$G$17,IF(AND(#REF!="Diferenciado",$I$4=#REF!),BDI!$H$17,IF(#REF!="ZERO",0))))),"") -> 
A41: SF-00036 | B41: Remoção de persianas | C41: Serviço (Mat + MO) | D41: m | E41: 0 | F41: =OFFSET(INDEX(Composições!A:J,MATCH(Orçamentária!A41,Composições!A:A,0),8),2,0) -> 3.22906235 | G41: 0 | H41: =IF(A41<>"",IF(AND(#REF!="Padrão",$I$4=#REF!),BDI!$B$17,IF(AND(#REF!="Padrão",$I$4=#REF!),BDI!$C$17,IF(AND(#REF!="Diferenciado",$I$4=#REF!),BDI!$G$17,IF(AND(#REF!="Diferenciado",$I$4=#REF!),BDI!$H$17,IF(#REF!="ZERO",0))))),"") -> 
A42: SF-00037 | B42: Remoção de pintura ou textura | C42: Serviço (Mat + MO) | D42: m2 | E42: 0 | F42: =OFFSET(INDEX(Composições!A:J,MATCH(Orçamentária!A42,Composições!A:A,0),8),2,0) -> 6.5246 | G42: 0 | H42: =IF(A42<>"",IF(AND(#REF!="Padrão",$I$4=#REF!),BDI!$B$17,IF(AND(#REF!="Padrão",$I$4=#REF!),BDI!$C$17,IF(AND(#REF!="Diferenciado",$I$4=#REF!),BDI!$G$17,IF(AND(#REF!="Diferenciado",$I$4=#REF!),BDI!$H$17,IF(#REF!="ZERO",0))))),"") -> 
A43: SF-00038 | B43: Remoção de placas de forro | C43: Serviço (Mat + MO) | D43: m2 | E43: 0 | F43: =OFFSET(INDEX(Composições!A:J,MATCH(Orçamentária!A43,Composições!A:A,0),8),2,0) -> 3.78540135 | G43: 0 | H43: =IF(A43<>"",IF(AND(#REF!="Padrão",$I$4=#REF!),BDI!$B$17,IF(AND(#REF!="Padrão",$I$4=#REF!),BDI!$C$17,IF(AND(#REF!="Diferenciado",$I$4=#REF!),BDI!$G$17,IF(AND(#REF!="Diferenciado",$I$4=#REF!),BDI!$H$17,IF(#REF!="ZERO",0))))),"") -> 
A44: SF-00039 | B44: Remoção de quadros de elétricos ou de telecomunicações | C44: Serviço (Mat + MO) | D44: un | E44: 0 | F44: =OFFSET(INDEX(Composições!A:J,MATCH(Orçamentária!A44,Composições!A:A,0),8),2,0) -> 58.216 | G44: 0 | H44: =IF(A44<>"",IF(AND(#REF!="Padrão",$I$4=#REF!),BDI!$B$17,IF(AND(#REF!="Padrão",$I$4=#REF!),BDI!$C$17,IF(AND(#REF!="Diferenciado",$I$4=#REF!),BDI!$G$17,IF(AND(#REF!="Diferenciado",$I$4=#REF!),BDI!$H$17,IF(#REF!="ZERO",0))))),"") -> 
A45: SF-00040 | B45: Remoção de revestimento acústico | C45: Serviço (Mat + MO) | D45: m2 | E45: 0 | F45: =OFFSET(INDEX(Composições!A:J,MATCH(Orçamentária!A45,Composições!A:A,0),8),2,0) -> 3.2623 | G45: 0 | H45: =IF(A45<>"",IF(AND(#REF!="Padrão",$I$4=#REF!),BDI!$B$17,IF(AND(#REF!="Padrão",$I$4=#REF!),BDI!$C$17,IF(AND(#REF!="Diferenciado",$I$4=#REF!),BDI!$G$17,IF(AND(#REF!="Diferenciado",$I$4=#REF!),BDI!$H$17,IF(#REF!="ZERO",0))))),"") -> 
A46: SF-00041 | B46: Remoção de rodapé/rodabanca de mármore ou granito | C46: Serviço (Mat + MO) | D46: m | E46: 0 | F46: =OFFSET(INDEX(Composições!A:J,MATCH(Orçamentária!A46,Composições!A:A,0),8),2,0) -> 1.4256251 | G46: 0 | H46: =IF(A46<>"",IF(AND(#REF!="Padrão",$I$4=#REF!),BDI!$B$17,IF(AND(#REF!="Padrão",$I$4=#REF!),BDI!$C$17,IF(AND(#REF!="Diferenciado",$I$4=#REF!),BDI!$G$17,IF(AND(#REF!="Diferenciado",$I$4=#REF!),BDI!$H$17,IF(#REF!="ZERO",0))))),"") -> 
A47: SF-00042 | B47: Remoção de rodapés de madeira | C47: Serviço (Mat + MO) | D47: m2 | E47: 0 | F47: =OFFSET(INDEX(Composições!A:J,MATCH(Orçamentária!A47,Composições!A:A,0),8),2,0) -> 5.8774125 | G47: 0 | H47: =IF(A47<>"",IF(AND(#REF!="Padrão",$I$4=#REF!),BDI!$B$17,IF(AND(#REF!="Padrão",$I$4=#REF!),BDI!$C$17,IF(AND(#REF!="Diferenciado",$I$4=#REF!),BDI!$G$17,IF(AND(#REF!="Diferenciado",$I$4=#REF!),BDI!$H$17,IF(#REF!="ZERO",0))))),"") -> 
A48: SF-00043 | B48: Remoção de soleira de mármore ou granito | C48: Serviço (Mat + MO) | D48: m | E48: 0 | F48: =OFFSET(INDEX(Composições!A:J,MATCH(Orçamentária!A48,Composições!A:A,0),8),2,0) -> 8.971325 | G48: 0 | H48: =IF(A48<>"",IF(AND(#REF!="Padrão",$I$4=#REF!),BDI!$B$17,IF(AND(#REF!="Padrão",$I$4=#REF!),BDI!$C$17,IF(AND(#REF!="Diferenciado",$I$4=#REF!),BDI!$G$17,IF(AND(#REF!="Diferenciado",$I$4=#REF!),BDI!$H$17,IF(#REF!="ZERO",0))))),"") -> 
A49: SF-00044 | B49: Remoção de split/fancolete/ACJ (equipamento unitário) | C49: Serviço (Mat + MO) | D49: un | E49: 0 | F49: =OFFSET(INDEX(Composições!A:J,MATCH(Orçamentária!A49,Composições!A:A,0),8),2,0) -> 40.5365 | G49: 0 | H49: =IF(A49<>"",IF(AND(#REF!="Padrão",$I$4=#REF!),BDI!$B$17,IF(AND(#REF!="Padrão",$I$4=#REF!),BDI!$C$17,IF(AND(#REF!="Diferenciado",$I$4=#REF!),BDI!$G$17,IF(AND(#REF!="Diferenciado",$I$4=#REF!),BDI!$H$17,IF(#REF!="ZERO",0))))),"") -> 
A50: SF-00045 | B50: Remoção de vidro comum / espelho | C50: Serviço (Mat + MO) | D50: m2 | E50: 0 | F50: =OFFSET(INDEX(Composições!A:J,MATCH(Orçamentária!A50,Composições!A:A,0),8),2,0) -> 13.5318 | G50: 0 | H50: =IF(A50<>"",IF(AND(#REF!="Padrão",$I$4=#REF!),BDI!$B$17,IF(AND(#REF!="Padrão",$I$4=#REF!),BDI!$C$17,IF(AND(#REF!="Diferenciado",$I$4=#REF!),BDI!$G$17,IF(AND(#REF!="Diferenciado",$I$4=#REF!),BDI!$H$17,IF(#REF!="ZERO",0))))),"") -> 
A51: SF-00046 | B51: Retirada de entulhos | C51: Serviço (Mat + MO) | D51: m3 | E51: 0 | F51: =OFFSET(INDEX(Composições!A:J,MATCH(Orçamentária!A51,Composições!A:A,0),8),2,0) -> 16.3115 | G51: 0 | H51: =IF(A51<>"",IF(AND(#REF!="Padrão",$I$4=#REF!),BDI!$B$17,IF(AND(#REF!="Padrão",$I$4=#REF!),BDI!$C$17,IF(AND(#REF!="Diferenciado",$I$4=#REF!),BDI!$G$17,IF(AND(#REF!="Diferenciado",$I$4=#REF!),BDI!$H$17,IF(#REF!="ZERO",0))))),"") -> 
A52: SF-00047 | B52: Absorvedor de energia para linha de vida | C52: Serviço (Mat + MO) | D52: un | E52: 0 | H52: =IF(A52<>"",IF(AND(#REF!="Padrão",$I$4=#REF!),BDI!$B$17,IF(AND(#REF!="Padrão",$I$4=#REF!),BDI!$C$17,IF(AND(#REF!="Diferenciado",$I$4=#REF!),BDI!$G$17,IF(AND(#REF!="Diferenciado",$I$4=#REF!),BDI!$H$17,IF(#REF!="ZERO",0))))),"") -> 
A53: SF-00048 | B53: Andaime fachadeiro | C53: Locação | D53: m2 x mês | E53: 0 | F53: =OFFSET(INDEX(Composições!A:J,MATCH(Orçamentária!A53,Composições!A:A,0),8),2,0) -> 3.7905 | G53: 0 | H53: =IF(A53<>"",IF(AND(#REF!="Padrão",$I$4=#REF!),BDI!$B$17,IF(AND(#REF!="Padrão",$I$4=#REF!),BDI!$C$17,IF(AND(#REF!="Diferenciado",$I$4=#REF!),BDI!$G$17,IF(AND(#REF!="Diferenciado",$I$4=#REF!),BDI!$H$17,IF(#REF!="ZERO",0))))),"") -> 
A54: SF-00049 | B54: Andaime tubular (aluguel/mês) | C54: Locação | D54: m x mês | E54: 0 | F54: =OFFSET(INDEX(Composições!A:J,MATCH(Orçamentária!A54,Composições!A:A,0),8),2,0) -> 11.4 | G54: 0 | H54: =IF(A54<>"",IF(AND(#REF!="Padrão",$I$4=#REF!),BDI!$B$17,IF(AND(#REF!="Padrão",$I$4=#REF!),BDI!$C$17,IF(AND(#REF!="Diferenciado",$I$4=#REF!),BDI!$G$17,IF(AND(#REF!="Diferenciado",$I$4=#REF!),BDI!$H$17,IF(#REF!="ZERO",0))))),"") -> 
A55: SF-00050 | B55: Cabo de aço com 8 mm de diâmetro galvanizado para linha de vida | C55: Serviço (Mat + MO) | D55: m | E55: 0 | H55: =IF(A55<>"",IF(AND(#REF!="Padrão",$I$4=#REF!),BDI!$B$17,IF(AND(#REF!="Padrão",$I$4=#REF!),BDI!$C$17,IF(AND(#REF!="Diferenciado",$I$4=#REF!),BDI!$G$17,IF(AND(#REF!="Diferenciado",$I$4=#REF!),BDI!$H$17,IF(#REF!="ZERO",0))))),"") -> 
A56: SF-00051 | B56: Corda de poliamida 12 mm tipo bombeiro, para trabalho em altura | C56: Serviço (Mat + MO) | D56: m | E56: 0 | F56: =OFFSET(INDEX(Composições!A:J,MATCH(Orçamentária!A56,Composições!A:A,0),8),2,0) -> 4.663075 | G56: 0 | H56: =IF(A56<>"",IF(AND(#REF!="Padrão",$I$4=#REF!),BDI!$B$17,IF(AND(#REF!="Padrão",$I$4=#REF!),BDI!$C$17,IF(AND(#REF!="Diferenciado",$I$4=#REF!),BDI!$G$17,IF(AND(#REF!="Diferenciado",$I$4=#REF!),BDI!$H$17,IF(#REF!="ZERO",0))))),"") -> 
A57: SF-00052 | B57: Ensaio de ponto de ancoragem existente | C57: Serviço (Mat + MO) | D57: un | E57: 0 | H57: =IF(A57<>"",IF(AND(#REF!="Padrão",$I$4=#REF!),BDI!$B$17,IF(AND(#REF!="Padrão",$I$4=#REF!),BDI!$C$17,IF(AND(#REF!="Diferenciado",$I$4=#REF!),BDI!$G$17,IF(AND(#REF!="Diferenciado",$I$4=#REF!),BDI!$H$17,IF(#REF!="ZERO",0))))),"") -> 
A58: SF-00053 | B58: Escadas de acesso para andaime tubular | C58: Locação | D58: m x mês | E58: 0 | H58: =IF(A58<>"",IF(AND(#REF!="Padrão",$I$4=#REF!),BDI!$B$17,IF(AND(#REF!="Padrão",$I$4=#REF!),BDI!$C$17,IF(AND(#REF!="Diferenciado",$I$4=#REF!),BDI!$G$17,IF(AND(#REF!="Diferenciado",$I$4=#REF!),BDI!$H$17,IF(#REF!="ZERO",0))))),"") -> 
A59: SF-00054 | B59: Esticador de cabo de aço | C59: Serviço (Mat + MO) | D59: un | E59: 0 | H59: =IF(A59<>"",IF(AND(#REF!="Padrão",$I$4=#REF!),BDI!$B$17,IF(AND(#REF!="Padrão",$I$4=#REF!),BDI!$C$17,IF(AND(#REF!="Diferenciado",$I$4=#REF!),BDI!$G$17,IF(AND(#REF!="Diferenciado",$I$4=#REF!),BDI!$H$17,IF(#REF!="ZERO",0))))),"") -> 
A60: SF-00055 | B60: Guarda-corpo com rodapé para andaime tubular | C60: Locação | D60: m x mês | E60: 0 | H60: =IF(A60<>"",IF(AND(#REF!="Padrão",$I$4=#REF!),BDI!$B$17,IF(AND(#REF!="Padrão",$I$4=#REF!),BDI!$C$17,IF(AND(#REF!="Diferenciado",$I$4=#REF!),BDI!$G$17,IF(AND(#REF!="Diferenciado",$I$4=#REF!),BDI!$H$17,IF(#REF!="ZERO",0))))),"") -> 
A61: SF-00056 | B61: Indicador de tensão | C61: Serviço (Mat + MO) | D61: un | E61: 0 | H61: =IF(A61<>"",IF(AND(#REF!="Padrão",$I$4=#REF!),BDI!$B$17,IF(AND(#REF!="Padrão",$I$4=#REF!),BDI!$C$17,IF(AND(#REF!="Diferenciado",$I$4=#REF!),BDI!$G$17,IF(AND(#REF!="Diferenciado",$I$4=#REF!),BDI!$H$17,IF(#REF!="ZERO",0))))),"") -> 
A62: SF-00057 | B62: Isolamento de obra com tela plástica com malha de 5mm e estrutura de madeira pontaleteada | C62: Serviço (Mat + MO) | D62: m2 | E62: 0 | F62: =OFFSET(INDEX(Composições!A:J,MATCH(Orçamentária!A62,Composições!A:A,0),8),2,0) -> 19.44365 | G62: 0 | H62: =IF(A62<>"",IF(AND(#REF!="Padrão",$I$4=#REF!),BDI!$B$17,IF(AND(#REF!="Padrão",$I$4=#REF!),BDI!$C$17,IF(AND(#REF!="Diferenciado",$I$4=#REF!),BDI!$G$17,IF(AND(#REF!="Diferenciado",$I$4=#REF!),BDI!$H$17,IF(#REF!="ZERO",0))))),"") -> 
A63: SF-00058 | B63: Suporte intermediário curvo para linha de vida | C63: Serviço (Mat + MO) | D63: un | E63: 0 | H63: =IF(A63<>"",IF(AND(#REF!="Padrão",$I$4=#REF!),BDI!$B$17,IF(AND(#REF!="Padrão",$I$4=#REF!),BDI!$C$17,IF(AND(#REF!="Diferenciado",$I$4=#REF!),BDI!$G$17,IF(AND(#REF!="Diferenciado",$I$4=#REF!),BDI!$H$17,IF(#REF!="ZERO",0))))),"") -> 
A64: SF-00059 | B64: Kit de linha de vida para escada de marinheiro | C64: Serviço (Mat + MO) | D64: un | E64: 0 | H64: =IF(A64<>"",IF(AND(#REF!="Padrão",$I$4=#REF!),BDI!$B$17,IF(AND(#REF!="Padrão",$I$4=#REF!),BDI!$C$17,IF(AND(#REF!="Diferenciado",$I$4=#REF!),BDI!$G$17,IF(AND(#REF!="Diferenciado",$I$4=#REF!),BDI!$H$17,IF(#REF!="ZERO",0))))),"") -> 
A65: SF-00060 | B65: Kit para montagem de dois olhais | C65: Serviço (Mat + MO) | D65: un | E65: 0 | H65: =IF(A65<>"",IF(AND(#REF!="Padrão",$I$4=#REF!),BDI!$B$17,IF(AND(#REF!="Padrão",$I$4=#REF!),BDI!$C$17,IF(AND(#REF!="Diferenciado",$I$4=#REF!),BDI!$G$17,IF(AND(#REF!="Diferenciado",$I$4=#REF!),BDI!$H$17,IF(#REF!="ZERO",0))))),"") -> 
A66: SF-00061 | B66: Manilha com travamento por porca e cupilha | C66: Serviço (Mat + MO) | D66: un | E66: 0 | H66: =IF(A66<>"",IF(AND(#REF!="Padrão",$I$4=#REF!),BDI!$B$17,IF(AND(#REF!="Padrão",$I$4=#REF!),BDI!$C$17,IF(AND(#REF!="Diferenciado",$I$4=#REF!),BDI!$G$17,IF(AND(#REF!="Diferenciado",$I$4=#REF!),BDI!$H$17,IF(#REF!="ZERO",0))))),"") -> 
A67: SF-00062 | B67: Pilar de ancoragem para linha de vida | C67: Serviço (Mat + MO) | D67: un | E67: 0 | H67: =IF(A67<>"",IF(AND(#REF!="Padrão",$I$4=#REF!),BDI!$B$17,IF(AND(#REF!="Padrão",$I$4=#REF!),BDI!$C$17,IF(AND(#REF!="Diferenciado",$I$4=#REF!),BDI!$G$17,IF(AND(#REF!="Diferenciado",$I$4=#REF!),BDI!$H$17,IF(#REF!="ZERO",0))))),"") -> 
A68: SF-00063 | B68: Piso metálico para andaime tubular | C68: Locação | D68: m2 x mês | E68: 0 | H68: =IF(A68<>"",IF(AND(#REF!="Padrão",$I$4=#REF!),BDI!$B$17,IF(AND(#REF!="Padrão",$I$4=#REF!),BDI!$C$17,IF(AND(#REF!="Diferenciado",$I$4=#REF!),BDI!$G$17,IF(AND(#REF!="Diferenciado",$I$4=#REF!),BDI!$H$17,IF(#REF!="ZERO",0))))),"") -> 
A69: SF-00064 | B69: Placa de ancoragem para extremidade | C69: Serviço (Mat + MO) | D69: un | E69: 0 | H69: =IF(A69<>"",IF(AND(#REF!="Padrão",$I$4=#REF!),BDI!$B$17,IF(AND(#REF!="Padrão",$I$4=#REF!),BDI!$C$17,IF(AND(#REF!="Diferenciado",$I$4=#REF!),BDI!$G$17,IF(AND(#REF!="Diferenciado",$I$4=#REF!),BDI!$H$17,IF(#REF!="ZERO",0))))),"") -> 
A70: SF-00065 | B70: Placa de ancoragem para montagem no pilar | C70: Serviço (Mat + MO) | D70: un | E70: 0 | H70: =IF(A70<>"",IF(AND(#REF!="Padrão",$I$4=#REF!),BDI!$B$17,IF(AND(#REF!="Padrão",$I$4=#REF!),BDI!$C$17,IF(AND(#REF!="Diferenciado",$I$4=#REF!),BDI!$G$17,IF(AND(#REF!="Diferenciado",$I$4=#REF!),BDI!$H$17,IF(#REF!="ZERO",0))))),"") -> 
A71: SF-00066 | B71: Ponto de ancoragem | C71: Serviço (Mat + MO) | D71: un | E71: 0 | G71: =IF(ISNUMBER(F71),ROUND(E71*F71,2),"") ->  | H71: =IF(A71<>"",IF(AND(#REF!="Padrão",$I$4=#REF!),BDI!$B$17,IF(AND(#REF!="Padrão",$I$4=#REF!),BDI!$C$17,IF(AND(#REF!="Diferenciado",$I$4=#REF!),BDI!$G$17,IF(AND(#REF!="Diferenciado",$I$4=#REF!),BDI!$H$17,IF(#REF!="ZERO",0))))),"") ->  | I71: =IF(ISNUMBER(F71),ROUND(F71*(1+H71),2),"") ->  | J71: =IF(ISNUMBER(F71),ROUND(I71*E71,2),"") -> 
A72: SF-00067 | B72: Sapatas e rodízios para andaime tubular | C72: Locação | D72: conj x mês | E72: 0 | H72: =IF(A72<>"",IF(AND(#REF!="Padrão",$I$4=#REF!),BDI!$B$17,IF(AND(#REF!="Padrão",$I$4=#REF!),BDI!$C$17,IF(AND(#REF!="Diferenciado",$I$4=#REF!),BDI!$G$17,IF(AND(#REF!="Diferenciado",$I$4=#REF!),BDI!$H$17,IF(#REF!="ZERO",0))))),"") -> 
A73: SF-00068 | B73: Sistema Guarda-corpo-Rodapé (GcR) metálico | C73: Locação | D73: m x mês | E73: 0 | H73: =IF(A73<>"",IF(AND(#REF!="Padrão",$I$4=#REF!),BDI!$B$17,IF(AND(#REF!="Padrão",$I$4=#REF!),BDI!$C$17,IF(AND(#REF!="Diferenciado",$I$4=#REF!),BDI!$G$17,IF(AND(#REF!="Diferenciado",$I$4=#REF!),BDI!$H$17,IF(#REF!="ZERO",0))))),"") -> 
A74: SF-00069 | B74: Suporte intermediário para linha de vida | C74: Serviço (Mat + MO) | D74: un | E74: 0 | H74: =IF(A74<>"",IF(AND(#REF!="Padrão",$I$4=#REF!),BDI!$B$17,IF(AND(#REF!="Padrão",$I$4=#REF!),BDI!$C$17,IF(AND(#REF!="Diferenciado",$I$4=#REF!),BDI!$G$17,IF(AND(#REF!="Diferenciado",$I$4=#REF!),BDI!$H$17,IF(#REF!="ZERO",0))))),"") -> 
A75: SF-00070 | B75: Tapume | C75: Serviço (Mat + MO) | D75: m2 | E75: 0 | F75: =OFFSET(INDEX(Composições!A:J,MATCH(Orçamentária!A75,Composições!A:A,0),8),2,0) -> 55.573917 | G75: 0 | H75: =IF(A75<>"",IF(AND(#REF!="Padrão",$I$4=#REF!),BDI!$B$17,IF(AND(#REF!="Padrão",$I$4=#REF!),BDI!$C$17,IF(AND(#REF!="Diferenciado",$I$4=#REF!),BDI!$G$17,IF(AND(#REF!="Diferenciado",$I$4=#REF!),BDI!$H$17,IF(#REF!="ZERO",0))))),"") -> 
A76: SF-00071 | B76: Trole para linha de vida horizontal | C76: Serviço (Mat + MO) | D76: un | E76: 0 | H76: =IF(A76<>"",IF(AND(#REF!="Padrão",$I$4=#REF!),BDI!$B$17,IF(AND(#REF!="Padrão",$I$4=#REF!),BDI!$C$17,IF(AND(#REF!="Diferenciado",$I$4=#REF!),BDI!$G$17,IF(AND(#REF!="Diferenciado",$I$4=#REF!),BDI!$H$17,IF(#REF!="ZERO",0))))),"") -> 
A77: SF-00072 | B77: Trole para travaqueda retrátil | C77: Serviço (Mat + MO) | D77: un | E77: 0 | H77: =IF(A77<>"",IF(AND(#REF!="Padrão",$I$4=#REF!),BDI!$B$17,IF(AND(#REF!="Padrão",$I$4=#REF!),BDI!$C$17,IF(AND(#REF!="Diferenciado",$I$4=#REF!),BDI!$G$17,IF(AND(#REF!="Diferenciado",$I$4=#REF!),BDI!$H$17,IF(#REF!="ZERO",0))))),"") -> 
A78: SF-00073 | B78: Limpeza final de obra | C78: Serviço (Mat + MO) | D78: m2 | E78: 0 | F78: =OFFSET(INDEX(Composições!A:J,MATCH(Orçamentária!A78,Composições!A:A,0),8),2,0) -> 1.990003 | G78: 0 | H78: =IF(A78<>"",IF(AND(#REF!="Padrão",$I$4=#REF!),BDI!$B$17,IF(AND(#REF!="Padrão",$I$4=#REF!),BDI!$C$17,IF(AND(#REF!="Diferenciado",$I$4=#REF!),BDI!$G$17,IF(AND(#REF!="Diferenciado",$I$4=#REF!),BDI!$H$17,IF(#REF!="ZERO",0))))),"") -> 
A79: SF-00074 | B79: Abertura/fechamento rasgo em alvenaria | C79: Serviço (Mat + MO) | D79: m | E79: 0 | F79: =OFFSET(INDEX(Composições!A:J,MATCH(Orçamentária!A79,Composições!A:A,0),8),2,0) -> 16.26862281 | G79: 0 | H79: =IF(A79<>"",IF(AND(#REF!="Padrão",$I$4=#REF!),BDI!$B$17,IF(AND(#REF!="Padrão",$I$4=#REF!),BDI!$C$17,IF(AND(#REF!="Diferenciado",$I$4=#REF!),BDI!$G$17,IF(AND(#REF!="Diferenciado",$I$4=#REF!),BDI!$H$17,IF(#REF!="ZERO",0))))),"") -> 
A80: SF-00075 | B80: Furo em concreto de até 75mm de diâmetro | C80: Serviço (Mat + MO) | D80: un | E80: 0 | F80: =OFFSET(INDEX(Composições!A:J,MATCH(Orçamentária!A80,Composições!A:A,0),8),2,0) -> 81.4490005 | G80: 0 | H80: =IF(A80<>"",IF(AND(#REF!="Padrão",$I$4=#REF!),BDI!$B$17,IF(AND(#REF!="Padrão",$I$4=#REF!),BDI!$C$17,IF(AND(#REF!="Diferenciado",$I$4=#REF!),BDI!$G$17,IF(AND(#REF!="Diferenciado",$I$4=#REF!),BDI!$H$17,IF(#REF!="ZERO",0))))),"") -> 
A81: SF-00076 | B81: Furo em concreto para diâmetros maiores que 75mm | C81: Serviço (Mat + MO) | D81: un | E81: 0 | F81: =OFFSET(INDEX(Composições!A:J,MATCH(Orçamentária!A81,Composições!A:A,0),8),2,0) -> 104.0279355 | G81: 0 | H81: =IF(A81<>"",IF(AND(#REF!="Padrão",$I$4=#REF!),BDI!$B$17,IF(AND(#REF!="Padrão",$I$4=#REF!),BDI!$C$17,IF(AND(#REF!="Diferenciado",$I$4=#REF!),BDI!$G$17,IF(AND(#REF!="Diferenciado",$I$4=#REF!),BDI!$H$17,IF(#REF!="ZERO",0))))),"") -> 
A82: SF-00077 | B82: Concreto virado em betoneira, fck = 15 MPa | C82: Serviço (Mat + MO) | D82: m3 | E82: 0 | F82: =OFFSET(INDEX(Composições!A:J,MATCH(Orçamentária!A82,Composições!A:A,0),8),2,0) -> 544.1184904 | G82: 0 | H82: =IF(A82<>"",IF(AND(#REF!="Padrão",$I$4=#REF!),BDI!$B$17,IF(AND(#REF!="Padrão",$I$4=#REF!),BDI!$C$17,IF(AND(#REF!="Diferenciado",$I$4=#REF!),BDI!$G$17,IF(AND(#REF!="Diferenciado",$I$4=#REF!),BDI!$H$17,IF(#REF!="ZERO",0))))),"") -> 
A83: SF-00078 | B83: Concreto virado em betoneira, fck = 25MPa | C83: Serviço (Mat + MO) | D83: m3 | E83: 0 | F83: =OFFSET(INDEX(Composições!A:J,MATCH(Orçamentária!A83,Composições!A:A,0),8),2,0) -> 574.8868407 | G83: 0 | H83: =IF(A83<>"",IF(AND(#REF!="Padrão",$I$4=#REF!),BDI!$B$17,IF(AND(#REF!="Padrão",$I$4=#REF!),BDI!$C$17,IF(AND(#REF!="Diferenciado",$I$4=#REF!),BDI!$G$17,IF(AND(#REF!="Diferenciado",$I$4=#REF!),BDI!$H$17,IF(#REF!="ZERO",0))))),"") -> 
A84: SF-00079 | B84: Escoramento metálico | C84: Locação | D84: m2 x mês | E84: 0 | F84: =OFFSET(INDEX(Composições!A:J,MATCH(Orçamentária!A84,Composições!A:A,0),8),2,0) -> 13.539875 | G84: 0 | H84: =IF(A84<>"",IF(AND(#REF!="Padrão",$I$4=#REF!),BDI!$B$17,IF(AND(#REF!="Padrão",$I$4=#REF!),BDI!$C$17,IF(AND(#REF!="Diferenciado",$I$4=#REF!),BDI!$G$17,IF(AND(#REF!="Diferenciado",$I$4=#REF!),BDI!$H$17,IF(#REF!="ZERO",0))))),"") -> 
A85: SF-00080 | B85: Estrutura metálica em aço | C85: Serviço (Mat + MO) | D85: kg | E85: 0 | F85: =OFFSET(INDEX(Composições!A:J,MATCH(Orçamentária!A85,Composições!A:A,0),8),2,0) -> 11.210855 | G85: 0 | H85: =IF(A85<>"",IF(AND(#REF!="Padrão",$I$4=#REF!),BDI!$B$17,IF(AND(#REF!="Padrão",$I$4=#REF!),BDI!$C$17,IF(AND(#REF!="Diferenciado",$I$4=#REF!),BDI!$G$17,IF(AND(#REF!="Diferenciado",$I$4=#REF!),BDI!$H$17,IF(#REF!="ZERO",0))))),"") -> 
A86: SF-00081 | B86: Forma para estruturas de concreto | C86: Serviço (Mat + MO) | D86: m2 | E86: 0 | F86: =OFFSET(INDEX(Composições!A:J,MATCH(Orçamentária!A86,Composições!A:A,0),8),2,0) -> 119.8739581 | G86: 0 | H86: =IF(A86<>"",IF(AND(#REF!="Padrão",$I$4=#REF!),BDI!$B$17,IF(AND(#REF!="Padrão",$I$4=#REF!),BDI!$C$17,IF(AND(#REF!="Diferenciado",$I$4=#REF!),BDI!$G$17,IF(AND(#REF!="Diferenciado",$I$4=#REF!),BDI!$H$17,IF(#REF!="ZERO",0))))),"") -> 
A87: SF-00082 | B87: Verga/contraverga/cinta em bloco de concreto canaleta 11,5 x 19 x 39 cm | C87: Serviço (Mat + MO) | D87: m | E87: 0 | F87: =OFFSET(INDEX(Composições!A:J,MATCH(Orçamentária!A87,Composições!A:A,0),8),2,0) -> 19.52337814 | G87: 0 | H87: =IF(A87<>"",IF(AND(#REF!="Padrão",$I$4=#REF!),BDI!$B$17,IF(AND(#REF!="Padrão",$I$4=#REF!),BDI!$C$17,IF(AND(#REF!="Diferenciado",$I$4=#REF!),BDI!$G$17,IF(AND(#REF!="Diferenciado",$I$4=#REF!),BDI!$H$17,IF(#REF!="ZERO",0))))),"") -> 
A88: SF-00083 | B88: Impermeabilização de superfície com revestimento bicomponente semi flexível | C88: Serviço (Mat + MO) | D88: m2 | E88: 0 | F88: =OFFSET(INDEX(Composições!A:J,MATCH(Orçamentária!A88,Composições!A:A,0),8),2,0) -> 21.442564 | G88: 0 | H88: =IF(A88<>"",IF(AND(#REF!="Padrão",$I$4=#REF!),BDI!$B$17,IF(AND(#REF!="Padrão",$I$4=#REF!),BDI!$C$17,IF(AND(#REF!="Diferenciado",$I$4=#REF!),BDI!$G$17,IF(AND(#REF!="Diferenciado",$I$4=#REF!),BDI!$H$17,IF(#REF!="ZERO",0))))),"") -> 
A89: SF-00084 | B89: Alvenaria de vedação | C89: Serviço (Mat + MO) | D89: m2 | E89: 0 | F89: =OFFSET(INDEX(Composições!A:J,MATCH(Orçamentária!A89,Composições!A:A,0),8),2,0) -> 68.55433919 | G89: 0 | H89: =IF(A89<>"",IF(AND(#REF!="Padrão",$I$4=#REF!),BDI!$B$17,IF(AND(#REF!="Padrão",$I$4=#REF!),BDI!$C$17,IF(AND(#REF!="Diferenciado",$I$4=#REF!),BDI!$G$17,IF(AND(#REF!="Diferenciado",$I$4=#REF!),BDI!$H$17,IF(#REF!="ZERO",0))))),"") -> 
A90: SF-00085 | B90: Fechamento ou shaft em gesso acartonado tipo drywall | C90: Serviço (Mat + MO) | D90: m2 | E90: 0 | F90: =OFFSET(INDEX(Composições!A:J,MATCH(Orçamentária!A90,Composições!A:A,0),8),2,0) -> 38.49847925 | G90: 0 | H90: =IF(A90<>"",IF(AND(#REF!="Padrão",$I$4=#REF!),BDI!$B$17,IF(AND(#REF!="Padrão",$I$4=#REF!),BDI!$C$17,IF(AND(#REF!="Diferenciado",$I$4=#REF!),BDI!$G$17,IF(AND(#REF!="Diferenciado",$I$4=#REF!),BDI!$H$17,IF(#REF!="ZERO",0))))),"") -> 
A91: SF-00086 | B91: Fixação (encunhamento) de Alvenaria de Vedação | C91: Serviço (Mat + MO) | D91: m | E91: 0 | F91: =OFFSET(INDEX(Composições!A:J,MATCH(Orçamentária!A91,Composições!A:A,0),8),2,0) -> 23.20854249 | G91: 0 | H91: =IF(A91<>"",IF(AND(#REF!="Padrão",$I$4=#REF!),BDI!$B$17,IF(AND(#REF!="Padrão",$I$4=#REF!),BDI!$C$17,IF(AND(#REF!="Diferenciado",$I$4=#REF!),BDI!$G$17,IF(AND(#REF!="Diferenciado",$I$4=#REF!),BDI!$H$17,IF(#REF!="ZERO",0))))),"") -> 
A92: SF-00087 | B92: Parede em gesso acartonado (drywall) | C92: Serviço (Mat + MO) | D92: m2 | E92: 0 | F92: =OFFSET(INDEX(Composições!A:J,MATCH(Orçamentária!A92,Composições!A:A,0),8),2,0) -> 57.30479135 | G92: 0 | H92: =IF(A92<>"",IF(AND(#REF!="Padrão",$I$4=#REF!),BDI!$B$17,IF(AND(#REF!="Padrão",$I$4=#REF!),BDI!$C$17,IF(AND(#REF!="Diferenciado",$I$4=#REF!),BDI!$G$17,IF(AND(#REF!="Diferenciado",$I$4=#REF!),BDI!$H$17,IF(#REF!="ZERO",0))))),"") -> 
A93: SF-00088 | B93: Reparos superficiais em painéis de gesso acartonado | C93: Serviço (Mat + MO) | D93: m2 | E93: 0 | F93: =OFFSET(INDEX(Composições!A:J,MATCH(Orçamentária!A93,Composições!A:A,0),8),2,0) -> 4.4973969 | G93: 0 | H93: =IF(A93<>"",IF(AND(#REF!="Padrão",$I$4=#REF!),BDI!$B$17,IF(AND(#REF!="Padrão",$I$4=#REF!),BDI!$C$17,IF(AND(#REF!="Diferenciado",$I$4=#REF!),BDI!$G$17,IF(AND(#REF!="Diferenciado",$I$4=#REF!),BDI!$H$17,IF(#REF!="ZERO",0))))),"") -> 
A94: SF-00089 | B94: Sóculo h=10 cm | C94: Serviço (Mat + MO) | D94: m2 | E94: 0 | F94: =OFFSET(INDEX(Composições!A:J,MATCH(Orçamentária!A94,Composições!A:A,0),8),2,0) -> 73.6788136 | G94: 0 | H94: =IF(A94<>"",IF(AND(#REF!="Padrão",$I$4=#REF!),BDI!$B$17,IF(AND(#REF!="Padrão",$I$4=#REF!),BDI!$C$17,IF(AND(#REF!="Diferenciado",$I$4=#REF!),BDI!$G$17,IF(AND(#REF!="Diferenciado",$I$4=#REF!),BDI!$H$17,IF(#REF!="ZERO",0))))),"") -> 
A95: SF-00090 | B95: Chapisco colante industrializado em vigas e pilares | C95: Serviço (Mat + MO) | D95: m2 | E95: 0 | F95: =OFFSET(INDEX(Composições!A:J,MATCH(Orçamentária!A95,Composições!A:A,0),8),2,0) -> 9.151885458 | G95: 0 | H95: =IF(A95<>"",IF(AND(#REF!="Padrão",$I$4=#REF!),BDI!$B$17,IF(AND(#REF!="Padrão",$I$4=#REF!),BDI!$C$17,IF(AND(#REF!="Diferenciado",$I$4=#REF!),BDI!$G$17,IF(AND(#REF!="Diferenciado",$I$4=#REF!),BDI!$H$17,IF(#REF!="ZERO",0))))),"") -> 
A96: SF-00091 | B96: Chapisco com argamassa traço 1:3 | C96: Serviço (Mat + MO) | D96: m2 | E96: 0 | F96: =OFFSET(INDEX(Composições!A:J,MATCH(Orçamentária!A96,Composições!A:A,0),8),2,0) -> 3.80128538 | G96: 0 | H96: =IF(A96<>"",IF(AND(#REF!="Padrão",$I$4=#REF!),BDI!$B$17,IF(AND(#REF!="Padrão",$I$4=#REF!),BDI!$C$17,IF(AND(#REF!="Diferenciado",$I$4=#REF!),BDI!$G$17,IF(AND(#REF!="Diferenciado",$I$4=#REF!),BDI!$H$17,IF(#REF!="ZERO",0))))),"") -> 
A97: SF-00092 | B97: Gesso cola | C97: Serviço (Mat + MO) | D97: m2 | E97: 0 | F97: =OFFSET(INDEX(Composições!A:J,MATCH(Orçamentária!A97,Composições!A:A,0),8),2,0) -> 10.09432 | G97: 0 | H97: =IF(A97<>"",IF(AND(#REF!="Padrão",$I$4=#REF!),BDI!$B$17,IF(AND(#REF!="Padrão",$I$4=#REF!),BDI!$C$17,IF(AND(#REF!="Diferenciado",$I$4=#REF!),BDI!$G$17,IF(AND(#REF!="Diferenciado",$I$4=#REF!),BDI!$H$17,IF(#REF!="ZERO",0))))),"") -> 
A98: SF-00093 | B98: Reboco com argamassa industrializada e=2,0 cm | C98: Serviço (Mat + MO) | D98: m2 | E98: 0 | F98: =OFFSET(INDEX(Composições!A:J,MATCH(Orçamentária!A98,Composições!A:A,0),8),2,0) -> 33.7779777 | G98: 0 | H98: =IF(A98<>"",IF(AND(#REF!="Padrão",$I$4=#REF!),BDI!$B$17,IF(AND(#REF!="Padrão",$I$4=#REF!),BDI!$C$17,IF(AND(#REF!="Diferenciado",$I$4=#REF!),BDI!$G$17,IF(AND(#REF!="Diferenciado",$I$4=#REF!),BDI!$H$17,IF(#REF!="ZERO",0))))),"") -> 
A99: SF-00094 | B99: Regularização com argamassa industrializada e=0,5 cm | C99: Serviço (Mat + MO) | D99: m2 | E99: 0 | F99: =OFFSET(INDEX(Composições!A:J,MATCH(Orçamentária!A99,Composições!A:A,0),8),2,0) -> 11.68028182 | G99: 0 | H99: =IF(A99<>"",IF(AND(#REF!="Padrão",$I$4=#REF!),BDI!$B$17,IF(AND(#REF!="Padrão",$I$4=#REF!),BDI!$C$17,IF(AND(#REF!="Diferenciado",$I$4=#REF!),BDI!$G$17,IF(AND(#REF!="Diferenciado",$I$4=#REF!),BDI!$H$17,IF(#REF!="ZERO",0))))),"") -> 
A100: SF-00095 | B100: Tratamento de trincas superficiais | C100: Serviço (Mat + MO) | D100: m | E100: 0 | F100: =OFFSET(INDEX(Composições!A:J,MATCH(Orçamentária!A100,Composições!A:A,0),8),2,0) -> 19.4923869 | G100: 0 | H100: =IF(A100<>"",IF(AND(#REF!="Padrão",$I$4=#REF!),BDI!$B$17,IF(AND(#REF!="Padrão",$I$4=#REF!),BDI!$C$17,IF(AND(#REF!="Diferenciado",$I$4=#REF!),BDI!$G$17,IF(AND(#REF!="Diferenciado",$I$4=#REF!),BDI!$H$17,IF(#REF!="ZERO",0))))),"") -> 
A101: SF-00096 | B101: Aplicação de fundo selador base água | C101: Serviço (Mat + MO) | D101: m2 | E101: 0 | F101: =OFFSET(INDEX(Composições!A:J,MATCH(Orçamentária!A101,Composições!A:A,0),8),2,0) -> 2.8813785 | G101: 0 | H101: =IF(A101<>"",IF(AND(#REF!="Padrão",$I$4=#REF!),BDI!$B$17,IF(AND(#REF!="Padrão",$I$4=#REF!),BDI!$C$17,IF(AND(#REF!="Diferenciado",$I$4=#REF!),BDI!$G$17,IF(AND(#REF!="Diferenciado",$I$4=#REF!),BDI!$H$17,IF(#REF!="ZERO",0))))),"") -> 
A102: SF-00097 | B102: Fundo anticorrosivo e de aderência (base água) | C102: Serviço (Mat + MO) | D102: m2 | E102: 0 | F102: =OFFSET(INDEX(Composições!A:J,MATCH(Orçamentária!A102,Composições!A:A,0),8),2,0) -> 9.8974344 | G102: 0 | H102: =IF(A102<>"",IF(AND(#REF!="Padrão",$I$4=#REF!),BDI!$B$17,IF(AND(#REF!="Padrão",$I$4=#REF!),BDI!$C$17,IF(AND(#REF!="Diferenciado",$I$4=#REF!),BDI!$G$17,IF(AND(#REF!="Diferenciado",$I$4=#REF!),BDI!$H$17,IF(#REF!="ZERO",0))))),"") -> 
A103: SF-00098 | B103: Massa acrílica | C103: Serviço (Mat + MO) | D103: m2 | E103: 0 | F103: =OFFSET(INDEX(Composições!A:J,MATCH(Orçamentária!A103,Composições!A:A,0),8),2,0) -> 16.7653245 | G103: 0 | H103: =IF(A103<>"",IF(AND(#REF!="Padrão",$I$4=#REF!),BDI!$B$17,IF(AND(#REF!="Padrão",$I$4=#REF!),BDI!$C$17,IF(AND(#REF!="Diferenciado",$I$4=#REF!),BDI!$G$17,IF(AND(#REF!="Diferenciado",$I$4=#REF!),BDI!$H$17,IF(#REF!="ZERO",0))))),"") -> 
A104: SF-00099 | B104: Massa corrida | C104: Serviço (Mat + MO) | D104: m2 | E104: 0 | F104: =OFFSET(INDEX(Composições!A:J,MATCH(Orçamentária!A104,Composições!A:A,0),8),2,0) -> 12.940539 | G104: 0 | H104: =IF(A104<>"",IF(AND(#REF!="Padrão",$I$4=#REF!),BDI!$B$17,IF(AND(#REF!="Padrão",$I$4=#REF!),BDI!$C$17,IF(AND(#REF!="Diferenciado",$I$4=#REF!),BDI!$G$17,IF(AND(#REF!="Diferenciado",$I$4=#REF!),BDI!$H$17,IF(#REF!="ZERO",0))))),"") -> 
A105: SF-00100 | B105: Pintura com tinta látex acrílica Premium (paredes) | C105: Serviço (Mat + MO) | D105: m2 | E105: 0 | F105: =OFFSET(INDEX(Composições!A:J,MATCH(Orçamentária!A105,Composições!A:A,0),8),2,0) -> 11.9776095 | G105: 0 | H105: =IF(A105<>"",IF(AND(#REF!="Padrão",$I$4=#REF!),BDI!$B$17,IF(AND(#REF!="Padrão",$I$4=#REF!),BDI!$C$17,IF(AND(#REF!="Diferenciado",$I$4=#REF!),BDI!$G$17,IF(AND(#REF!="Diferenciado",$I$4=#REF!),BDI!$H$17,IF(#REF!="ZERO",0))))),"") -> 
A106: SF-00101 | B106: Pintura em verniz sintético | C106: Serviço (Mat + MO) | D106: m2 | E106: 0 | F106: =OFFSET(INDEX(Composições!A:J,MATCH(Orçamentária!A106,Composições!A:A,0),8),2,0) -> 14.78865 | G106: 0 | H106: =IF(A106<>"",IF(AND(#REF!="Padrão",$I$4=#REF!),BDI!$B$17,IF(AND(#REF!="Padrão",$I$4=#REF!),BDI!$C$17,IF(AND(#REF!="Diferenciado",$I$4=#REF!),BDI!$G$17,IF(AND(#REF!="Diferenciado",$I$4=#REF!),BDI!$H$17,IF(#REF!="ZERO",0))))),"") -> 
A107: SF-00102 | B107: Pintura esmalte acetinado (metais e madeiras) | C107: Serviço (Mat + MO) | D107: m2 | E107: 0 | F107: =OFFSET(INDEX(Composições!A:J,MATCH(Orçamentária!A107,Composições!A:A,0),8),2,0) -> 12.7471 | G107: 0 | H107: =IF(A107<>"",IF(AND(#REF!="Padrão",$I$4=#REF!),BDI!$B$17,IF(AND(#REF!="Padrão",$I$4=#REF!),BDI!$C$17,IF(AND(#REF!="Diferenciado",$I$4=#REF!),BDI!$G$17,IF(AND(#REF!="Diferenciado",$I$4=#REF!),BDI!$H$17,IF(#REF!="ZERO",0))))),"") -> 
A108: SF-00103 | B108: Pintura tinta látex acrílica standard (tetos) | C108: Serviço (Mat + MO) | D108: m2 | E108: 0 | F108: =OFFSET(INDEX(Composições!A:J,MATCH(Orçamentária!A108,Composições!A:A,0),8),2,0) -> 13.6164355 | G108: 0 | H108: =IF(A108<>"",IF(AND(#REF!="Padrão",$I$4=#REF!),BDI!$B$17,IF(AND(#REF!="Padrão",$I$4=#REF!),BDI!$C$17,IF(AND(#REF!="Diferenciado",$I$4=#REF!),BDI!$G$17,IF(AND(#REF!="Diferenciado",$I$4=#REF!),BDI!$H$17,IF(#REF!="ZERO",0))))),"") -> 
A109: SF-00104 | B109: Cerâmica para revestimento de superfícies internas ou externas – Linha Administrativa | C109: Serviço (Mat + MO) | D109: m2 | E109: 0 | F109: =OFFSET(INDEX(Composições!A:J,MATCH(Orçamentária!A109,Composições!A:A,0),8),2,0) -> 64.66802 | G109: 0 | H109: =IF(A109<>"",IF(AND(#REF!="Padrão",$I$4=#REF!),BDI!$B$17,IF(AND(#REF!="Padrão",$I$4=#REF!),BDI!$C$17,IF(AND(#REF!="Diferenciado",$I$4=#REF!),BDI!$G$17,IF(AND(#REF!="Diferenciado",$I$4=#REF!),BDI!$H$17,IF(#REF!="ZERO",0))))),"") -> 
A110: SF-00105 | B110: Contrapiso em argamassa | C110: Serviço (Mat + MO) | D110: m2 | E110: 0 | F110: =OFFSET(INDEX(Composições!A:J,MATCH(Orçamentária!A110,Composições!A:A,0),8),2,0) -> 45.67644225 | G110: 0 | H110: =IF(A110<>"",IF(AND(#REF!="Padrão",$I$4=#REF!),BDI!$B$17,IF(AND(#REF!="Padrão",$I$4=#REF!),BDI!$C$17,IF(AND(#REF!="Diferenciado",$I$4=#REF!),BDI!$G$17,IF(AND(#REF!="Diferenciado",$I$4=#REF!),BDI!$H$17,IF(#REF!="ZERO",0))))),"") -> 
A111: SF-00106 | B111: Contrapiso em argamassa (e=2cm) ou Regularização de contrapiso existente | C111: Serviço (Mat + MO) | D111: m2 | E111: 0 | F111: =OFFSET(INDEX(Composições!A:J,MATCH(Orçamentária!A111,Composições!A:A,0),8),2,0) -> 31.26472731 | G111: 0 | H111: =IF(A111<>"",IF(AND(#REF!="Padrão",$I$4=#REF!),BDI!$B$17,IF(AND(#REF!="Padrão",$I$4=#REF!),BDI!$C$17,IF(AND(#REF!="Diferenciado",$I$4=#REF!),BDI!$G$17,IF(AND(#REF!="Diferenciado",$I$4=#REF!),BDI!$H$17,IF(#REF!="ZERO",0))))),"") -> 
A112: SF-00107 | B112: Granito cinza andorinha para piso | C112: Serviço (Mat + MO) | D112: m2 | E112: 0 | F112: =OFFSET(INDEX(Composições!A:J,MATCH(Orçamentária!A112,Composições!A:A,0),8),2,0) -> 43.224525 | G112: 0 | H112: =IF(A112<>"",IF(AND(#REF!="Padrão",$I$4=#REF!),BDI!$B$17,IF(AND(#REF!="Padrão",$I$4=#REF!),BDI!$C$17,IF(AND(#REF!="Diferenciado",$I$4=#REF!),BDI!$G$17,IF(AND(#REF!="Diferenciado",$I$4=#REF!),BDI!$H$17,IF(#REF!="ZERO",0))))),"") -> 
A113: SF-00108 | B113: Granito Cinza Andorinha para rodapé | C113: Serviço (Mat + MO) | D113: m2 | E113: 0 | F113: =OFFSET(INDEX(Composições!A:J,MATCH(Orçamentária!A113,Composições!A:A,0),8),2,0) -> 93.847099 | G113: 0 | H113: =IF(A113<>"",IF(AND(#REF!="Padrão",$I$4=#REF!),BDI!$B$17,IF(AND(#REF!="Padrão",$I$4=#REF!),BDI!$C$17,IF(AND(#REF!="Diferenciado",$I$4=#REF!),BDI!$G$17,IF(AND(#REF!="Diferenciado",$I$4=#REF!),BDI!$H$17,IF(#REF!="ZERO",0))))),"") -> 
A114: SF-00109 | B114: Granito Cinza Andorinha para soleira e peitoril | C114: Serviço (Mat + MO) | D114: m2 | E114: 0 | F114: =OFFSET(INDEX(Composições!A:J,MATCH(Orçamentária!A114,Composições!A:A,0),8),2,0) -> 108.1355674 | G114: 0 | H114: =IF(A114<>"",IF(AND(#REF!="Padrão",$I$4=#REF!),BDI!$B$17,IF(AND(#REF!="Padrão",$I$4=#REF!),BDI!$C$17,IF(AND(#REF!="Diferenciado",$I$4=#REF!),BDI!$G$17,IF(AND(#REF!="Diferenciado",$I$4=#REF!),BDI!$H$17,IF(#REF!="ZERO",0))))),"") -> 
A115: SF-00110 | B115: Granito Preto São Gabriel para piso | C115: Serviço (Mat + MO) | D115: m2 | E115: 0 | F115: =OFFSET(INDEX(Composições!A:J,MATCH(Orçamentária!A115,Composições!A:A,0),8),2,0) -> 43.224525 | G115: 0 | H115: =IF(A115<>"",IF(AND(#REF!="Padrão",$I$4=#REF!),BDI!$B$17,IF(AND(#REF!="Padrão",$I$4=#REF!),BDI!$C$17,IF(AND(#REF!="Diferenciado",$I$4=#REF!),BDI!$G$17,IF(AND(#REF!="Diferenciado",$I$4=#REF!),BDI!$H$17,IF(#REF!="ZERO",0))))),"") -> 
A116: SF-00111 | B116: Granito Preto São Gabriel para rodapé | C116: Serviço (Mat + MO) | D116: m2 | E116: 0 | F116: =OFFSET(INDEX(Composições!A:J,MATCH(Orçamentária!A116,Composições!A:A,0),8),2,0) -> 93.847099 | G116: 0 | H116: =IF(A116<>"",IF(AND(#REF!="Padrão",$I$4=#REF!),BDI!$B$17,IF(AND(#REF!="Padrão",$I$4=#REF!),BDI!$C$17,IF(AND(#REF!="Diferenciado",$I$4=#REF!),BDI!$G$17,IF(AND(#REF!="Diferenciado",$I$4=#REF!),BDI!$H$17,IF(#REF!="ZERO",0))))),"") -> 
A117: SF-00112 | B117: Granito Preto São Gabriel para soleira e peitoril | C117: Serviço (Mat + MO) | D117: m2 | E117: 0 | F117: =OFFSET(INDEX(Composições!A:J,MATCH(Orçamentária!A117,Composições!A:A,0),8),2,0) -> 108.1355674 | G117: 0 | H117: =IF(A117<>"",IF(AND(#REF!="Padrão",$I$4=#REF!),BDI!$B$17,IF(AND(#REF!="Padrão",$I$4=#REF!),BDI!$C$17,IF(AND(#REF!="Diferenciado",$I$4=#REF!),BDI!$G$17,IF(AND(#REF!="Diferenciado",$I$4=#REF!),BDI!$H$17,IF(#REF!="ZERO",0))))),"") -> 
A118: SF-00113 | B118: Instalação de rodapé de madeira reaproveitado | C118: Serviço (Mat + MO) | D118: m | E118: 0 | F118: =OFFSET(INDEX(Composições!A:J,MATCH(Orçamentária!A118,Composições!A:A,0),8),2,0) -> 12.4326044 | G118: 0 | H118: =IF(A118<>"",IF(AND(#REF!="Padrão",$I$4=#REF!),BDI!$B$17,IF(AND(#REF!="Padrão",$I$4=#REF!),BDI!$C$17,IF(AND(#REF!="Diferenciado",$I$4=#REF!),BDI!$G$17,IF(AND(#REF!="Diferenciado",$I$4=#REF!),BDI!$H$17,IF(#REF!="ZERO",0))))),"") -> 
A119: SF-00114 | B119: Mármore Bege Bahia para piso e parede | C119: Serviço (Mat + MO) | D119: m2 | E119: 0 | F119: =OFFSET(INDEX(Composições!A:J,MATCH(Orçamentária!A119,Composições!A:A,0),8),2,0) -> 43.224525 | G119: 0 | H119: =IF(A119<>"",IF(AND(#REF!="Padrão",$I$4=#REF!),BDI!$B$17,IF(AND(#REF!="Padrão",$I$4=#REF!),BDI!$C$17,IF(AND(#REF!="Diferenciado",$I$4=#REF!),BDI!$G$17,IF(AND(#REF!="Diferenciado",$I$4=#REF!),BDI!$H$17,IF(#REF!="ZERO",0))))),"") -> 
A120: SF-00115 | B120: Mármore Branco Especial para piso e parede | C120: Serviço (Mat + MO) | D120: m2 | E120: 0 | F120: =OFFSET(INDEX(Composições!A:J,MATCH(Orçamentária!A120,Composições!A:A,0),8),2,0) -> 43.224525 | G120: 0 | H120: =IF(A120<>"",IF(AND(#REF!="Padrão",$I$4=#REF!),BDI!$B$17,IF(AND(#REF!="Padrão",$I$4=#REF!),BDI!$C$17,IF(AND(#REF!="Diferenciado",$I$4=#REF!),BDI!$G$17,IF(AND(#REF!="Diferenciado",$I$4=#REF!),BDI!$H$17,IF(#REF!="ZERO",0))))),"") -> 
A121: SF-00116 | B121: Rodapé de madeira | C121: Serviço (Mat + MO) | D121: m | E121: 0 | F121: =OFFSET(INDEX(Composições!A:J,MATCH(Orçamentária!A121,Composições!A:A,0),8),2,0) -> 22.3929269 | G121: 0 | H121: =IF(A121<>"",IF(AND(#REF!="Padrão",$I$4=#REF!),BDI!$B$17,IF(AND(#REF!="Padrão",$I$4=#REF!),BDI!$C$17,IF(AND(#REF!="Diferenciado",$I$4=#REF!),BDI!$G$17,IF(AND(#REF!="Diferenciado",$I$4=#REF!),BDI!$H$17,IF(#REF!="ZERO",0))))),"") -> 
A122: SF-00117 | B122: Acabamento abaulado em placas de granito ou mármore reaproveitadas | C122: Serviço (Mat + MO) | D122: m | E122: 0 | F122: =OFFSET(INDEX(Composições!A:J,MATCH(Orçamentária!A122,Composições!A:A,0),8),2,0) -> 36.841 | G122: 0 | H122: =IF(A122<>"",IF(AND(#REF!="Padrão",$I$4=#REF!),BDI!$B$17,IF(AND(#REF!="Padrão",$I$4=#REF!),BDI!$C$17,IF(AND(#REF!="Diferenciado",$I$4=#REF!),BDI!$G$17,IF(AND(#REF!="Diferenciado",$I$4=#REF!),BDI!$H$17,IF(#REF!="ZERO",0))))),"") -> 
A123: SF-00118 | B123: Acabamento em meia esquadria em placas de granito ou mármore reaproveitadas | C123: Serviço (Mat + MO) | D123: m | E123: 0 | F123: =OFFSET(INDEX(Composições!A:J,MATCH(Orçamentária!A123,Composições!A:A,0),8),2,0) -> 32.235875 | G123: 0 | H123: =IF(A123<>"",IF(AND(#REF!="Padrão",$I$4=#REF!),BDI!$B$17,IF(AND(#REF!="Padrão",$I$4=#REF!),BDI!$C$17,IF(AND(#REF!="Diferenciado",$I$4=#REF!),BDI!$G$17,IF(AND(#REF!="Diferenciado",$I$4=#REF!),BDI!$H$17,IF(#REF!="ZERO",0))))),"") -> 
A124: SF-00119 | B124: Acabamento reto em placas de granito ou mármore reaproveitadas | C124: Serviço (Mat + MO) | D124: m | E124: 0 | F124: =OFFSET(INDEX(Composições!A:J,MATCH(Orçamentária!A124,Composições!A:A,0),8),2,0) -> 18.4205 | G124: 0 | H124: =IF(A124<>"",IF(AND(#REF!="Padrão",$I$4=#REF!),BDI!$B$17,IF(AND(#REF!="Padrão",$I$4=#REF!),BDI!$C$17,IF(AND(#REF!="Diferenciado",$I$4=#REF!),BDI!$G$17,IF(AND(#REF!="Diferenciado",$I$4=#REF!),BDI!$H$17,IF(#REF!="ZERO",0))))),"") -> 
A125: SF-00120 | B125: Corte de peça de granito ou mármore reaproveitada | C125: Serviço (Mat + MO) | D125: m | E125: 0 | F125: =OFFSET(INDEX(Composições!A:J,MATCH(Orçamentária!A125,Composições!A:A,0),8),2,0) -> 23.025625 | G125: 0 | H125: =IF(A125<>"",IF(AND(#REF!="Padrão",$I$4=#REF!),BDI!$B$17,IF(AND(#REF!="Padrão",$I$4=#REF!),BDI!$C$17,IF(AND(#REF!="Diferenciado",$I$4=#REF!),BDI!$G$17,IF(AND(#REF!="Diferenciado",$I$4=#REF!),BDI!$H$17,IF(#REF!="ZERO",0))))),"") -> 
A126: SF-00121 | B126: Corte em placas de granito ou mármore reaproveitadas, para instalação de cubas | C126: Serviço (Mat + MO) | D126: un | E126: 0 | F126: =OFFSET(INDEX(Composições!A:J,MATCH(Orçamentária!A126,Composições!A:A,0),8),2,0) -> 76.8075 | G126: 0 | H126: =IF(A126<>"",IF(AND(#REF!="Padrão",$I$4=#REF!),BDI!$B$17,IF(AND(#REF!="Padrão",$I$4=#REF!),BDI!$C$17,IF(AND(#REF!="Diferenciado",$I$4=#REF!),BDI!$G$17,IF(AND(#REF!="Diferenciado",$I$4=#REF!),BDI!$H$17,IF(#REF!="ZERO",0))))),"") -> 
A127: SF-00122 | B127: Furo em placas de granito ou mármore reaproveitadas, para instalação de torneira ou misturador | C127: Serviço (Mat + MO) | D127: un | E127: 0 | F127: =OFFSET(INDEX(Composições!A:J,MATCH(Orçamentária!A127,Composições!A:A,0),8),2,0) -> 11.514 | G127: 0 | H127: =IF(A127<>"",IF(AND(#REF!="Padrão",$I$4=#REF!),BDI!$B$17,IF(AND(#REF!="Padrão",$I$4=#REF!),BDI!$C$17,IF(AND(#REF!="Diferenciado",$I$4=#REF!),BDI!$G$17,IF(AND(#REF!="Diferenciado",$I$4=#REF!),BDI!$H$17,IF(#REF!="ZERO",0))))),"") -> 
A128: SF-00123 | B128: Granito Cinza Andorinha 20mm para rodabancada | C128: Serviço (Mat + MO) | D128: m2 | E128: 0 | F128: =OFFSET(INDEX(Composições!A:J,MATCH(Orçamentária!A128,Composições!A:A,0),8),2,0) -> 62.56416235 | G128: 0 | H128: =IF(A128<>"",IF(AND(#REF!="Padrão",$I$4=#REF!),BDI!$B$17,IF(AND(#REF!="Padrão",$I$4=#REF!),BDI!$C$17,IF(AND(#REF!="Diferenciado",$I$4=#REF!),BDI!$G$17,IF(AND(#REF!="Diferenciado",$I$4=#REF!),BDI!$H$17,IF(#REF!="ZERO",0))))),"") -> 
A129: SF-00124 | B129: Granito Cinza Andorinha 20mm para bancadas | C129: Serviço (Mat + MO) | D129: m2 | E129: 0 | F129: =OFFSET(INDEX(Composições!A:J,MATCH(Orçamentária!A129,Composições!A:A,0),8),2,0) -> 98.5395138 | G129: 0 | H129: =IF(A129<>"",IF(AND(#REF!="Padrão",$I$4=#REF!),BDI!$B$17,IF(AND(#REF!="Padrão",$I$4=#REF!),BDI!$C$17,IF(AND(#REF!="Diferenciado",$I$4=#REF!),BDI!$G$17,IF(AND(#REF!="Diferenciado",$I$4=#REF!),BDI!$H$17,IF(#REF!="ZERO",0))))),"") -> 
A130: SF-00125 | B130: Granito Cinza Andorinha 20mm para divisória | C130: Serviço (Mat + MO) | D130: m2 | E130: 0 | F130: =OFFSET(INDEX(Composições!A:J,MATCH(Orçamentária!A130,Composições!A:A,0),8),2,0) -> 129.3121632 | G130: 0 | H130: =IF(A130<>"",IF(AND(#REF!="Padrão",$I$4=#REF!),BDI!$B$17,IF(AND(#REF!="Padrão",$I$4=#REF!),BDI!$C$17,IF(AND(#REF!="Diferenciado",$I$4=#REF!),BDI!$G$17,IF(AND(#REF!="Diferenciado",$I$4=#REF!),BDI!$H$17,IF(#REF!="ZERO",0))))),"") -> 
A131: SF-00126 | B131: Granito Preto São Gabriel 20mm para rodabancada | C131: Serviço (Mat + MO) | D131: m2 | E131: 0 | F131: =OFFSET(INDEX(Composições!A:J,MATCH(Orçamentária!A131,Composições!A:A,0),8),2,0) -> 62.56416235 | G131: 0 | H131: =IF(A131<>"",IF(AND(#REF!="Padrão",$I$4=#REF!),BDI!$B$17,IF(AND(#REF!="Padrão",$I$4=#REF!),BDI!$C$17,IF(AND(#REF!="Diferenciado",$I$4=#REF!),BDI!$G$17,IF(AND(#REF!="Diferenciado",$I$4=#REF!),BDI!$H$17,IF(#REF!="ZERO",0))))),"") -> 
A132: SF-00127 | B132: Granito Preto São Gabriel 20mm para bancadas | C132: Serviço (Mat + MO) | D132: m2 | E132: 0 | F132: =OFFSET(INDEX(Composições!A:J,MATCH(Orçamentária!A132,Composições!A:A,0),8),2,0) -> 98.5395138 | G132: 0 | H132: =IF(A132<>"",IF(AND(#REF!="Padrão",$I$4=#REF!),BDI!$B$17,IF(AND(#REF!="Padrão",$I$4=#REF!),BDI!$C$17,IF(AND(#REF!="Diferenciado",$I$4=#REF!),BDI!$G$17,IF(AND(#REF!="Diferenciado",$I$4=#REF!),BDI!$H$17,IF(#REF!="ZERO",0))))),"") -> 
A133: SF-00128 | B133: Instalação de bancada de granito ou mármore reaproveitada | C133: Serviço (Mat + MO) | D133: m2 | E133: 0 | F133: =OFFSET(INDEX(Composições!A:J,MATCH(Orçamentária!A133,Composições!A:A,0),8),2,0) -> 98.5395138 | G133: 0 | H133: =IF(A133<>"",IF(AND(#REF!="Padrão",$I$4=#REF!),BDI!$B$17,IF(AND(#REF!="Padrão",$I$4=#REF!),BDI!$C$17,IF(AND(#REF!="Diferenciado",$I$4=#REF!),BDI!$G$17,IF(AND(#REF!="Diferenciado",$I$4=#REF!),BDI!$H$17,IF(#REF!="ZERO",0))))),"") -> 
A134: SF-00129 | B134: Instalação de rodapé reaproveitado, de mármore ou granito | C134: Serviço (Mat + MO) | D134: m2 | E134: 0 | F134: =OFFSET(INDEX(Composições!A:J,MATCH(Orçamentária!A134,Composições!A:A,0),8),2,0) -> 9.3847099 | G134: 0 | H134: =IF(A134<>"",IF(AND(#REF!="Padrão",$I$4=#REF!),BDI!$B$17,IF(AND(#REF!="Padrão",$I$4=#REF!),BDI!$C$17,IF(AND(#REF!="Diferenciado",$I$4=#REF!),BDI!$G$17,IF(AND(#REF!="Diferenciado",$I$4=#REF!),BDI!$H$17,IF(#REF!="ZERO",0))))),"") -> 
A135: SF-00130 | B135: Instalação de soleira ou peitoril, de mármore ou granito, reaproveitados | C135: Serviço (Mat + MO) | D135: m2 | E135: 0 | F135: =OFFSET(INDEX(Composições!A:J,MATCH(Orçamentária!A135,Composições!A:A,0),8),2,0) -> 42.873405 | G135: =IF(ISNUMBER(F135),ROUND(E135*F135,2),"") -> 0 | H135: =IF(A135<>"",IF(AND(#REF!="Padrão",$I$4=#REF!),BDI!$B$17,IF(AND(#REF!="Padrão",$I$4=#REF!),BDI!$C$17,IF(AND(#REF!="Diferenciado",$I$4=#REF!),BDI!$G$17,IF(AND(#REF!="Diferenciado",$I$4=#REF!),BDI!$H$17,IF(#REF!="ZERO",0))))),"") ->  | I135: =IF(ISNUMBER(F135),ROUND(F135*(1+H135),2),"") ->  | J135: =IF(ISNUMBER(F135),ROUND(I135*E135,2),"") -> 
A136: SF-00131 | B136: Mármore Branco Especial 20mm para rodabancada | C136: Serviço (Mat + MO) | D136: m2 | E136: 0 | F136: =OFFSET(INDEX(Composições!A:J,MATCH(Orçamentária!A136,Composições!A:A,0),8),2,0) -> 43.224525 | G136: 0 | H136: =IF(A136<>"",IF(AND(#REF!="Padrão",$I$4=#REF!),BDI!$B$17,IF(AND(#REF!="Padrão",$I$4=#REF!),BDI!$C$17,IF(AND(#REF!="Diferenciado",$I$4=#REF!),BDI!$G$17,IF(AND(#REF!="Diferenciado",$I$4=#REF!),BDI!$H$17,IF(#REF!="ZERO",0))))),"") -> 
A137: SF-00132 | B137: Divisória em gesso acartonado revestido - Painel liso cego - Ed. Anexo I | C137: Serviço (Mat + MO) | D137: m2 | E137: 0 | H137: =IF(A137<>"",IF(AND(#REF!="Padrão",$I$4=#REF!),BDI!$B$17,IF(AND(#REF!="Padrão",$I$4=#REF!),BDI!$C$17,IF(AND(#REF!="Diferenciado",$I$4=#REF!),BDI!$G$17,IF(AND(#REF!="Diferenciado",$I$4=#REF!),BDI!$H$17,IF(#REF!="ZERO",0))))),"") -> 
A138: SF-00133 | B138: Divisória em gesso acartonado revestido - Painel liso, painel de vidro e bandeira – ed. Anexo I | C138: Serviço (Mat + MO) | D138: m2 | E138: 0 | H138: =IF(A138<>"",IF(AND(#REF!="Padrão",$I$4=#REF!),BDI!$B$17,IF(AND(#REF!="Padrão",$I$4=#REF!),BDI!$C$17,IF(AND(#REF!="Diferenciado",$I$4=#REF!),BDI!$G$17,IF(AND(#REF!="Diferenciado",$I$4=#REF!),BDI!$H$17,IF(#REF!="ZERO",0))))),"") -> 
A139: SF-00134 | B139: Divisória MDF com painel liso cego e bandeira | C139: Serviço (Mat + MO) | D139: m2 | E139: 0 | H139: =IF(A139<>"",IF(AND(#REF!="Padrão",$I$4=#REF!),BDI!$B$17,IF(AND(#REF!="Padrão",$I$4=#REF!),BDI!$C$17,IF(AND(#REF!="Diferenciado",$I$4=#REF!),BDI!$G$17,IF(AND(#REF!="Diferenciado",$I$4=#REF!),BDI!$H$17,IF(#REF!="ZERO",0))))),"") -> 
A140: SF-00135 | B140: Divisória MDF com painel liso, painel de vidro e bandeira | C140: Serviço (Mat + MO) | D140: m2 | E140: 0 | H140: =IF(A140<>"",IF(AND(#REF!="Padrão",$I$4=#REF!),BDI!$B$17,IF(AND(#REF!="Padrão",$I$4=#REF!),BDI!$C$17,IF(AND(#REF!="Diferenciado",$I$4=#REF!),BDI!$G$17,IF(AND(#REF!="Diferenciado",$I$4=#REF!),BDI!$H$17,IF(#REF!="ZERO",0))))),"") -> 
A141: SF-00136 | B141: Divisória MDF com painel paginado cego e bandeira - Interlegis | C141: Serviço (Mat + MO) | D141: m2 | E141: 0 | H141: =IF(A141<>"",IF(AND(#REF!="Padrão",$I$4=#REF!),BDI!$B$17,IF(AND(#REF!="Padrão",$I$4=#REF!),BDI!$C$17,IF(AND(#REF!="Diferenciado",$I$4=#REF!),BDI!$G$17,IF(AND(#REF!="Diferenciado",$I$4=#REF!),BDI!$H$17,IF(#REF!="ZERO",0))))),"") -> 
A142: SF-00137 | B142: Divisória MDF com painel paginado, painel de vidro e bandeira - Interlegis | C142: Serviço (Mat + MO) | D142: m2 | E142: 0 | H142: =IF(A142<>"",IF(AND(#REF!="Padrão",$I$4=#REF!),BDI!$B$17,IF(AND(#REF!="Padrão",$I$4=#REF!),BDI!$C$17,IF(AND(#REF!="Diferenciado",$I$4=#REF!),BDI!$G$17,IF(AND(#REF!="Diferenciado",$I$4=#REF!),BDI!$H$17,IF(#REF!="ZERO",0))))),"") -> 
A143: SF-00138 | B143: Instalação de divisória e porta de divisória com dobradiça reaproveitadas | C143: Serviço (Mat + MO) | D143: m2 | E143: 0 | F143: =OFFSET(INDEX(Composições!A:J,MATCH(Orçamentária!A143,Composições!A:A,0),8),2,0) -> 0.95 | G143: 0 | H143: =IF(A143<>"",IF(AND(#REF!="Padrão",$I$4=#REF!),BDI!$B$17,IF(AND(#REF!="Padrão",$I$4=#REF!),BDI!$C$17,IF(AND(#REF!="Diferenciado",$I$4=#REF!),BDI!$G$17,IF(AND(#REF!="Diferenciado",$I$4=#REF!),BDI!$H$17,IF(#REF!="ZERO",0))))),"") -> 
A144: SF-00139 | B144: Alçapão em forro de gesso acartonado | C144: Serviço (Mat + MO) | D144: m2 | E144: 0 | F144: =OFFSET(INDEX(Composições!A:J,MATCH(Orçamentária!A144,Composições!A:A,0),8),2,0) -> 50.2417 | G144: 0 | H144: =IF(A144<>"",IF(AND(#REF!="Padrão",$I$4=#REF!),BDI!$B$17,IF(AND(#REF!="Padrão",$I$4=#REF!),BDI!$C$17,IF(AND(#REF!="Diferenciado",$I$4=#REF!),BDI!$G$17,IF(AND(#REF!="Diferenciado",$I$4=#REF!),BDI!$H$17,IF(#REF!="ZERO",0))))),"") -> 
A145: SF-00140 | B145: Forro de PVC em réguas de 100 x 6000mm | C145: Serviço (Mat + MO) | D145: m2 | E145: 0 | F145: =OFFSET(INDEX(Composições!A:J,MATCH(Orçamentária!A145,Composições!A:A,0),8),2,0) -> 42.9376763 | G145: 0 | H145: =IF(A145<>"",IF(AND(#REF!="Padrão",$I$4=#REF!),BDI!$B$17,IF(AND(#REF!="Padrão",$I$4=#REF!),BDI!$C$17,IF(AND(#REF!="Diferenciado",$I$4=#REF!),BDI!$G$17,IF(AND(#REF!="Diferenciado",$I$4=#REF!),BDI!$H$17,IF(#REF!="ZERO",0))))),"") -> 
A146: SF-00141 | B146: Forro de PVC em réguas de 100 x 6000mm, sem estrutura | C146: Serviço (Mat + MO) | D146: m2 | E146: 0 | F146: =OFFSET(INDEX(Composições!A:J,MATCH(Orçamentária!A146,Composições!A:A,0),8),2,0) -> 20.614031 | G146: 0 | H146: =IF(A146<>"",IF(AND(#REF!="Padrão",$I$4=#REF!),BDI!$B$17,IF(AND(#REF!="Padrão",$I$4=#REF!),BDI!$C$17,IF(AND(#REF!="Diferenciado",$I$4=#REF!),BDI!$G$17,IF(AND(#REF!="Diferenciado",$I$4=#REF!),BDI!$H$17,IF(#REF!="ZERO",0))))),"") -> 
A147: SF-00142 | B147: Forro de PVC modular em placas | C147: Serviço (Mat + MO) | D147: m2 | E147: 0 | F147: =OFFSET(INDEX(Composições!A:J,MATCH(Orçamentária!A147,Composições!A:A,0),8),2,0) -> 25.2437363 | G147: 0 | H147: =IF(A147<>"",IF(AND(#REF!="Padrão",$I$4=#REF!),BDI!$B$17,IF(AND(#REF!="Padrão",$I$4=#REF!),BDI!$C$17,IF(AND(#REF!="Diferenciado",$I$4=#REF!),BDI!$G$17,IF(AND(#REF!="Diferenciado",$I$4=#REF!),BDI!$H$17,IF(#REF!="ZERO",0))))),"") -> 
A148: SF-00143 | B148: Forro em chapas metálicas | C148: Serviço (Mat + MO) | D148: m2 | E148: 0 | F148: =OFFSET(INDEX(Composições!A:J,MATCH(Orçamentária!A148,Composições!A:A,0),8),2,0) -> 17.16175 | G148: 0 | H148: =IF(A148<>"",IF(AND(#REF!="Padrão",$I$4=#REF!),BDI!$B$17,IF(AND(#REF!="Padrão",$I$4=#REF!),BDI!$C$17,IF(AND(#REF!="Diferenciado",$I$4=#REF!),BDI!$G$17,IF(AND(#REF!="Diferenciado",$I$4=#REF!),BDI!$H$17,IF(#REF!="ZERO",0))))),"") -> 
A149: SF-00144 | B149: Forro em gesso acartonado monolítico | C149: Serviço (Mat + MO) | D149: m2 | E149: 0 | F149: =OFFSET(INDEX(Composições!A:J,MATCH(Orçamentária!A149,Composições!A:A,0),8),2,0) -> 45.4954316 | G149: 0 | H149: =IF(A149<>"",IF(AND(#REF!="Padrão",$I$4=#REF!),BDI!$B$17,IF(AND(#REF!="Padrão",$I$4=#REF!),BDI!$C$17,IF(AND(#REF!="Diferenciado",$I$4=#REF!),BDI!$G$17,IF(AND(#REF!="Diferenciado",$I$4=#REF!),BDI!$H$17,IF(#REF!="ZERO",0))))),"") -> 
A150: SF-00145 | B150: Forro em gesso acartonado monolítico, sem estrutura | C150: Serviço (Mat + MO) | D150: m2 | E150: 0 | F150: =OFFSET(INDEX(Composições!A:J,MATCH(Orçamentária!A150,Composições!A:A,0),8),2,0) -> 30.2580073 | G150: 0 | H150: =IF(A150<>"",IF(AND(#REF!="Padrão",$I$4=#REF!),BDI!$B$17,IF(AND(#REF!="Padrão",$I$4=#REF!),BDI!$C$17,IF(AND(#REF!="Diferenciado",$I$4=#REF!),BDI!$G$17,IF(AND(#REF!="Diferenciado",$I$4=#REF!),BDI!$H$17,IF(#REF!="ZERO",0))))),"") -> 
A151: SF-00146 | B151: Forro mineral modulado | C151: Serviço (Mat + MO) | D151: m2 | E151: 0 | F151: =OFFSET(INDEX(Composições!A:J,MATCH(Orçamentária!A151,Composições!A:A,0),8),2,0) -> 98.382 | G151: 0 | H151: =IF(A151<>"",IF(AND(#REF!="Padrão",$I$4=#REF!),BDI!$B$17,IF(AND(#REF!="Padrão",$I$4=#REF!),BDI!$C$17,IF(AND(#REF!="Diferenciado",$I$4=#REF!),BDI!$G$17,IF(AND(#REF!="Diferenciado",$I$4=#REF!),BDI!$H$17,IF(#REF!="ZERO",0))))),"") -> 
A152: SF-00147 | B152: Forro mineral modulado, sem estrutura | C152: Serviço (Mat + MO) | D152: m2 | E152: 0 | F152: =OFFSET(INDEX(Composições!A:J,MATCH(Orçamentária!A152,Composições!A:A,0),8),2,0) -> 27.72765 | G152: 0 | H152: =IF(A152<>"",IF(AND(#REF!="Padrão",$I$4=#REF!),BDI!$B$17,IF(AND(#REF!="Padrão",$I$4=#REF!),BDI!$C$17,IF(AND(#REF!="Diferenciado",$I$4=#REF!),BDI!$G$17,IF(AND(#REF!="Diferenciado",$I$4=#REF!),BDI!$H$17,IF(#REF!="ZERO",0))))),"") -> 
A153: SF-00148 | B153: Instalação de forro de PVC reaproveitado | C153: Serviço (Mat + MO) | D153: m2 | E153: 0 | F153: =OFFSET(INDEX(Composições!A:J,MATCH(Orçamentária!A153,Composições!A:A,0),8),2,0) -> 2.5245794 | G153: 0 | H153: =IF(A153<>"",IF(AND(#REF!="Padrão",$I$4=#REF!),BDI!$B$17,IF(AND(#REF!="Padrão",$I$4=#REF!),BDI!$C$17,IF(AND(#REF!="Diferenciado",$I$4=#REF!),BDI!$G$17,IF(AND(#REF!="Diferenciado",$I$4=#REF!),BDI!$H$17,IF(#REF!="ZERO",0))))),"") -> 
A154: SF-00149 | B154: Instalação de forro mineral reaproveitado | C154: Serviço (Mat + MO) | D154: m2 | E154: 0 | F154: =OFFSET(INDEX(Composições!A:J,MATCH(Orçamentária!A154,Composições!A:A,0),8),2,0) -> 43.4682 | G154: 0 | H154: =IF(A154<>"",IF(AND(#REF!="Padrão",$I$4=#REF!),BDI!$B$17,IF(AND(#REF!="Padrão",$I$4=#REF!),BDI!$C$17,IF(AND(#REF!="Diferenciado",$I$4=#REF!),BDI!$G$17,IF(AND(#REF!="Diferenciado",$I$4=#REF!),BDI!$H$17,IF(#REF!="ZERO",0))))),"") -> 
A155: SF-00150 | B155: Tabica metálica em forro de gesso acartonado | C155: Serviço (Mat + MO) | D155: m | E155: 0 | F155: =OFFSET(INDEX(Composições!A:J,MATCH(Orçamentária!A155,Composições!A:A,0),8),2,0) -> 8.9376399 | G155: 0 | H155: =IF(A155<>"",IF(AND(#REF!="Padrão",$I$4=#REF!),BDI!$B$17,IF(AND(#REF!="Padrão",$I$4=#REF!),BDI!$C$17,IF(AND(#REF!="Diferenciado",$I$4=#REF!),BDI!$G$17,IF(AND(#REF!="Diferenciado",$I$4=#REF!),BDI!$H$17,IF(#REF!="ZERO",0))))),"") -> 
A156: SF-00151 | B156: Instalação de revestimento de piso têxtil (carpete) reaproveitado | C156: Serviço (Mat + MO) | D156: m2 | E156: 0 | F156: =OFFSET(INDEX(Composições!A:J,MATCH(Orçamentária!A156,Composições!A:A,0),8),2,0) -> 6.29945 | G156: 0 | H156: =IF(A156<>"",IF(AND(#REF!="Padrão",$I$4=#REF!),BDI!$B$17,IF(AND(#REF!="Padrão",$I$4=#REF!),BDI!$C$17,IF(AND(#REF!="Diferenciado",$I$4=#REF!),BDI!$G$17,IF(AND(#REF!="Diferenciado",$I$4=#REF!),BDI!$H$17,IF(#REF!="ZERO",0))))),"") -> 
A157: SF-00152 | B157: Baguetes metálicos | C157: Serviço (Mat + MO) | D157: m | E157: 0 | F157: =OFFSET(INDEX(Composições!A:J,MATCH(Orçamentária!A157,Composições!A:A,0),8),2,0) -> 5.13475 | G157: 0 | H157: =IF(A157<>"",IF(AND(#REF!="Padrão",$I$4=#REF!),BDI!$B$17,IF(AND(#REF!="Padrão",$I$4=#REF!),BDI!$C$17,IF(AND(#REF!="Diferenciado",$I$4=#REF!),BDI!$G$17,IF(AND(#REF!="Diferenciado",$I$4=#REF!),BDI!$H$17,IF(#REF!="ZERO",0))))),"") -> 
A158: SF-00153 | B158: Cordão de massa de vidraceiro | C158: Serviço (Mat + MO) | D158: m | E158: 0 | F158: =OFFSET(INDEX(Composições!A:J,MATCH(Orçamentária!A158,Composições!A:A,0),8),2,0) -> 18.707875 | G158: 0 | H158: =IF(A158<>"",IF(AND(#REF!="Padrão",$I$4=#REF!),BDI!$B$17,IF(AND(#REF!="Padrão",$I$4=#REF!),BDI!$C$17,IF(AND(#REF!="Diferenciado",$I$4=#REF!),BDI!$G$17,IF(AND(#REF!="Diferenciado",$I$4=#REF!),BDI!$H$17,IF(#REF!="ZERO",0))))),"") -> 
A159: SF-00154 | B159: Espelho cristal, e=5 mm | C159: Serviço (Mat + MO) | D159: m2 | E159: 0 | F159: =OFFSET(INDEX(Composições!A:J,MATCH(Orçamentária!A159,Composições!A:A,0),8),2,0) -> 61.6246 | G159: 0 | H159: =IF(A159<>"",IF(AND(#REF!="Padrão",$I$4=#REF!),BDI!$B$17,IF(AND(#REF!="Padrão",$I$4=#REF!),BDI!$C$17,IF(AND(#REF!="Diferenciado",$I$4=#REF!),BDI!$G$17,IF(AND(#REF!="Diferenciado",$I$4=#REF!),BDI!$H$17,IF(#REF!="ZERO",0))))),"") -> 
A160: SF-00155 | B160: Instalação de vidro reaproveitado | C160: Serviço (Mat + MO) | D160: m2 | E160: 0 | F160: =OFFSET(INDEX(Composições!A:J,MATCH(Orçamentária!A160,Composições!A:A,0),8),2,0) -> 28.210725 | G160: 0 | H160: =IF(A160<>"",IF(AND(#REF!="Padrão",$I$4=#REF!),BDI!$B$17,IF(AND(#REF!="Padrão",$I$4=#REF!),BDI!$C$17,IF(AND(#REF!="Diferenciado",$I$4=#REF!),BDI!$G$17,IF(AND(#REF!="Diferenciado",$I$4=#REF!),BDI!$H$17,IF(#REF!="ZERO",0))))),"") -> 
A161: SF-00156 | B161: Substituição da calafetação com selante | C161: Serviço (Mat + MO) | D161: m | E161: 0 | F161: =OFFSET(INDEX(Composições!A:J,MATCH(Orçamentária!A161,Composições!A:A,0),8),2,0) -> 19.81566145 | G161: 0 | H161: =IF(A161<>"",IF(AND(#REF!="Padrão",$I$4=#REF!),BDI!$B$17,IF(AND(#REF!="Padrão",$I$4=#REF!),BDI!$C$17,IF(AND(#REF!="Diferenciado",$I$4=#REF!),BDI!$G$17,IF(AND(#REF!="Diferenciado",$I$4=#REF!),BDI!$H$17,IF(#REF!="ZERO",0))))),"") -> 
A162: SF-00157 | B162: Vidro liso comum transparente 4mm | C162: Serviço (Mat + MO) | D162: m2 | E162: 0 | F162: =OFFSET(INDEX(Composições!A:J,MATCH(Orçamentária!A162,Composições!A:A,0),8),2,0) -> 142.609725 | G162: 0 | H162: =IF(A162<>"",IF(AND(#REF!="Padrão",$I$4=#REF!),BDI!$B$17,IF(AND(#REF!="Padrão",$I$4=#REF!),BDI!$C$17,IF(AND(#REF!="Diferenciado",$I$4=#REF!),BDI!$G$17,IF(AND(#REF!="Diferenciado",$I$4=#REF!),BDI!$H$17,IF(#REF!="ZERO",0))))),"") -> 
A163: SF-00158 | B163: Vidro liso comum transparente 6mm | C163: Serviço (Mat + MO) | D163: m2 | E163: 0 | F163: =OFFSET(INDEX(Composições!A:J,MATCH(Orçamentária!A163,Composições!A:A,0),8),2,0) -> 200.4063 | G163: 0 | H163: =IF(A163<>"",IF(AND(#REF!="Padrão",$I$4=#REF!),BDI!$B$17,IF(AND(#REF!="Padrão",$I$4=#REF!),BDI!$C$17,IF(AND(#REF!="Diferenciado",$I$4=#REF!),BDI!$G$17,IF(AND(#REF!="Diferenciado",$I$4=#REF!),BDI!$H$17,IF(#REF!="ZERO",0))))),"") -> 
A164: SF-00159 | B164: Instalação de painéis de vidro temperado reaproveitados | C164: Serviço (Mat + MO) | D164: m2 | E164: 0 | F164: =OFFSET(INDEX(Composições!A:J,MATCH(Orçamentária!A164,Composições!A:A,0),8),2,0) -> 40.53555 | G164: 0 | H164: =IF(A164<>"",IF(AND(#REF!="Padrão",$I$4=#REF!),BDI!$B$17,IF(AND(#REF!="Padrão",$I$4=#REF!),BDI!$C$17,IF(AND(#REF!="Diferenciado",$I$4=#REF!),BDI!$G$17,IF(AND(#REF!="Diferenciado",$I$4=#REF!),BDI!$H$17,IF(#REF!="ZERO",0))))),"") -> 
A165: SF-00160 | B165: Mola hidráulica de piso | C165: Serviço (Mat + MO) | D165: un | E165: 0 | F165: =OFFSET(INDEX(Composições!A:J,MATCH(Orçamentária!A165,Composições!A:A,0),8),2,0) -> 20.2977 | G165: 0 | H165: =IF(A165<>"",IF(AND(#REF!="Padrão",$I$4=#REF!),BDI!$B$17,IF(AND(#REF!="Padrão",$I$4=#REF!),BDI!$C$17,IF(AND(#REF!="Diferenciado",$I$4=#REF!),BDI!$G$17,IF(AND(#REF!="Diferenciado",$I$4=#REF!),BDI!$H$17,IF(#REF!="ZERO",0))))),"") -> 
A166: SF-00161 | B166: Instalação de persianas reaproveitadas | C166: Serviço (Mat + MO) | D166: m | E166: 0 | F166: =OFFSET(INDEX(Composições!A:J,MATCH(Orçamentária!A166,Composições!A:A,0),8),2,0) -> 6.45618765 | G166: 0 | H166: =IF(A166<>"",IF(AND(#REF!="Padrão",$I$4=#REF!),BDI!$B$17,IF(AND(#REF!="Padrão",$I$4=#REF!),BDI!$C$17,IF(AND(#REF!="Diferenciado",$I$4=#REF!),BDI!$G$17,IF(AND(#REF!="Diferenciado",$I$4=#REF!),BDI!$H$17,IF(#REF!="ZERO",0))))),"") -> 
A167: SF-00162 | B167: Persiana vertical em alumínio 90 mm, cor verde claro | C167: Serviço (Mat + MO) | D167: m2 | E167: 0 | H167: =IF(A167<>"",IF(AND(#REF!="Padrão",$I$4=#REF!),BDI!$B$17,IF(AND(#REF!="Padrão",$I$4=#REF!),BDI!$C$17,IF(AND(#REF!="Diferenciado",$I$4=#REF!),BDI!$G$17,IF(AND(#REF!="Diferenciado",$I$4=#REF!),BDI!$H$17,IF(#REF!="ZERO",0))))),"") -> 
A168: SF-00163 | B168: Persiana vertical em tecido Juta Resinado sem blecaute de 90mm, cor bege | C168: Serviço (Mat + MO) | D168: m2 | E168: 0 | H168: =IF(A168<>"",IF(AND(#REF!="Padrão",$I$4=#REF!),BDI!$B$17,IF(AND(#REF!="Padrão",$I$4=#REF!),BDI!$C$17,IF(AND(#REF!="Diferenciado",$I$4=#REF!),BDI!$G$17,IF(AND(#REF!="Diferenciado",$I$4=#REF!),BDI!$H$17,IF(#REF!="ZERO",0))))),"") -> 
A169: SF-00164 | B169: Persiana vertical em tecido sintético sem blecaute de 90mm, cores verde escuro ou branca | C169: Serviço (Mat + MO) | D169: m2 | E169: 0 | H169: =IF(A169<>"",IF(AND(#REF!="Padrão",$I$4=#REF!),BDI!$B$17,IF(AND(#REF!="Padrão",$I$4=#REF!),BDI!$C$17,IF(AND(#REF!="Diferenciado",$I$4=#REF!),BDI!$G$17,IF(AND(#REF!="Diferenciado",$I$4=#REF!),BDI!$H$17,IF(#REF!="ZERO",0))))),"") -> 
A170: SF-00165 | B170: Película jateada | C170: Serviço (Mat + MO) | D170: m2 | E170: 0 | H170: =IF(A170<>"",IF(AND(#REF!="Padrão",$I$4=#REF!),BDI!$B$17,IF(AND(#REF!="Padrão",$I$4=#REF!),BDI!$C$17,IF(AND(#REF!="Diferenciado",$I$4=#REF!),BDI!$G$17,IF(AND(#REF!="Diferenciado",$I$4=#REF!),BDI!$H$17,IF(#REF!="ZERO",0))))),"") -> 
A171: SF-00166 | B171: Tubo de ligação para bacia sanitária | C171: Serviço (Mat + MO) | D171: un | E171: 0 | F171: =OFFSET(INDEX(Composições!A:J,MATCH(Orçamentária!A171,Composições!A:A,0),8),2,0) -> 6.2529 | G171: 0 | H171: =IF(A171<>"",IF(AND(#REF!="Padrão",$I$4=#REF!),BDI!$B$17,IF(AND(#REF!="Padrão",$I$4=#REF!),BDI!$C$17,IF(AND(#REF!="Diferenciado",$I$4=#REF!),BDI!$G$17,IF(AND(#REF!="Diferenciado",$I$4=#REF!),BDI!$H$17,IF(#REF!="ZERO",0))))),"") -> 
A172: SF-00167 | B172: Tubo PVC esgoto ou aguas pluviais predial DN 100mm | C172: Serviço (Mat + MO) | D172: m | E172: 0 | F172: =OFFSET(INDEX(Composições!A:J,MATCH(Orçamentária!A172,Composições!A:A,0),8),2,0) -> 53.888446 | G172: 0 | H172: =IF(A172<>"",IF(AND(#REF!="Padrão",$I$4=#REF!),BDI!$B$17,IF(AND(#REF!="Padrão",$I$4=#REF!),BDI!$C$17,IF(AND(#REF!="Diferenciado",$I$4=#REF!),BDI!$G$17,IF(AND(#REF!="Diferenciado",$I$4=#REF!),BDI!$H$17,IF(#REF!="ZERO",0))))),"") -> 
A173: SF-00168 | B173: Tubo PVC esgoto ou aguas pluviais predial DN 40mm | C173: Serviço (Mat + MO) | D173: m | E173: 0 | F173: =OFFSET(INDEX(Composições!A:J,MATCH(Orçamentária!A173,Composições!A:A,0),8),2,0) -> 16.655001 | G173: 0 | H173: =IF(A173<>"",IF(AND(#REF!="Padrão",$I$4=#REF!),BDI!$B$17,IF(AND(#REF!="Padrão",$I$4=#REF!),BDI!$C$17,IF(AND(#REF!="Diferenciado",$I$4=#REF!),BDI!$G$17,IF(AND(#REF!="Diferenciado",$I$4=#REF!),BDI!$H$17,IF(#REF!="ZERO",0))))),"") -> 
A174: SF-00169 | B174: Tubo PVC esgoto ou aguas pluviais predial DN 50mm | C174: Serviço (Mat + MO) | D174: m | E174: 0 | F174: =OFFSET(INDEX(Composições!A:J,MATCH(Orçamentária!A174,Composições!A:A,0),8),2,0) -> 22.9644355 | G174: 0 | H174: =IF(A174<>"",IF(AND(#REF!="Padrão",$I$4=#REF!),BDI!$B$17,IF(AND(#REF!="Padrão",$I$4=#REF!),BDI!$C$17,IF(AND(#REF!="Diferenciado",$I$4=#REF!),BDI!$G$17,IF(AND(#REF!="Diferenciado",$I$4=#REF!),BDI!$H$17,IF(#REF!="ZERO",0))))),"") -> 
A175: SF-00170 | B175: Tubo PVC esgoto ou aguas pluviais predial DN 75mm | C175: Serviço (Mat + MO) | D175: m | E175: 0 | F175: =OFFSET(INDEX(Composições!A:J,MATCH(Orçamentária!A175,Composições!A:A,0),8),2,0) -> 34.198537 | G175: 0 | H175: =IF(A175<>"",IF(AND(#REF!="Padrão",$I$4=#REF!),BDI!$B$17,IF(AND(#REF!="Padrão",$I$4=#REF!),BDI!$C$17,IF(AND(#REF!="Diferenciado",$I$4=#REF!),BDI!$G$17,IF(AND(#REF!="Diferenciado",$I$4=#REF!),BDI!$H$17,IF(#REF!="ZERO",0))))),"") -> 
A176: SF-00171 | B176: Tubo PVC soldável agua fria DN 25mm | C176: Serviço (Mat + MO) | D176: m | E176: 0 | F176: =OFFSET(INDEX(Composições!A:J,MATCH(Orçamentária!A176,Composições!A:A,0),8),2,0) -> 3.8920455 | G176: 0 | H176: =IF(A176<>"",IF(AND(#REF!="Padrão",$I$4=#REF!),BDI!$B$17,IF(AND(#REF!="Padrão",$I$4=#REF!),BDI!$C$17,IF(AND(#REF!="Diferenciado",$I$4=#REF!),BDI!$G$17,IF(AND(#REF!="Diferenciado",$I$4=#REF!),BDI!$H$17,IF(#REF!="ZERO",0))))),"") -> 
A177: SF-00172 | B177: Tubo PVC soldável agua fria DN 32mm | C177: Serviço (Mat + MO) | D177: m | E177: 0 | F177: =OFFSET(INDEX(Composições!A:J,MATCH(Orçamentária!A177,Composições!A:A,0),8),2,0) -> 8.128295 | G177: 0 | H177: =IF(A177<>"",IF(AND(#REF!="Padrão",$I$4=#REF!),BDI!$B$17,IF(AND(#REF!="Padrão",$I$4=#REF!),BDI!$C$17,IF(AND(#REF!="Diferenciado",$I$4=#REF!),BDI!$G$17,IF(AND(#REF!="Diferenciado",$I$4=#REF!),BDI!$H$17,IF(#REF!="ZERO",0))))),"") -> 
A178: SF-00173 | B178: Tubo PVC soldável agua fria DN 40mm | C178: Serviço (Mat + MO) | D178: m | E178: 0 | F178: =OFFSET(INDEX(Composições!A:J,MATCH(Orçamentária!A178,Composições!A:A,0),8),2,0) -> 11.642725 | G178: 0 | H178: =IF(A178<>"",IF(AND(#REF!="Padrão",$I$4=#REF!),BDI!$B$17,IF(AND(#REF!="Padrão",$I$4=#REF!),BDI!$C$17,IF(AND(#REF!="Diferenciado",$I$4=#REF!),BDI!$G$17,IF(AND(#REF!="Diferenciado",$I$4=#REF!),BDI!$H$17,IF(#REF!="ZERO",0))))),"") -> 
A179: SF-00174 | B179: Tubo PVC soldável agua fria DN 50mm | C179: Serviço (Mat + MO) | D179: m | E179: 0 | F179: =OFFSET(INDEX(Composições!A:J,MATCH(Orçamentária!A179,Composições!A:A,0),8),2,0) -> 13.4011085 | G179: 0 | H179: =IF(A179<>"",IF(AND(#REF!="Padrão",$I$4=#REF!),BDI!$B$17,IF(AND(#REF!="Padrão",$I$4=#REF!),BDI!$C$17,IF(AND(#REF!="Diferenciado",$I$4=#REF!),BDI!$G$17,IF(AND(#REF!="Diferenciado",$I$4=#REF!),BDI!$H$17,IF(#REF!="ZERO",0))))),"") -> 
A180: SF-00175 | B180: Base registro gaveta 3/4" | C180: Serviço (Mat + MO) | D180: un | E180: 0 | F180: =OFFSET(INDEX(Composições!A:J,MATCH(Orçamentária!A180,Composições!A:A,0),8),2,0) -> 10.5299805 | G180: 0 | H180: =IF(A180<>"",IF(AND(#REF!="Padrão",$I$4=#REF!),BDI!$B$17,IF(AND(#REF!="Padrão",$I$4=#REF!),BDI!$C$17,IF(AND(#REF!="Diferenciado",$I$4=#REF!),BDI!$G$17,IF(AND(#REF!="Diferenciado",$I$4=#REF!),BDI!$H$17,IF(#REF!="ZERO",0))))),"") -> 
A181: SF-00176 | B181: Caixa sifonada de PVC DN 150mm | C181: Serviço (Mat + MO) | D181: un | E181: 0 | F181: =OFFSET(INDEX(Composições!A:J,MATCH(Orçamentária!A181,Composições!A:A,0),8),2,0) -> 58.2577525 | G181: 0 | H181: =IF(A181<>"",IF(AND(#REF!="Padrão",$I$4=#REF!),BDI!$B$17,IF(AND(#REF!="Padrão",$I$4=#REF!),BDI!$C$17,IF(AND(#REF!="Diferenciado",$I$4=#REF!),BDI!$G$17,IF(AND(#REF!="Diferenciado",$I$4=#REF!),BDI!$H$17,IF(#REF!="ZERO",0))))),"") -> 
A182: SF-00177 | B182: Caixa sifonada de PVC DN 250mm | C182: Serviço (Mat + MO) | D182: un | E182: 0 | F182: =OFFSET(INDEX(Composições!A:J,MATCH(Orçamentária!A182,Composições!A:A,0),8),2,0) -> 99.2787525 | G182: 0 | H182: =IF(A182<>"",IF(AND(#REF!="Padrão",$I$4=#REF!),BDI!$B$17,IF(AND(#REF!="Padrão",$I$4=#REF!),BDI!$C$17,IF(AND(#REF!="Diferenciado",$I$4=#REF!),BDI!$G$17,IF(AND(#REF!="Diferenciado",$I$4=#REF!),BDI!$H$17,IF(#REF!="ZERO",0))))),"") -> 
A183: SF-00178 | B183: Grelha quadrada para ralo 10x10cm | C183: Serviço (Mat + MO) | D183: un | E183: 0 | F183: =OFFSET(INDEX(Composições!A:J,MATCH(Orçamentária!A183,Composições!A:A,0),8),2,0) -> 2.446725 | G183: 0 | H183: =IF(A183<>"",IF(AND(#REF!="Padrão",$I$4=#REF!),BDI!$B$17,IF(AND(#REF!="Padrão",$I$4=#REF!),BDI!$C$17,IF(AND(#REF!="Diferenciado",$I$4=#REF!),BDI!$G$17,IF(AND(#REF!="Diferenciado",$I$4=#REF!),BDI!$H$17,IF(#REF!="ZERO",0))))),"") -> 
A184: SF-00179 | B184: Grelha quadrada para ralo 15x15cm | C184: Serviço (Mat + MO) | D184: un | E184: 0 | F184: =OFFSET(INDEX(Composições!A:J,MATCH(Orçamentária!A184,Composições!A:A,0),8),2,0) -> 2.446725 | G184: 0 | H184: =IF(A184<>"",IF(AND(#REF!="Padrão",$I$4=#REF!),BDI!$B$17,IF(AND(#REF!="Padrão",$I$4=#REF!),BDI!$C$17,IF(AND(#REF!="Diferenciado",$I$4=#REF!),BDI!$G$17,IF(AND(#REF!="Diferenciado",$I$4=#REF!),BDI!$H$17,IF(#REF!="ZERO",0))))),"") -> 
A185: SF-00180 | B185: Ralo seco PVC DN 100x40mm | C185: Serviço (Mat + MO) | D185: un | E185: 0 | F185: =OFFSET(INDEX(Composições!A:J,MATCH(Orçamentária!A185,Composições!A:A,0),8),2,0) -> 9.614988 | G185: 0 | H185: =IF(A185<>"",IF(AND(#REF!="Padrão",$I$4=#REF!),BDI!$B$17,IF(AND(#REF!="Padrão",$I$4=#REF!),BDI!$C$17,IF(AND(#REF!="Diferenciado",$I$4=#REF!),BDI!$G$17,IF(AND(#REF!="Diferenciado",$I$4=#REF!),BDI!$H$17,IF(#REF!="ZERO",0))))),"") -> 
A186: SF-00181 | B186: Assento para bacia convencional – Linha Administrativa | C186: Serviço (Mat + MO) | D186: un | E186: 0 | F186: =OFFSET(INDEX(Composições!A:J,MATCH(Orçamentária!A186,Composições!A:A,0),8),2,0) -> 1.63115 | G186: 0 | H186: =IF(A186<>"",IF(AND(#REF!="Padrão",$I$4=#REF!),BDI!$B$17,IF(AND(#REF!="Padrão",$I$4=#REF!),BDI!$C$17,IF(AND(#REF!="Diferenciado",$I$4=#REF!),BDI!$G$17,IF(AND(#REF!="Diferenciado",$I$4=#REF!),BDI!$H$17,IF(#REF!="ZERO",0))))),"") -> 
A187: SF-00182 | B187: Bacia convencional – Linha Administrativa | C187: Serviço (Mat + MO) | D187: un | E187: 0 | F187: =OFFSET(INDEX(Composições!A:J,MATCH(Orçamentária!A187,Composições!A:A,0),8),2,0) -> 175.0297252 | G187: 0 | H187: =IF(A187<>"",IF(AND(#REF!="Padrão",$I$4=#REF!),BDI!$B$17,IF(AND(#REF!="Padrão",$I$4=#REF!),BDI!$C$17,IF(AND(#REF!="Diferenciado",$I$4=#REF!),BDI!$G$17,IF(AND(#REF!="Diferenciado",$I$4=#REF!),BDI!$H$17,IF(#REF!="ZERO",0))))),"") -> 
A188: SF-00183 | B188: Bacia convencional com saída horizontal | C188: Serviço (Mat + MO) | D188: un | E188: 0 | F188: =OFFSET(INDEX(Composições!A:J,MATCH(Orçamentária!A188,Composições!A:A,0),8),2,0) -> 57.6097252 | G188: 0 | H188: =IF(A188<>"",IF(AND(#REF!="Padrão",$I$4=#REF!),BDI!$B$17,IF(AND(#REF!="Padrão",$I$4=#REF!),BDI!$C$17,IF(AND(#REF!="Diferenciado",$I$4=#REF!),BDI!$G$17,IF(AND(#REF!="Diferenciado",$I$4=#REF!),BDI!$H$17,IF(#REF!="ZERO",0))))),"") -> 
A189: SF-00184 | B189: Cuba oval de embutir | C189: Serviço (Mat + MO) | D189: un | E189: 0 | F189: =OFFSET(INDEX(Composições!A:J,MATCH(Orçamentária!A189,Composições!A:A,0),8),2,0) -> 34.3134775 | G189: 0 | H189: =IF(A189<>"",IF(AND(#REF!="Padrão",$I$4=#REF!),BDI!$B$17,IF(AND(#REF!="Padrão",$I$4=#REF!),BDI!$C$17,IF(AND(#REF!="Diferenciado",$I$4=#REF!),BDI!$G$17,IF(AND(#REF!="Diferenciado",$I$4=#REF!),BDI!$H$17,IF(#REF!="ZERO",0))))),"") -> 
A190: SF-00185 | B190: Cuba retangular em aço inox – Linha Administrativa | C190: Serviço (Mat + MO) | D190: un | E190: 0 | F190: =OFFSET(INDEX(Composições!A:J,MATCH(Orçamentária!A190,Composições!A:A,0),8),2,0) -> 19.3642832 | G190: 0 | H190: =IF(A190<>"",IF(AND(#REF!="Padrão",$I$4=#REF!),BDI!$B$17,IF(AND(#REF!="Padrão",$I$4=#REF!),BDI!$C$17,IF(AND(#REF!="Diferenciado",$I$4=#REF!),BDI!$G$17,IF(AND(#REF!="Diferenciado",$I$4=#REF!),BDI!$H$17,IF(#REF!="ZERO",0))))),"") -> 
A191: SF-00186 | B191: Cuba semiencaixe quadrada com mesa | C191: Serviço (Mat + MO) | D191: un | E191: 0 | F191: =OFFSET(INDEX(Composições!A:J,MATCH(Orçamentária!A191,Composições!A:A,0),8),2,0) -> 34.3134775 | G191: 0 | H191: =IF(A191<>"",IF(AND(#REF!="Padrão",$I$4=#REF!),BDI!$B$17,IF(AND(#REF!="Padrão",$I$4=#REF!),BDI!$C$17,IF(AND(#REF!="Diferenciado",$I$4=#REF!),BDI!$G$17,IF(AND(#REF!="Diferenciado",$I$4=#REF!),BDI!$H$17,IF(#REF!="ZERO",0))))),"") -> 
A192: SF-00187 | B192: Instalação de lavatório reaproveitado | C192: Serviço (Mat + MO) | D192: un | E192: 0 | F192: =OFFSET(INDEX(Composições!A:J,MATCH(Orçamentária!A192,Composições!A:A,0),8),2,0) -> 38.6632349 | G192: 0 | H192: =IF(A192<>"",IF(AND(#REF!="Padrão",$I$4=#REF!),BDI!$B$17,IF(AND(#REF!="Padrão",$I$4=#REF!),BDI!$C$17,IF(AND(#REF!="Diferenciado",$I$4=#REF!),BDI!$G$17,IF(AND(#REF!="Diferenciado",$I$4=#REF!),BDI!$H$17,IF(#REF!="ZERO",0))))),"") -> 
A193: SF-00188 | B193: Instalação de mictório reaproveitado | C193: Serviço (Mat + MO) | D193: un | E193: 0 | F193: =OFFSET(INDEX(Composições!A:J,MATCH(Orçamentária!A193,Composições!A:A,0),8),2,0) -> 39.2344965 | G193: 0 | H193: =IF(A193<>"",IF(AND(#REF!="Padrão",$I$4=#REF!),BDI!$B$17,IF(AND(#REF!="Padrão",$I$4=#REF!),BDI!$C$17,IF(AND(#REF!="Diferenciado",$I$4=#REF!),BDI!$G$17,IF(AND(#REF!="Diferenciado",$I$4=#REF!),BDI!$H$17,IF(#REF!="ZERO",0))))),"") -> 
A194: SF-00189 | B194: Instalação de vaso sanitário reaproveitado | C194: Serviço (Mat + MO) | D194: un | E194: 0 | F194: =OFFSET(INDEX(Composições!A:J,MATCH(Orçamentária!A194,Composições!A:A,0),8),2,0) -> 57.5708056 | G194: 0 | H194: =IF(A194<>"",IF(AND(#REF!="Padrão",$I$4=#REF!),BDI!$B$17,IF(AND(#REF!="Padrão",$I$4=#REF!),BDI!$C$17,IF(AND(#REF!="Diferenciado",$I$4=#REF!),BDI!$G$17,IF(AND(#REF!="Diferenciado",$I$4=#REF!),BDI!$H$17,IF(#REF!="ZERO",0))))),"") -> 
A195: SF-00190 | B195: Lavatório suspenso | C195: Serviço (Mat + MO) | D195: un | E195: 0 | F195: =OFFSET(INDEX(Composições!A:J,MATCH(Orçamentária!A195,Composições!A:A,0),8),2,0) -> 115.2902349 | G195: 0 | H195: =IF(A195<>"",IF(AND(#REF!="Padrão",$I$4=#REF!),BDI!$B$17,IF(AND(#REF!="Padrão",$I$4=#REF!),BDI!$C$17,IF(AND(#REF!="Diferenciado",$I$4=#REF!),BDI!$G$17,IF(AND(#REF!="Diferenciado",$I$4=#REF!),BDI!$H$17,IF(#REF!="ZERO",0))))),"") -> 
A196: SF-00191 | B196: Mictório – Linha Administrativa | C196: Serviço (Mat + MO) | D196: un | E196: 0 | F196: =OFFSET(INDEX(Composições!A:J,MATCH(Orçamentária!A196,Composições!A:A,0),8),2,0) -> 306.2047505 | G196: 0 | H196: =IF(A196<>"",IF(AND(#REF!="Padrão",$I$4=#REF!),BDI!$B$17,IF(AND(#REF!="Padrão",$I$4=#REF!),BDI!$C$17,IF(AND(#REF!="Diferenciado",$I$4=#REF!),BDI!$G$17,IF(AND(#REF!="Diferenciado",$I$4=#REF!),BDI!$H$17,IF(#REF!="ZERO",0))))),"") -> 
A197: SF-00192 | B197: Tanque 38 litros – Linha Administrativa | C197: Serviço (Mat + MO) | D197: un | E197: 0 | F197: =OFFSET(INDEX(Composições!A:J,MATCH(Orçamentária!A197,Composições!A:A,0),8),2,0) -> 76.6930326 | G197: 0 | H197: =IF(A197<>"",IF(AND(#REF!="Padrão",$I$4=#REF!),BDI!$B$17,IF(AND(#REF!="Padrão",$I$4=#REF!),BDI!$C$17,IF(AND(#REF!="Diferenciado",$I$4=#REF!),BDI!$G$17,IF(AND(#REF!="Diferenciado",$I$4=#REF!),BDI!$H$17,IF(#REF!="ZERO",0))))),"") -> 
A198: SF-00193 | B198: Acabamento para registro GD – Linha Administrativa | C198: Serviço (Mat + MO) | D198: un | E198: 0 | F198: =OFFSET(INDEX(Composições!A:J,MATCH(Orçamentária!A198,Composições!A:A,0),8),2,0) -> 1.72976 | G198: 0 | H198: =IF(A198<>"",IF(AND(#REF!="Padrão",$I$4=#REF!),BDI!$B$17,IF(AND(#REF!="Padrão",$I$4=#REF!),BDI!$C$17,IF(AND(#REF!="Diferenciado",$I$4=#REF!),BDI!$G$17,IF(AND(#REF!="Diferenciado",$I$4=#REF!),BDI!$H$17,IF(#REF!="ZERO",0))))),"") -> 
A199: SF-00194 | B199: Acabamento para registro PQ – Linha Administrativa | C199: Serviço (Mat + MO) | D199: un | E199: 0 | F199: =OFFSET(INDEX(Composições!A:J,MATCH(Orçamentária!A199,Composições!A:A,0),8),2,0) -> 1.72976 | G199: =IF(ISNUMBER(F199),ROUND(E199*F199,2),"") -> 0 | H199: =IF(A199<>"",IF(AND(#REF!="Padrão",$I$4=#REF!),BDI!$B$17,IF(AND(#REF!="Padrão",$I$4=#REF!),BDI!$C$17,IF(AND(#REF!="Diferenciado",$I$4=#REF!),BDI!$G$17,IF(AND(#REF!="Diferenciado",$I$4=#REF!),BDI!$H$17,IF(#REF!="ZERO",0))))),"") ->  | I199: =IF(ISNUMBER(F199),ROUND(F199*(1+H199),2),"") ->  | J199: =IF(ISNUMBER(F199),ROUND(I199*E199,2),"") -> 
A200: SF-00195 | B200: Ducha higiênica – Linha Administrativa | C200: Serviço (Mat + MO) | D200: un | E200: 0 | F200: =OFFSET(INDEX(Composições!A:J,MATCH(Orçamentária!A200,Composições!A:A,0),8),2,0) -> 19.2565 | G200: 0 | H200: =IF(A200<>"",IF(AND(#REF!="Padrão",$I$4=#REF!),BDI!$B$17,IF(AND(#REF!="Padrão",$I$4=#REF!),BDI!$C$17,IF(AND(#REF!="Diferenciado",$I$4=#REF!),BDI!$G$17,IF(AND(#REF!="Diferenciado",$I$4=#REF!),BDI!$H$17,IF(#REF!="ZERO",0))))),"") -> 
... 1146 more rows

Sheet BDI
A1: =Orçamentária!A1 -> Execução de infraestrutura e lançamento de fibra óptica para interligação entre os datacenters da Câmara dos Deputados e Senado Federal
A2: BENEFÍCIOS E DESPESAS INDIRETAS - BDI
A4: BDI Edificações | F4: BDI mero fornecimento
A5: Componentes do BDI | B5: Cálculo sem CPRB | C5: Cálculo com CPRB | F5: Componentes do BDI | G5: Cálculo sem CPRB | H5: Cálculo com CPRB
B6: não-desonerado | C6: desonerado | G6: não-desonerado | H6: desonerado
B7: % considerado | C7: % considerado | G7: % considerado | H7: % considerado
A8: AC | B8: 0.035 | C8: 0.035 | F8: AC | G8: 0.0175 | H8: 0.0175
A9: S+G | B9: 0.008 | C9: 0.008 | F9: S+G | G9: 0.0039 | H9: 0.0039
A10: R | B10: 0.0125 | C10: 0.0125 | F10: R | G10: 0.0056 | H10: 0.0056
A11: DF | B11: 0.0076 | C11: 0.0076 | F11: DF | G11: 0.0085 | H11: 0.0085
A12: L | B12: 0.0678 | C12: 0.0678 | F12: L | G12: 0.035 | H12: 0.035
A13: PIS | B13: 0.0065 | C13: 0.0065 | F13: PIS | G13: 0.0065 | H13: 0.0065
A14: COFINS | B14: 0.03 | C14: 0.03 | F14: COFINS | G14: 0.03 | H14: 0.03
A15: CPRB | B15: 0 | C15: 0.045 | F15: CPRB | G15: 0 | H15: 0.045
A16: ISS | B16: 0.01 | C16: 0.01 | F16: ISS | G16: 0 | H16: 0
A17: BDI Edificações | B17: =ROUND(((1+B8+B9+B10)*(1+B11)*(1+B12))/(1-(B13+B14+B15+B16))-1,4) -> 0.191 | C17: =ROUND(((1+C8+C9+C10)*(1+C11)*(1+C12))/(1-(C13+C14+C15+C16))-1,4) -> 0.25 | F17: BDI mero fornecimento | G17: =ROUND(((1+G8+G9+G10)*(1+G11)*(1+G12))/(1-(G13+G14+G15+G16))-1,4) -> 0.1126 | H17: =ROUND(((1+H8+H9+H10)*(1+H11)*(1+H12))/(1-(H13+H14+H15+H16))-1,4) -> 0.1671
A19: Referências TCU - BDI Edificações | F19: Referências TCU - BDI mero fornecimento
A20: Componentes do BDI | B20: 1º Quartil | C20: Médio | D20: 3º Quartil | F20: Componentes do BDI | G20: 1º Quartil | H20: Médio | I20: 3º Quartil
A21: AC | B21: 0.03 | C21: 0.04 | D21: 0.055 | F21: AC | G21: 0.015 | H21: 0.0345 | I21: 0.0449
A22: S+G | B22: 0.008 | C22: 0.008 | D22: 0.01 | F22: S+G | G22: 0.003 | H22: 0.0048 | I22: 0.0082
A23: R | B23: 0.0097 | C23: 0.0127 | D23: 0.0127 | F23: R | G23: 0.0056 | H23: 0.0085 | I23: 0.0089
A24: DF | B24: 0.0059 | C24: 0.0123 | D24: 0.0139 | F24: DF | G24: 0.0085 | H24: 0.0085 | I24: 0.0111
A25: L | B25: 0.0616 | C25: 0.074 | D25: 0.0896 | F25: L | G25: 0.035 | H25: 0.0511 | I25: 0.0622
A26: BDI Edificações | B26: 0.2034 | C26: 0.2212 | D26: 0.25 | F26: BDI mero fornecimento | G26: 0.111 | H26: 0.1402 | I26: 0.168
A48: Fontes: Acórdãos 2.369/2011-TCU-Plenário e 2.622/2013-TCU-Plenário.
